College_Code,College_Name,Check_Number,Payee,Date,Amount,Funding_Source,Purpose
31,Jefferson State Community College,326615,AATP ,10/2/2018,125,Current Unrestricted,Staff Develop-Staff
31,Jefferson State Community College,326616,ACT ,10/2/2018,215,Current Unrestricted,Materials and Supplies
31,Jefferson State Community College,326617,ADSAA ,10/2/2018,25,Current Unrestricted,Staff Develop-Staff
31,Jefferson State Community College,326618,Alabama Community College Conference Inc ,10/2/2018,6682,Current Unrestricted,Memberships
31,Jefferson State Community College,326619,Alabama Technology Network ,10/2/2018,600,Current Unrestricted,Contractual Services
31,Jefferson State Community College,326620,Alertus Technologies LLC ,10/2/2018,3450,Current Unrestricted,Tech Expenses-Student Related
31,Jefferson State Community College,326621,Alexander Zachary,10/2/2018,81.75,Current Unrestricted,In-State Travel
31,Jefferson State Community College,326622,Amazon.com ,10/2/2018,379.8,Current Unrestricted,Materials and Supplies
31,Jefferson State Community College,326623,APTA ,10/2/2018,6800,Current Unrestricted,Accreditation Exp
31,Jefferson State Community College,326624,ARCpoint Labs of Birmingham-Greystone ,10/2/2018,463.36,Current Unrestricted,Physical Exams
31,Jefferson State Community College,326625,Burney Roscelia,10/2/2018,30.52,Current Unrestricted,In-State Travel
31,Jefferson State Community College,326626,CDWG Inc ,10/2/2018,1307.52,Current Unrestricted,Tech Instruct 500-5000
31,Jefferson State Community College,326627,CenturyLink ,10/2/2018,2888.65,Current Unrestricted,Communications
31,Jefferson State Community College,326628,City of Pell City ,10/2/2018,176.68,Current Unrestricted,Water & Sewer
31,Jefferson State Community College,326629,City of Pell City ,10/2/2018,65.1,Current Unrestricted,Water & Sewer
31,Jefferson State Community College,326630,Coburn Danielle,10/2/2018,170,Current Unrestricted,In-State Travel
31,Jefferson State Community College,326631,Ellucian Support Inc ,10/2/2018,255311,Current Unrestricted,Tech Expenses-Student Related
31,Jefferson State Community College,326632,Ellucian Support Inc ,10/2/2018,10458,Current Unrestricted,Tech Expenses-Student Related
31,Jefferson State Community College,326633,Ferrellgas ,10/2/2018,56.16,Current Unrestricted,Gas & Oil
31,Jefferson State Community College,326634,Fisher Scientific Company LLC ,10/2/2018,558.21,Current Unrestricted,Materials and Supplies
31,Jefferson State Community College,326635,Follett Higher Education Group  Inc. ,10/2/2018,4227.5,Adult Ed - State Jul-Sep 17/18,Materials and Supplies
31,Jefferson State Community College,326636,Follett Higher Education Group  Inc. ,10/2/2018,280,Adult Ed - State Jul-Sep 17/18,Materials and Supplies
31,Jefferson State Community College,326637,Follett Higher Education Group  Inc. ,10/2/2018,280,Adult Ed - State Jul-Sep 17/18,Materials and Supplies
31,Jefferson State Community College,326638,Fraser Thompson Stacye,10/2/2018,125.02,Current Unrestricted,In-State Travel
31,Jefferson State Community College,326639,Gilson Company Inc ,10/2/2018,195,Building Science Technology,Materials and Supplies
31,Jefferson State Community College,326640,Graybar Electric Co Inc ,10/2/2018,83.69,Renewal and Replacement,Maint & Repairs
31,Jefferson State Community College,326641,Greater Shelby Chamber of Commerce ,10/2/2018,75,Current Unrestricted,Advertise  Promotions
31,Jefferson State Community College,326642,McKinney Enterprises  LLC ,10/2/2018,4389.66,Renewal and Replacement,Maint & Repairs
31,Jefferson State Community College,326643,Means Advertising  Inc. ,10/2/2018,1300,Social Innovation Fund 2018,Advertise  Promotions
31,Jefferson State Community College,326644,Means Advertising  Inc. ,10/2/2018,875,MSSC/RTW Auto Mfg WF Init 17-18SP44,Advertise  Promotions
31,Jefferson State Community College,326645,Newborn Tammie,10/2/2018,109.96,Current Unrestricted,Contractual Services
31,Jefferson State Community College,326646,Office Depot ,10/2/2018,781.7,Current Unrestricted,Materials and Supplies
31,Jefferson State Community College,326647,Office Depot ,10/2/2018,763.56,Current Unrestricted,Printing - Off Campus
31,Jefferson State Community College,326648,Omnilert LLC ,10/2/2018,9900,Current Unrestricted,Tech Expenses-Student Related
31,Jefferson State Community College,326649,Owens Lillian,10/2/2018,128.35,Current Unrestricted,In-State Travel
31,Jefferson State Community College,326650,SAIR ,10/2/2018,585,Current Unrestricted,Staff Develop-Staff
31,Jefferson State Community College,326651,Scantron Corp ,10/2/2018,220.29,Current Unrestricted,Materials and Supplies
31,Jefferson State Community College,326652,Sherwin Williams ,10/2/2018,39.66,Renewal and Replacement,Maint & Repairs
31,Jefferson State Community College,326653,Simmons Brenda,10/2/2018,23.85,Social Innovation Fund 2018,Meeting Expense
31,Jefferson State Community College,326654,Technical Training Aids ,10/2/2018,68708,ICI Strength Mfg Tech 17-18ICI32,Tech Instruct >$25000
31,Jefferson State Community College,326655,Tindill-Rohr Elaine,10/2/2018,74.19,Current Unrestricted,Materials and Supplies
31,Jefferson State Community College,326656,University Mortuary Science Edu Assoc ,10/2/2018,275,Current Unrestricted,Memberships
31,Jefferson State Community College,326657,Water Works & Sewer Board ,10/2/2018,5874.7,Current Unrestricted,Water & Sewer
31,Jefferson State Community College,326693,Chick- fil-a Inc ,10/3/2018,231.24,Current Unrestricted,Meeting Expense
31,Jefferson State Community College,326715,AASFAA ,10/5/2018,250,Current Unrestricted,Memberships
31,Jefferson State Community College,326716,ACCSHRMA ,10/5/2018,250,Current Unrestricted,Memberships
31,Jefferson State Community College,326717,Aernie Bonnie,10/5/2018,115.07,Current Unrestricted,Contractual Services
31,Jefferson State Community College,326718,Automatic Sync Technologies  LLC ,10/5/2018,1563.05,Current Unrestricted,Tech Expenses-Student Related
31,Jefferson State Community College,326719,AVAA ,10/5/2018,550,Current Unrestricted,Staff Develop-Staff
31,Jefferson State Community College,326720,Blalock II Steven,10/5/2018,127.5,Current Unrestricted,Professional Fees
31,Jefferson State Community College,326721,Boehm Matthew,10/5/2018,213.11,Current Unrestricted,Out-of-State Travel
31,Jefferson State Community College,326722,CDWG Inc ,10/5/2018,1964.74,Current Unrestricted,Tech Non-Inst 500-5000
31,Jefferson State Community College,326723,Central Paper ,10/5/2018,216.87,Current Unrestricted,Materials and Supplies
31,Jefferson State Community College,326724,Chambers Lynn,10/5/2018,144.43,Current Unrestricted,In-State Travel
31,Jefferson State Community College,326724,Chambers Lynn,10/5/2018,196.2,MSSC/RTW Auto Mfg WF Init 17-18SP44,In-State Travel
31,Jefferson State Community College,326725,Clackley David,10/5/2018,401.25,Current Unrestricted,Professional Fees
31,Jefferson State Community College,326726,Duran Golf Club  LLC ,10/5/2018,450,Current Unrestricted,Out-of-State Travel
31,Jefferson State Community College,326727,Emmerich Julie,10/5/2018,105.51,Current Unrestricted,In-State Travel
31,Jefferson State Community College,326728,Fisher Scientific Company LLC ,10/5/2018,739.9,CTE Dual Enroll 17-18DE12,Materials and Supplies
31,Jefferson State Community College,326728,Fisher Scientific Company LLC ,10/5/2018,305.49,Current Unrestricted,Materials and Supplies
31,Jefferson State Community College,326729,Guinn Philip,10/5/2018,240,Current Unrestricted,In-State Travel
31,Jefferson State Community College,326730,Guinn Philip,10/5/2018,153,Current Unrestricted,Out-of-State Travel
31,Jefferson State Community College,326731,Harrison Vernon,10/5/2018,65.84,Current Unrestricted,In-State Travel
31,Jefferson State Community College,326732,Hill Cynthia,10/5/2018,73.79,Current Unrestricted,In-State Travel
31,Jefferson State Community College,326733,Hill Damita,10/5/2018,106.82,Current Unrestricted,In-State Travel
31,Jefferson State Community College,326734,Holmes Elizabeth,10/5/2018,315.47,Current Unrestricted,In-State Travel
31,Jefferson State Community College,326735,Interline Brands  Inc. ,10/5/2018,1314.61,Renewal and Replacement,Maint & Repairs
31,Jefferson State Community College,326736,Keene Jeremy,10/5/2018,69.76,Current Unrestricted,In-State Travel
31,Jefferson State Community College,326737,Kirkwood Leigh,10/5/2018,22.02,Current Unrestricted,In-State Travel
31,Jefferson State Community College,326738,Landauer Inc ,10/5/2018,1256.4,RAD Monitoring,Deposits Payable
31,Jefferson State Community College,326739,Luna Wilmer,10/5/2018,64.2,Current Unrestricted,In-State Travel
31,Jefferson State Community College,326740,Means Advertising  Inc. ,10/5/2018,12231.25,Current Unrestricted,Advertise  Promotions
31,Jefferson State Community College,326741,MPG Tent Rentals ,10/5/2018,2975.7,Current Unrestricted,Receptions  Banquets
31,Jefferson State Community College,326742,National Council of Teachers of English ,10/5/2018,75,Current Unrestricted,Periodicals
31,Jefferson State Community College,326743,North Phoebe,10/5/2018,1500,Sigma Kappa Delta,Deposits Payable
31,Jefferson State Community College,326744,O'Neal Brenda,10/5/2018,129.57,Current Unrestricted,In-State Travel
31,Jefferson State Community College,326745,Office Depot ,10/5/2018,581.27,Current Unrestricted,Materials and Supplies
31,Jefferson State Community College,326746,Owens Lillian,10/5/2018,266.47,Current Unrestricted,In-State Travel
31,Jefferson State Community College,326747,Payne Tamara,10/5/2018,63.76,Current Unrestricted,In-State Travel
31,Jefferson State Community College,326747,Payne Tamara,10/5/2018,122.63,Social Innovation Fund 2018,In-State Travel
31,Jefferson State Community College,326748,Pleasants-Pegues Ticey,10/5/2018,981.58,Current Unrestricted,Contractual Services
31,Jefferson State Community College,326749,Robinson Darryl,10/5/2018,222.36,Current Unrestricted,In-State Travel
31,Jefferson State Community College,326751,Rowland Adrienne,10/5/2018,214.89,Adult Education - Fed Jul-Sep 17/18,In-State Travel
31,Jefferson State Community College,326752,Russell McCalls Inc. ,10/5/2018,631.57,Current Unrestricted,Materials and Supplies
31,Jefferson State Community College,326753,Scarbrough William,10/5/2018,180,Current Unrestricted,Professional Fees
31,Jefferson State Community College,326754,Sherman Anne,10/5/2018,52.32,Current Unrestricted,In-State Travel
31,Jefferson State Community College,326755,Smitherman Daniel,10/5/2018,277.5,Current Unrestricted,Professional Fees
31,Jefferson State Community College,326756,Smitherman Joseph,10/5/2018,240,Current Unrestricted,Professional Fees
31,Jefferson State Community College,326757,Sutton Edreama,10/5/2018,98.1,Current Unrestricted,In-State Travel
31,Jefferson State Community College,326758,Sysco of Central Alabama ,10/5/2018,1832.86,Current Unrestricted,Materials and Supplies
31,Jefferson State Community College,326759,Tomlin Tonya,10/5/2018,262.62,Current Unrestricted,In-State Travel
31,Jefferson State Community College,326761,Union State Insurance ,10/5/2018,47906,Current Unrestricted,Insurance
31,Jefferson State Community College,326762,Walker Melisa,10/5/2018,100.28,Current Unrestricted,In-State Travel
31,Jefferson State Community College,326763,Whittle Christopher,10/5/2018,360,Current Unrestricted,Professional Fees
31,Jefferson State Community College,326764,Wiley Jeffrey,10/5/2018,209.83,Current Unrestricted,In-State Travel
31,Jefferson State Community College,326765,Wilson Kenneth,10/5/2018,65.4,Current Unrestricted,In-State Travel
31,Jefferson State Community College,326766,Wright Tierra,10/5/2018,32.7,Current Unrestricted,In-State Travel
31,Jefferson State Community College,326766,Wright Tierra,10/5/2018,98.1,Social Innovation Fund 2018,In-State Travel
31,Jefferson State Community College,326767,Wright Express ,10/5/2018,484.66,Current Unrestricted,Gas & Oil
31,Jefferson State Community College,326768,Adams Iris,10/8/2018,1083.35,DHR AITPDN Grant #2201 17/18,In-State Travel
31,Jefferson State Community College,326769,AEA ,10/8/2018,180.06,Payroll Clearing Fund,Withheld AEA Benefit
31,Jefferson State Community College,326770,AEA ,10/8/2018,308.05,Payroll Clearing Fund,Withheld Unum AEA
31,Jefferson State Community College,326771,AFLAC Insurance ,10/8/2018,1568.84,Payroll Clearing Fund,Withheld Aflac
31,Jefferson State Community College,326772,Alabama Banner Users Group ,10/8/2018,1125,Current Unrestricted,Staff Develop-Staff
31,Jefferson State Community College,326773,Alabama Community College System ,10/8/2018,25,Current Unrestricted,Staff Develop-Staff
31,Jefferson State Community College,326774,Alabama Power ,10/8/2018,3306.45,Current Unrestricted,Electricity
31,Jefferson State Community College,326775,Alcohol and Drug Abuse Council  Inc. ,10/8/2018,877.2,Current Unrestricted,Professional Fees
31,Jefferson State Community College,326776,Alexander Zachary,10/8/2018,122.63,Current Unrestricted,In-State Travel
31,Jefferson State Community College,326777,AT&T Mobility National Accounts LLC ,10/8/2018,41.45,Adult Education - Fed Jul-Sep 17/18,Communication
31,Jefferson State Community College,326778,Bank of America ,10/8/2018,2831.11,Current Unrestricted,In-State Travel
31,Jefferson State Community College,326779,Bobo David,10/8/2018,258.41,Current Unrestricted,In-State Travel
31,Jefferson State Community College,326780,Boehm Matthew,10/8/2018,629.83,Current Unrestricted,In-State Travel
31,Jefferson State Community College,326781,Bolton Christie,10/8/2018,64.85,Current Unrestricted,In-State Travel
31,Jefferson State Community College,326782,Bradford Caraway Chapter 13 Standard Trustee Dept SF3 ,10/8/2018,471,Payroll Clearing Fund,Withheld Bankruptcy
31,Jefferson State Community College,326783,Bradford Caraway Chapter 13 Standard Trustee Dept SF3 ,10/8/2018,644,Payroll Clearing Fund,Withheld Bankruptcy
31,Jefferson State Community College,326784,Bradford Caraway Chapter 13 Standard Trustee Dept SF3 ,10/8/2018,280,Payroll Clearing Fund,Withheld Bankruptcy
31,Jefferson State Community College,326785,Bradford Caraway Chapter 13 Standard Trustee Dept SF3 ,10/8/2018,580,Payroll Clearing Fund,Withheld Bankruptcy
31,Jefferson State Community College,326786,Brown Catherine,10/8/2018,239.8,Current Unrestricted,In-State Travel
31,Jefferson State Community College,326787,Call Jacob,10/8/2018,374.47,Current Unrestricted,In-State Travel
31,Jefferson State Community College,326788,Carnes Jeddie,10/8/2018,70.63,DHR AITPDN Grant #2201 17/18,In-State Travel
31,Jefferson State Community College,326789,Caskey Connie,10/8/2018,45.78,Current Unrestricted,In-State Travel
31,Jefferson State Community College,326790,Center Point Fire District ,10/8/2018,83.14,Current Unrestricted,Water & Sewer
31,Jefferson State Community College,326791,City Of Birmingham ,10/8/2018,13066.13,Payroll Clearing Fund,Withheld Taxes - Birmingham
31,Jefferson State Community College,326792,Core Brandy,10/8/2018,33.25,Current Unrestricted,In-State Travel
31,Jefferson State Community College,326793,Creamer Kelli,10/8/2018,128.62,Current Unrestricted,In-State Travel
31,Jefferson State Community College,326794,Cuevas Eugene,10/8/2018,52.32,Current Unrestricted,In-State Travel
31,Jefferson State Community College,326795,Easter Seals Alabama  Inc. ,10/8/2018,210,Current Unrestricted,Advertise  Promotions
31,Jefferson State Community College,326796,Elliott Julie,10/8/2018,14.39,Current Unrestricted,In-State Travel
31,Jefferson State Community College,326797,Enterprise Rent A Car ,10/8/2018,690,Current Unrestricted,Out-of-State Travel
31,Jefferson State Community College,326798,Equitable Life ,10/8/2018,100,Payroll Clearing Fund,Withheld Equitable
31,Jefferson State Community College,326799,Harris Jason,10/8/2018,255,Current Unrestricted,Professional Fees
31,Jefferson State Community College,326800,Harris Sandra,10/8/2018,662.72,Current Unrestricted,In-State Travel
31,Jefferson State Community College,326801,Harrison Vernon,10/8/2018,129.33,Current Unrestricted,In-State Travel
31,Jefferson State Community College,326802,Hodge Mechanical Services LLC ,10/8/2018,7514.62,Renewal and Replacement,Maint & Repairs
31,Jefferson State Community College,326804,Jennings Kendra,10/8/2018,775.37,DHR AITPDN Grant #2201 17/18,In-State Travel
31,Jefferson State Community College,326805,Lattimore Paula,10/8/2018,597.53,DHR AITPDN Grant #2201 17/18,In-State Travel
31,Jefferson State Community College,326806,Liberty National Life ,10/8/2018,887.34,Payroll Clearing Fund,Liberty National 
31,Jefferson State Community College,326807,Lowes Business Account ,10/8/2018,144.4,Building Science Technology,Materials and Supplies
31,Jefferson State Community College,326808,Municipal and Commercial Uniforms Inc ,10/8/2018,60,CTE Dual Enroll 17-18DE12,Materials and Supplies
31,Jefferson State Community College,326809,Online Learning Consortium Inc ,10/8/2018,1500,Current Unrestricted,Memberships
31,Jefferson State Community College,326810,Opportunity Systems Incorporating Independence  LLC ,10/8/2018,720,Current Unrestricted,Contractual Services
31,Jefferson State Community College,326811,PEEHIP ,10/8/2018,347398.17,Payroll Clearing Fund,Withheld Equitable
31,Jefferson State Community College,326812,PEIRAF-Deferred Compensation ,10/8/2018,12645,Payroll Clearing Fund,Withheld Peiraf 457
31,Jefferson State Community College,326813,Plumb-Tech  Inc. ,10/8/2018,949.89,Renewal and Replacement,Maint & Repairs
31,Jefferson State Community College,326814,Pocket Nurse Enterprises  Inc. ,10/8/2018,6680,Vocational Education 17/18,Tech Instruct 500-5000
31,Jefferson State Community College,326815,Potter Kay,10/8/2018,32.7,Current Unrestricted,In-State Travel
31,Jefferson State Community College,326816,Red Mountain Coffee Roaster ,10/8/2018,255.75,Current Unrestricted,Materials and Supplies
31,Jefferson State Community College,326817,Reliastar Life Insurance Co ,10/8/2018,42.75,Payroll Clearing Fund,Reliastar Life Ins
31,Jefferson State Community College,326818,RJ Young Company ,10/8/2018,1891.9,Current Unrestricted,Lease-Operations
31,Jefferson State Community College,326820,Shuffett Wendy,10/8/2018,300,Current Unrestricted,In-State Travel
31,Jefferson State Community College,326821,Smith Heather,10/8/2018,71.94,Current Unrestricted,In-State Travel
31,Jefferson State Community College,326822,Stanley Nathaniel,10/8/2018,183.12,Adult Education - Fed Jul-Sep 17/18,In-State Travel
31,Jefferson State Community College,326823,State of Alabama ,10/8/2018,1242,Payroll Clearing Fund,Withheld Child Support - Jeffco
31,Jefferson State Community College,326824,State of Alabama ,10/8/2018,2210,Payroll Clearing Fund,Withheld Child Support - Jeffco
31,Jefferson State Community College,326825,State of Alabama ,10/8/2018,1513.63,Payroll Clearing Fund,Withheld Garnishment
31,Jefferson State Community College,326826,State of Alabama ,10/8/2018,282.04,Payroll Clearing Fund,Withheld Garnishment
31,Jefferson State Community College,326827,Teachers' Retirement System of Alabama ,10/8/2018,364664.53,Payroll Clearing Fund,TRS Matching-State
31,Jefferson State Community College,326828,Turner Shelita,10/8/2018,137.6,DHR AITPDN Grant #2201 17/18,In-State Travel
31,Jefferson State Community College,326829,United Cerebral Palsy of Greater Birmingham  Inc ,10/8/2018,1490,Current Unrestricted,Contractual Services
31,Jefferson State Community College,326830,United Way ,10/8/2018,336.12,Payroll Clearing Fund,Withheld United Way
31,Jefferson State Community College,326831,US Department of Education ,10/8/2018,603.37,Payroll Clearing Fund,Withheld Garnishment
31,Jefferson State Community College,326832,Wallace Preston,10/8/2018,357.52,Current Unrestricted,In-State Travel
31,Jefferson State Community College,326833,Williams Wanda,10/8/2018,95.92,DHR AITPDN Grant #2201 17/18,In-State Travel
31,Jefferson State Community College,326834,Wright Express ,10/8/2018,29.99,Current Unrestricted,Gas & Oil
31,Jefferson State Community College,326890,Assessment Technologies Institute  LLC ,10/11/2018,4270,AARP FDN/SUPPLEMENTAL GRANT 2017,Materials and Supplies
31,Jefferson State Community College,326890,Assessment Technologies Institute  LLC ,10/11/2018,1000,Current Unrestricted,Materials and Supplies
31,Jefferson State Community College,326891,AT&T ,10/11/2018,358.3,Current Unrestricted,Communications
31,Jefferson State Community College,326892,AT&T Mobility National Accounts LLC ,10/11/2018,324.02,Current Unrestricted,Communication
31,Jefferson State Community College,326892,AT&T Mobility National Accounts LLC ,10/11/2018,226.56,DHR AITPDN Grant #2201 17/18,Communication
31,Jefferson State Community College,326893,Audio Fidelity Communications Corporation ,10/11/2018,375,Adult Education - Fed Jul-Sep 17/18,Service Contracts
31,Jefferson State Community College,326894,Barnes & Noble Booksellers  Inc. ,10/11/2018,1439,DHR AITPDN Grant #2201 17/18,Materials and Supplies
31,Jefferson State Community College,326895,Blevins Chris,10/11/2018,540,Current Unrestricted,Professional Fees
31,Jefferson State Community College,326896,East Auto Repair ,10/11/2018,908.66,Renewal and Replacement,Maint & Repairs
31,Jefferson State Community College,326897,Evans Meats Inc ,10/11/2018,75.8,Current Unrestricted,Materials and Supplies
31,Jefferson State Community College,326898,Fisher Scientific Company LLC ,10/11/2018,10745.76,CTE Dual Enroll 17-18DE12,Materials and Supplies
31,Jefferson State Community College,326898,Fisher Scientific Company LLC ,10/11/2018,387.52,CTE STEAM Initiatives 16-17STEAM06,Materials and Supplies
31,Jefferson State Community College,326898,Fisher Scientific Company LLC ,10/11/2018,45.28,Current Unrestricted,Materials and Supplies
31,Jefferson State Community College,326899,Florence Jeffrey,10/11/2018,234,Current Unrestricted,Professional Fees
31,Jefferson State Community College,326900,Follett Higher Education Group  Inc. ,10/11/2018,1273.5,CTE Dual Enroll 17-18DE12,Scholarship-Books
31,Jefferson State Community College,326901,Follett Higher Education Group  Inc. ,10/11/2018,1780,Adult Ed - State Jul-Sep 17/18,Materials and Supplies
31,Jefferson State Community College,326902,Follett Higher Education Group  Inc. ,10/11/2018,1406.25,Adult Ed - State Jul-Sep 17/18,Materials and Supplies
31,Jefferson State Community College,326903,Follett Higher Education Group  Inc. ,10/11/2018,1875,Adult Ed - State Jul-Sep 17/18,Materials and Supplies
31,Jefferson State Community College,326904,Fun Source Rentals ,10/11/2018,713.9,Current Unrestricted,Advertise  Promotions
31,Jefferson State Community College,326905,Janousek Mel,10/11/2018,675,Current Unrestricted,Professional Fees
31,Jefferson State Community College,326906,Marcus Service & Solutions LLC ,10/11/2018,465,Renewal and Replacement,Maint & Repairs
31,Jefferson State Community College,326907,Means Advertising  Inc. ,10/11/2018,15768,Current Unrestricted,Advertise  Promotions
31,Jefferson State Community College,326908,Mullins William,10/11/2018,108,Current Unrestricted,Professional Fees
31,Jefferson State Community College,326909,NCS Pearson ,10/11/2018,32.5,AARP FDN/SUPPLEMENTAL GRANT 2017,Materials and Supplies
31,Jefferson State Community College,326909,NCS Pearson ,10/11/2018,1022.5,Social Innovation Fund 2018,Materials and Supplies
31,Jefferson State Community College,326910,Norris James,10/11/2018,2909.21,CT Instr. Supplements 16-17CTIS08,Out-of-State Travel
31,Jefferson State Community College,326911,Office Depot ,10/11/2018,5083.75,Current Unrestricted,Materials and Supplies
31,Jefferson State Community College,326912,Pearson Education ,10/11/2018,600,AE GED Fee Voucher Waiver Funds,GED Testing Expense
31,Jefferson State Community College,326913,Pocket Nurse Enterprises  Inc. ,10/11/2018,2243.28,CTE Dual Enroll 17-18DE12,Materials and Supplies
31,Jefferson State Community College,326913,Pocket Nurse Enterprises  Inc. ,10/11/2018,3196.91,Current Unrestricted,Materials and Supplies
31,Jefferson State Community College,326914,STERIS Corporation ,10/11/2018,29674.56,Current Unrestricted,Instruct Equip >$5000
31,Jefferson State Community College,326915,Stivers Ford Lincoln  Inc. ,10/11/2018,34266,Current Unrestricted,Tech Instruct >$25000
31,Jefferson State Community College,326916,Wheeler Christopher,10/11/2018,324,Current Unrestricted,Professional Fees
31,Jefferson State Community College,123255,Busby Yvette,10/15/2018,988,Current Unrestricted,Payroll
31,Jefferson State Community College,123256,Jefferson Angelica,10/15/2018,950,Current Unrestricted,Payroll
31,Jefferson State Community College,123257,Carnes Jeddie,10/15/2018,693.12,DHR AITPDN Grant #2201 18/19,Payroll
31,Jefferson State Community College,123258,Charping Ronda,10/15/2018,757.12,Current Unrestricted,Payroll
31,Jefferson State Community College,123259,Armstrong Adell,10/15/2018,517.94,Current Unrestricted,Payroll
31,Jefferson State Community College,123260,Harris Sandra,10/15/2018,1161.45,Current Unrestricted,Payroll
31,Jefferson State Community College,123261,Anderson Jennifer,10/15/2018,901.26,Current Unrestricted,Payroll
31,Jefferson State Community College,123262,Anwah Elsie,10/15/2018,734.36,Current Unrestricted,Payroll
31,Jefferson State Community College,123263,Baker Tabitha,10/15/2018,700.98,Current Unrestricted,Payroll
31,Jefferson State Community College,123264,Bolin Amia,10/15/2018,500.7,Current Unrestricted,Payroll
31,Jefferson State Community College,123265,Bozeman Amber,10/15/2018,634.22,Current Unrestricted,Payroll
31,Jefferson State Community College,123266,Brannum Beth,10/15/2018,1468.72,Current Unrestricted,Payroll
31,Jefferson State Community College,123267,Buie Cindie,10/15/2018,667.6,Current Unrestricted,Payroll
31,Jefferson State Community College,123268,Bynum Christopher,10/15/2018,350.49,Current Unrestricted,Payroll
31,Jefferson State Community College,123269,Chen Ja Lin,10/15/2018,667.6,Current Unrestricted,Payroll
31,Jefferson State Community College,123270,Walker Allison,10/15/2018,1268.44,Current Unrestricted,Payroll
31,Jefferson State Community College,123271,Coleman Carolyn,10/15/2018,801.12,Current Unrestricted,Payroll
31,Jefferson State Community College,123272,Connelly Krista,10/15/2018,1201.68,Current Unrestricted,Payroll
31,Jefferson State Community College,123273,Cronin Mary,10/15/2018,901.26,Current Unrestricted,Payroll
31,Jefferson State Community College,123274,Cunningham Dana,10/15/2018,1068.16,Current Unrestricted,Payroll
31,Jefferson State Community College,123275,Duke Juanita,10/15/2018,433.94,Current Unrestricted,Payroll
31,Jefferson State Community College,123276,Ellis April,10/15/2018,600.84,Current Unrestricted,Payroll
31,Jefferson State Community College,123277,Fisher Heather,10/15/2018,567.46,Current Unrestricted,Payroll
31,Jefferson State Community College,123278,Gore Claudia,10/15/2018,1268.44,Current Unrestricted,Payroll
31,Jefferson State Community College,123279,Hale Matthew,10/15/2018,667.6,Current Unrestricted,Payroll
31,Jefferson State Community College,123280,Hall Daniel,10/15/2018,867.88,Current Unrestricted,Payroll
31,Jefferson State Community College,123281,Hallmark Brenda,10/15/2018,1168.3,Current Unrestricted,Payroll
31,Jefferson State Community College,123282,Harper Charman,10/15/2018,450.63,Current Unrestricted,Payroll
31,Jefferson State Community College,123283,Harris Consetta,10/15/2018,550.77,Current Unrestricted,Payroll
31,Jefferson State Community College,123284,Henry Jessica,10/15/2018,383.87,Current Unrestricted,Payroll
31,Jefferson State Community College,123285,Hutto Tiffany,10/15/2018,267.04,Current Unrestricted,Payroll
31,Jefferson State Community College,123286,Lalak Samantha,10/15/2018,333.8,Current Unrestricted,Payroll
31,Jefferson State Community College,123287,Liddle Anna,10/15/2018,734.36,Current Unrestricted,Payroll
31,Jefferson State Community College,123288,Maddox Lindsey,10/15/2018,567.46,Current Unrestricted,Payroll
31,Jefferson State Community College,123289,Manning Mandi,10/15/2018,801.12,Current Unrestricted,Payroll
31,Jefferson State Community College,123290,McEntire Ann,10/15/2018,367.18,Current Unrestricted,Payroll
31,Jefferson State Community College,123291,Milam Toshia,10/15/2018,634.22,Current Unrestricted,Payroll
31,Jefferson State Community College,123292,Miller Shaleen,10/15/2018,333.8,Current Unrestricted,Payroll
31,Jefferson State Community College,123293,Montealegre Wendy,10/15/2018,1201.68,Current Unrestricted,Payroll
31,Jefferson State Community College,123294,Mullins Kaitlin,10/15/2018,700.98,Current Unrestricted,Payroll
31,Jefferson State Community College,123295,Odom Donna,10/15/2018,667.6,Current Unrestricted,Payroll
31,Jefferson State Community College,123296,Peters Belle,10/15/2018,267.04,Current Unrestricted,Payroll
31,Jefferson State Community College,123297,Ramsey Casey,10/15/2018,1268.44,Current Unrestricted,Payroll
31,Jefferson State Community College,123298,Rasbury Matthew,10/15/2018,327.12,Current Unrestricted,Payroll
31,Jefferson State Community College,123299,Riley Jeanny,10/15/2018,200.28,Current Unrestricted,Payroll
31,Jefferson State Community College,123300,Ross Enrika,10/15/2018,901.26,Current Unrestricted,Payroll
31,Jefferson State Community College,123301,Saemaldaher Melanie,10/15/2018,667.6,Current Unrestricted,Payroll
31,Jefferson State Community College,123302,Sasser Carol,10/15/2018,1235.06,Current Unrestricted,Payroll
31,Jefferson State Community College,123303,Saucer Rachel,10/15/2018,467.32,Current Unrestricted,Payroll
31,Jefferson State Community College,123304,Self Allison,10/15/2018,1268.44,Current Unrestricted,Payroll
31,Jefferson State Community College,123305,Skanes Makeya,10/15/2018,534.08,Current Unrestricted,Payroll
31,Jefferson State Community College,123306,Sledge Sherman,10/15/2018,333.8,Current Unrestricted,Payroll
31,Jefferson State Community College,123307,Slevin Darla,10/15/2018,1268.44,Current Unrestricted,Payroll
31,Jefferson State Community College,123308,Smith Christopher,10/15/2018,534.08,Current Unrestricted,Payroll
31,Jefferson State Community College,123309,Smith Jessimene,10/15/2018,534.08,Current Unrestricted,Payroll
31,Jefferson State Community College,123310,Snipes Britney,10/15/2018,400.56,Current Unrestricted,Payroll
31,Jefferson State Community College,123311,Stephens Laura,10/15/2018,634.22,Current Unrestricted,Payroll
31,Jefferson State Community College,123312,Stocks Susan,10/15/2018,1268.44,Current Unrestricted,Payroll
31,Jefferson State Community College,123313,Thomas Sarah,10/15/2018,1268.44,Current Unrestricted,Payroll
31,Jefferson State Community College,123314,Tilt Alex,10/15/2018,667.6,Current Unrestricted,Payroll
31,Jefferson State Community College,123315,Touchstone Erica,10/15/2018,600.84,Current Unrestricted,Payroll
31,Jefferson State Community College,123316,Turner Taylor,10/15/2018,484.01,Current Unrestricted,Payroll
31,Jefferson State Community College,123317,Wade Lenora,10/15/2018,400.56,Current Unrestricted,Payroll
31,Jefferson State Community College,123318,Weeks Laura,10/15/2018,100.14,Current Unrestricted,Payroll
31,Jefferson State Community College,123319,Wells Gabrielle,10/15/2018,968.02,Current Unrestricted,Payroll
31,Jefferson State Community College,123320,White Kelley,10/15/2018,333.8,Current Unrestricted,Payroll
31,Jefferson State Community College,123321,Williamson Mary,10/15/2018,1068.16,Current Unrestricted,Payroll
31,Jefferson State Community College,123322,Wynn Laura,10/15/2018,1268.44,Current Unrestricted,Payroll
31,Jefferson State Community College,123323,Balog Kimberly,10/15/2018,216.32,Current Unrestricted,Payroll
31,Jefferson State Community College,123324,Bell Na'Tasha,10/15/2018,524.16,Current Unrestricted,Payroll
31,Jefferson State Community College,123325,Gentry Natalie,10/15/2018,432.64,Current Unrestricted,Payroll
31,Jefferson State Community College,123326,Hogan Kenneth,10/15/2018,174.72,Current Unrestricted,Payroll
31,Jefferson State Community College,123327,Yates Lanette,10/15/2018,162.24,Current Unrestricted,Payroll
31,Jefferson State Community College,123328,Fach Colin,10/15/2018,1034.36,Current Unrestricted,Payroll
31,Jefferson State Community College,123329,Lowe Russell,10/15/2018,709.4,Current Unrestricted,Payroll
31,Jefferson State Community College,123330,McDonnell Kyle,10/15/2018,1347.86,Current Unrestricted,Payroll
31,Jefferson State Community College,123331,Panepento Matthew,10/15/2018,1034.36,Current Unrestricted,Payroll
31,Jefferson State Community College,123332,Ward William,10/15/2018,2068.72,Current Unrestricted,Payroll
31,Jefferson State Community College,123333,Addington Jennifer,10/15/2018,332.8,Current Unrestricted,Payroll
31,Jefferson State Community College,123334,Andrews Latoya,10/15/2018,405.38,Current Unrestricted,Payroll
31,Jefferson State Community College,123335,Bennett Sandra,10/15/2018,1081.6,Current Unrestricted,Payroll
31,Jefferson State Community College,123336,Burrell Sybil,10/15/2018,374.4,Current Unrestricted,Payroll
31,Jefferson State Community College,123337,Carmichael George,10/15/2018,499.2,Current Unrestricted,Payroll
31,Jefferson State Community College,123338,Chappel Delena,10/15/2018,873.6,Current Unrestricted,Payroll
31,Jefferson State Community College,123339,Crump Kimberly,10/15/2018,499.2,Current Unrestricted,Payroll
31,Jefferson State Community College,123340,Fagan Shelley,10/15/2018,1164.8,Current Unrestricted,Payroll
31,Jefferson State Community College,123341,Flanagan Soneaqua,10/15/2018,1414.4,Current Unrestricted,Payroll
31,Jefferson State Community College,123342,Gober Becky,10/15/2018,538.72,Current Unrestricted,Payroll
31,Jefferson State Community College,123343,Graves Candise,10/15/2018,187.2,Current Unrestricted,Payroll
31,Jefferson State Community College,123344,Green Deedra,10/15/2018,291.2,Current Unrestricted,Payroll
31,Jefferson State Community College,123345,Hagood Julia,10/15/2018,446.5,Current Unrestricted,Payroll
31,Jefferson State Community College,123346,Hodges Juliana,10/15/2018,665.6,Current Unrestricted,Payroll
31,Jefferson State Community College,123347,McLain Christine,10/15/2018,946.4,City of Birmingham BOLD Grant,Payroll
31,Jefferson State Community College,123348,McNealey Kelly,10/15/2018,210,Current Unrestricted,Payroll
31,Jefferson State Community College,123349,Mills Justin,10/15/2018,249.6,Current Unrestricted,Payroll
31,Jefferson State Community College,123350,Moore Caitlin,10/15/2018,665.6,Current Unrestricted,Payroll
31,Jefferson State Community College,123351,Murphy Penny,10/15/2018,468,Current Unrestricted,Payroll
31,Jefferson State Community College,123352,Oaks Christy,10/15/2018,52,Current Unrestricted,Payroll
31,Jefferson State Community College,123353,Parker Lakisha,10/15/2018,582.4,Current Unrestricted,Payroll
31,Jefferson State Community College,123354,Parsons Charles,10/15/2018,270.4,Current Unrestricted,Payroll
31,Jefferson State Community College,123355,Rivers Kelli,10/15/2018,499.2,Current Unrestricted,Payroll
31,Jefferson State Community College,123356,Robinson Ebone,10/15/2018,405.6,Current Unrestricted,Payroll
31,Jefferson State Community College,123357,Swift Mitzi,10/15/2018,291.2,Current Unrestricted,Payroll
31,Jefferson State Community College,123358,Thomas Linda,10/15/2018,291.2,Current Unrestricted,Payroll
31,Jefferson State Community College,123359,Travis Adrienne,10/15/2018,240,Current Unrestricted,Payroll
31,Jefferson State Community College,123360,Wagstaff Howard,10/15/2018,665.6,Current Unrestricted,Payroll
31,Jefferson State Community College,123361,Weeks Rebecca,10/15/2018,124.8,Current Unrestricted,Payroll
31,Jefferson State Community College,123362,White Rebecca,10/15/2018,332.8,Current Unrestricted,Payroll
31,Jefferson State Community College,123363,Williams-Gillard Taneka,10/15/2018,332.8,Current Unrestricted,Payroll
31,Jefferson State Community College,123364,Wright Karla,10/15/2018,332.8,Current Unrestricted,Payroll
31,Jefferson State Community College,123365,Roe Frankie,10/15/2018,517.94,Current Unrestricted,Payroll
31,Jefferson State Community College,123366,Clifton Tracy,10/15/2018,605.44,Current Unrestricted,Payroll
31,Jefferson State Community College,123367,Stephens Sheila,10/15/2018,1000.48,Current Unrestricted,Payroll
31,Jefferson State Community College,123368,Pair Edward,10/15/2018,600.84,Current Unrestricted,Payroll
31,Jefferson State Community College,123369,Smith Kandice,10/15/2018,408.9,Current Unrestricted,Payroll
31,Jefferson State Community College,123370,Smith Erin,10/15/2018,1064,Current Unrestricted,Payroll
31,Jefferson State Community College,123371,Dunn Lisa,10/15/2018,534.08,Current Unrestricted,Payroll
31,Jefferson State Community College,123372,Steele B,10/15/2018,191.94,Current Unrestricted,Payroll
31,Jefferson State Community College,123373,Haywood James,10/15/2018,680.5,Current Unrestricted,Payroll
31,Jefferson State Community College,123374,High Heather,10/15/2018,204.15,Current Unrestricted,Payroll
31,Jefferson State Community College,123375,Landry Audrey,10/15/2018,952.7,Current Unrestricted,Payroll
31,Jefferson State Community College,123376,Cartwright Andrew,10/15/2018,517.94,Current Unrestricted,Payroll
31,Jefferson State Community College,123377,Baker Valerie,10/15/2018,605.44,Current Unrestricted,Payroll
31,Jefferson State Community College,123378,Warren Germaine,10/15/2018,693.5,Current Unrestricted,Payroll
31,Jefferson State Community College,123379,Stewart Janice,10/15/2018,605.44,Current Unrestricted,Payroll
31,Jefferson State Community College,123380,Moore Kimberly,10/15/2018,633.82,Current Unrestricted,Payroll
31,Jefferson State Community College,123381,Acoff Kenniyah,10/15/2018,361.76,Current Unrestricted,Payroll
31,Jefferson State Community College,123382,Anderson Davida,10/15/2018,361.76,Current Unrestricted,Payroll
31,Jefferson State Community College,123383,Bailey Courtney,10/15/2018,185.64,Current Unrestricted,Payroll
31,Jefferson State Community College,123384,Blankenship Jamie,10/15/2018,361.76,Current Unrestricted,Payroll
31,Jefferson State Community College,123385,Brown Carol,10/15/2018,361.76,Current Unrestricted,Payroll
31,Jefferson State Community College,123386,Daniels Nautyca,10/15/2018,361.76,Current Unrestricted,Payroll
31,Jefferson State Community College,123387,Dercole Beth,10/15/2018,361.76,Current Unrestricted,Payroll
31,Jefferson State Community College,123388,Downey Judy,10/15/2018,361.76,Current Unrestricted,Payroll
31,Jefferson State Community College,123389,Duke Trinatie,10/15/2018,361.76,Current Unrestricted,Payroll
31,Jefferson State Community College,123390,Dunning William,10/15/2018,361.76,Current Unrestricted,Payroll
31,Jefferson State Community College,123391,Elliott Julie,10/15/2018,517.94,Current Unrestricted,Payroll
31,Jefferson State Community College,123392,Evans Mary,10/15/2018,361.76,Current Unrestricted,Payroll
31,Jefferson State Community College,123393,Firzlaff Kathryn,10/15/2018,361.76,Current Unrestricted,Payroll
31,Jefferson State Community College,123394,Hicks Candace,10/15/2018,446.5,Current Unrestricted,Payroll
31,Jefferson State Community College,123395,Jones Awilda,10/15/2018,361.76,Current Unrestricted,Payroll
31,Jefferson State Community College,123396,Liddle Elizabeth,10/15/2018,517.94,Current Unrestricted,Payroll
31,Jefferson State Community College,123397,Putnam Patricia,10/15/2018,475,Current Unrestricted,Payroll
31,Jefferson State Community College,123398,Turner Michael,10/15/2018,361.76,Current Unrestricted,Payroll
31,Jefferson State Community College,123399,Tyler Lisa,10/15/2018,361.76,Current Unrestricted,Payroll
31,Jefferson State Community College,123400,Brown Kimberly,10/15/2018,361.76,Current Unrestricted,Payroll
31,Jefferson State Community College,123401,Crim Margaret,10/15/2018,785.2,Current Unrestricted,Payroll
31,Jefferson State Community College,123402,Kirk Willodean,10/15/2018,361.76,Current Unrestricted,Payroll
31,Jefferson State Community College,123403,Lewis Stephanie,10/15/2018,361.76,Current Unrestricted,Payroll
31,Jefferson State Community College,123404,Prevo Deborah,10/15/2018,517.94,Current Unrestricted,Payroll
31,Jefferson State Community College,123405,Wilson Candace,10/15/2018,342.72,Current Unrestricted,Payroll
31,Jefferson State Community College,123406,Adams Floyce,10/15/2018,517.94,Current Unrestricted,Payroll
31,Jefferson State Community College,123407,Craig Makayla,10/15/2018,361.76,Current Unrestricted,Payroll
31,Jefferson State Community College,123408,Serna Cyndy,10/15/2018,285.6,Current Unrestricted,Payroll
31,Jefferson State Community College,123409,Kirkland Olivia,10/15/2018,361.76,Current Unrestricted,Payroll
31,Jefferson State Community College,123410,Minor Angela,10/15/2018,361.76,Current Unrestricted,Payroll
31,Jefferson State Community College,123411,Simpson Andrea,10/15/2018,517.94,Current Unrestricted,Payroll
31,Jefferson State Community College,123412,Twymon Erika,10/15/2018,299.88,Current Unrestricted,Payroll
31,Jefferson State Community College,123413,White Sandra,10/15/2018,361.76,Current Unrestricted,Payroll
31,Jefferson State Community College,123414,Adams Tracy,10/15/2018,936,Current Unrestricted,Payroll
31,Jefferson State Community College,123415,Carlee Jerrica,10/15/2018,517.94,Current Unrestricted,Payroll
31,Jefferson State Community College,123416,Duren Courtney,10/15/2018,304.64,Current Unrestricted,Payroll
31,Jefferson State Community College,123417,Edwards Tracy,10/15/2018,33.32,Current Unrestricted,Payroll
31,Jefferson State Community College,123418,Rheaume Stephanie,10/15/2018,285.6,Current Unrestricted,Payroll
31,Jefferson State Community College,123419,Graves Austin,10/15/2018,361.76,Current Unrestricted,Payroll
31,Jefferson State Community College,123420,Harmon Judy,10/15/2018,304.64,Current Unrestricted,Payroll
31,Jefferson State Community College,123421,Lacy Cynthia,10/15/2018,304.64,Current Unrestricted,Payroll
31,Jefferson State Community College,123422,Davis Patricia,10/15/2018,361.76,Current Unrestricted,Payroll
31,Jefferson State Community College,123423,Mitchell Michael,10/15/2018,517.94,Current Unrestricted,Payroll
31,Jefferson State Community College,123424,Brown Mavis,10/15/2018,361.76,Current Unrestricted,Payroll
31,Jefferson State Community College,123425,Brown Patterson Audrey,10/15/2018,361.76,Current Unrestricted,Payroll
31,Jefferson State Community College,123426,Burge Kathy,10/15/2018,361.76,Current Unrestricted,Payroll
31,Jefferson State Community College,123427,Benefield Larry,10/15/2018,252.16,Current Unrestricted,Payroll
31,Jefferson State Community College,123428,Boggan Brenda,10/15/2018,152.32,Current Unrestricted,Payroll
31,Jefferson State Community College,123429,Brown Martin,10/15/2018,136.2,Current Unrestricted,Payroll
31,Jefferson State Community College,123430,Burton Kenneth,10/15/2018,463.42,Current Unrestricted,Payroll
31,Jefferson State Community College,123431,Carson William,10/15/2018,490.68,Current Unrestricted,Payroll
31,Jefferson State Community College,123432,Cornner Thaddeus,10/15/2018,408.9,Current Unrestricted,Payroll
31,Jefferson State Community College,123433,Crowe Jeffrey,10/15/2018,381.64,Current Unrestricted,Payroll
31,Jefferson State Community College,123434,Gilchrist Benny,10/15/2018,517.94,Current Unrestricted,Payroll
31,Jefferson State Community College,123435,Hicks Alan,10/15/2018,463.42,Current Unrestricted,Payroll
31,Jefferson State Community College,123436,Keitges Steven,10/15/2018,436.16,Current Unrestricted,Payroll
31,Jefferson State Community College,123437,Lawley Rodney,10/15/2018,436.16,Current Unrestricted,Payroll
31,Jefferson State Community College,123438,McCoy Matthew,10/15/2018,517.94,Current Unrestricted,Payroll
31,Jefferson State Community College,123439,Milam Benjamin,10/15/2018,261.8,Current Unrestricted,Payroll
31,Jefferson State Community College,123440,Miller James,10/15/2018,517.94,Current Unrestricted,Payroll
31,Jefferson State Community College,123441,Nelson James,10/15/2018,304.64,Current Unrestricted,Payroll
31,Jefferson State Community College,123442,Phillips Robert,10/15/2018,517.94,Current Unrestricted,Payroll
31,Jefferson State Community College,123443,Sartain Jeffrey,10/15/2018,517.94,Current Unrestricted,Payroll
31,Jefferson State Community College,123444,Tidmore Cecil,10/15/2018,436.16,Current Unrestricted,Payroll
31,Jefferson State Community College,123445,Turner Yolanda,10/15/2018,304.64,Current Unrestricted,Payroll
31,Jefferson State Community College,123446,Wilson David,10/15/2018,654.24,Current Unrestricted,Payroll
31,Jefferson State Community College,123447,Stoeckert Wendi,10/15/2018,446.5,Current Unrestricted,Payroll
31,Jefferson State Community College,123448,Steele Pamela,10/15/2018,446.5,Current Unrestricted,Payroll
31,Jefferson State Community College,123449,Harris Terry,10/15/2018,228.48,Current Unrestricted,Payroll
31,Jefferson State Community College,123450,Amerson-Dobbs Jessica,10/15/2018,361.76,Current Unrestricted,Payroll
31,Jefferson State Community College,123451,Dancy Darryl,10/15/2018,323.68,Current Unrestricted,Payroll
31,Jefferson State Community College,123452,Grayson Shirley,10/15/2018,361.76,Current Unrestricted,Payroll
31,Jefferson State Community College,123453,Moore Shanine,10/15/2018,592.04,Current Unrestricted,Payroll
31,Jefferson State Community College,123454,Payne Adrian,10/15/2018,361.76,Current Unrestricted,Payroll
31,Jefferson State Community College,123455,Eddings Adrienne,10/15/2018,498.18,Current Unrestricted,Payroll
31,Jefferson State Community College,123456,Badio Jessical,10/15/2018,782.18,Adult Ed Fed 18/19,Payroll
31,Jefferson State Community College,123457,Baker Mario,10/15/2018,684,Adult Ed State 18/19,Payroll
31,Jefferson State Community College,123458,Brice Sallie,10/15/2018,575.81,Adult Ed State 18/19,Payroll
31,Jefferson State Community College,123459,Callins Lillian,10/15/2018,454.51,Adult Ed Fed 18/19,Payroll
31,Jefferson State Community College,123460,Coleman Henry,10/15/2018,803.32,Adult Ed Fed 18/19,Payroll
31,Jefferson State Community College,123461,Cook Kimberly,10/15/2018,761.04,Adult Ed State 18/19,Payroll
31,Jefferson State Community College,123462,Cox Diane,10/15/2018,803.32,Adult Ed State 18/19,Payroll
31,Jefferson State Community College,123463,Davis Jeffrey,10/15/2018,894.08,Adult Ed State 18/19,Payroll
31,Jefferson State Community College,123464,Denard Sandra,10/15/2018,739.9,Adult Ed State 18/19,Payroll
31,Jefferson State Community College,123465,Eichhorn Rhonda,10/15/2018,528.5,Adult Ed State 18/19,Payroll
31,Jefferson State Community College,123466,Latham Shane,10/15/2018,803.32,Adult Ed Fed 18/19,Payroll
31,Jefferson State Community College,123467,Lewis Ingrid,10/15/2018,644.77,Adult Ed Fed 18/19,Payroll
31,Jefferson State Community College,123468,Miner Rebecca,10/15/2018,692.34,Adult Ed State 18/19,Payroll
31,Jefferson State Community College,123469,Montgomery Helen,10/15/2018,676.48,Adult Ed State 18/19,Payroll
31,Jefferson State Community College,123470,Moore Cynthia,10/15/2018,285.39,Adult Ed State 18/19,Payroll
31,Jefferson State Community College,123471,Morgan Mary,10/15/2018,436.8,Adult Ed Inst. State 18/19,Payroll
31,Jefferson State Community College,123472,Noyes Sara,10/15/2018,803.32,Adult Ed State 18/19,Payroll
31,Jefferson State Community College,123473,Oberneder Connie,10/15/2018,684,Adult Ed State 18/19,Payroll
31,Jefferson State Community College,123474,Pearson Regina,10/15/2018,592.8,Adult Ed State 18/19,Payroll
31,Jefferson State Community College,123475,Porter Nancy,10/15/2018,634.2,Adult Ed State 18/19,Payroll
31,Jefferson State Community College,123476,Rea Patricia,10/15/2018,761.04,Adult Ed Inst. State 18/19,Payroll
31,Jefferson State Community College,123477,Rudd Julia,10/15/2018,655.34,Adult Ed State 18/19,Payroll
31,Jefferson State Community College,123478,Scott Angela,10/15/2018,359.38,Adult Ed Fed 18/19,Payroll
31,Jefferson State Community College,123479,Sheffield Virginia,10/15/2018,62.4,Adult Ed State 18/19,Payroll
31,Jefferson State Community College,123480,Sheikh Linda,10/15/2018,528.5,Adult Ed State 18/19,Payroll
31,Jefferson State Community College,123481,Skalac Robyn,10/15/2018,380.52,Adult Ed State 18/19,Payroll
31,Jefferson State Community College,123482,Smith Paula,10/15/2018,380.52,Adult Ed State 18/19,Payroll
31,Jefferson State Community College,123483,Snider Charles,10/15/2018,850.94,Adult Ed State 18/19,Payroll
31,Jefferson State Community College,123484,Spraberry Mollie,10/15/2018,715.26,Adult Ed State 18/19,Payroll
31,Jefferson State Community College,123485,Springfield John,10/15/2018,561.6,Adult Ed State 18/19,Payroll
31,Jefferson State Community College,123486,Sublett Sherry,10/15/2018,803.32,Adult Ed State 18/19,Payroll
31,Jefferson State Community College,123487,Tracy Sandi,10/15/2018,803.32,Adult Ed State 18/19,Payroll
31,Jefferson State Community College,123488,Vinson Phyllis,10/15/2018,697.62,Adult Ed State 18/19,Payroll
31,Jefferson State Community College,123489,Ware Donna,10/15/2018,465.12,Adult Ed State 18/19,Payroll
31,Jefferson State Community College,123490,Ware William,10/15/2018,249.6,Adult Ed State 18/19,Payroll
31,Jefferson State Community College,123491,Wiginton Beverly,10/15/2018,401.66,Adult Ed State 18/19,Payroll
31,Jefferson State Community College,123492,Wood Gayle,10/15/2018,274.82,Adult Ed State 18/19,Payroll
31,Jefferson State Community College,123493,Cannon Kimberly,10/15/2018,361.76,Current Unrestricted,Payroll
31,Jefferson State Community College,123494,Breaux Carolyn,10/15/2018,592.04,Current Unrestricted,Payroll
31,Jefferson State Community College,123495,Frank Theresa,10/15/2018,451.36,Current Unrestricted,Payroll
31,Jefferson State Community College,123496,Lee Felicia,10/15/2018,174.72,Current Unrestricted,Payroll
31,Jefferson State Community College,123497,Smith Victoria,10/15/2018,498.56,Current Unrestricted,Payroll
31,Jefferson State Community College,123498,Gumbs Andrea,10/15/2018,333.2,Current Unrestricted,Payroll
31,Jefferson State Community College,123499,Niswander Carly,10/15/2018,333.2,Current Unrestricted,Payroll
31,Jefferson State Community College,123500,Dent Robert,10/15/2018,361.76,Current Unrestricted,Payroll
31,Jefferson State Community College,123501,Wilson Peri-Anne,10/15/2018,1879.67,Current Unrestricted,Payroll
31,Jefferson State Community College,123502,Hawkins Chelsie,10/15/2018,1046.83,DHR AITPDN Grant #2201 18/19,Payroll
31,Jefferson State Community College,123503,Jebeles Dimitra,10/15/2018,1284.92,Current Unrestricted,Payroll
31,Jefferson State Community College,123504,Stockley Ginger,10/15/2018,1959,Current Unrestricted,Payroll
31,Jefferson State Community College,123505,Self Bonnie,10/15/2018,2315.96,Current Unrestricted,Payroll
31,Jefferson State Community College,123506,Dunning Alexis,10/15/2018,2236.54,Current Unrestricted,Payroll
31,Jefferson State Community College,123507,Carr Kathi,10/15/2018,1641.67,Current Unrestricted,Payroll
31,Jefferson State Community College,123508,Coker Pamela,10/15/2018,1086.46,Current Unrestricted,Payroll
31,Jefferson State Community College,123509,Keenum Lisa,10/15/2018,2315.96,Current Unrestricted,Payroll
31,Jefferson State Community College,123510,McLendon Rita,10/15/2018,1959,Current Unrestricted,Payroll
31,Jefferson State Community College,123511,Archer Teresa,10/15/2018,2117.75,Current Unrestricted,Payroll
31,Jefferson State Community College,123512,Hughes Erma,10/15/2018,2434.96,Current Unrestricted,Payroll
31,Jefferson State Community College,123513,Kimble Lisa,10/15/2018,2077.79,Current Unrestricted,Payroll
31,Jefferson State Community College,123514,DeLoach Merissa,10/15/2018,1403.83,Current Unrestricted,Payroll
31,Jefferson State Community College,123515,Jackson Debra,10/15/2018,1959,Current Unrestricted,Payroll
31,Jefferson State Community College,123516,Stewart Lisa,10/15/2018,1959,Current Unrestricted,Payroll
31,Jefferson State Community College,123517,Harris Seena,10/15/2018,1959,Current Unrestricted,Payroll
31,Jefferson State Community College,123518,Wallace Preston,10/15/2018,2496.54,Current Unrestricted,Payroll
31,Jefferson State Community College,123519,Ray Beth,10/15/2018,1039.67,Current Unrestricted,Payroll
31,Jefferson State Community College,123520,Cooper Ginger,10/15/2018,1760.75,Current Unrestricted,Payroll
31,Jefferson State Community College,123521,Pugh Sandra,10/15/2018,2315.96,Current Unrestricted,Payroll
31,Jefferson State Community College,123522,Cox Melanie,10/15/2018,1959,Current Unrestricted,Payroll
31,Jefferson State Community College,123523,Braswell Gail,10/15/2018,1324.46,Current Unrestricted,Payroll
31,Jefferson State Community College,123524,Pickens Elizabeth,10/15/2018,2038.38,Current Unrestricted,Payroll
31,Jefferson State Community College,123525,Chamblin Juanita,10/15/2018,2530.56,Current Unrestricted,Payroll
31,Jefferson State Community College,123526,Key Karen,10/15/2018,2315.96,Current Unrestricted,Payroll
31,Jefferson State Community College,123527,Sutton Edreama,10/15/2018,2903.91,Current Unrestricted,Payroll
31,Jefferson State Community College,123528,Boackle Emil,10/15/2018,1641.92,Current Unrestricted,Payroll
31,Jefferson State Community College,123529,Burney Roscelia,10/15/2018,1959,Current Unrestricted,Payroll
31,Jefferson State Community College,123530,Call Jacob,10/15/2018,1958.79,Current Unrestricted,Payroll
31,Jefferson State Community College,123531,Carpenter Valencia,10/15/2018,1562.54,Current Unrestricted,Payroll
31,Jefferson State Community College,123532,Collins Angela,10/15/2018,1959,Current Unrestricted,Payroll
31,Jefferson State Community College,123533,Duncan Leconyea,10/15/2018,1641.92,Current Unrestricted,Payroll
31,Jefferson State Community College,123534,Fennell Tapeka,10/15/2018,2122.79,Current Unrestricted,Payroll
31,Jefferson State Community College,123535,Fraser Thompson Stacye,10/15/2018,2315.96,Current Unrestricted,Payroll
31,Jefferson State Community College,123536,Howard Amber,10/15/2018,1046.83,Current Unrestricted,Payroll
31,Jefferson State Community College,123537,Jones Juanita,10/15/2018,1641.92,Current Unrestricted,Payroll
31,Jefferson State Community College,123538,Mendez Roosevelt,10/15/2018,2132.21,Current Unrestricted,Payroll
31,Jefferson State Community College,123539,Pippens Amberetta,10/15/2018,1522.83,Current Unrestricted,Payroll
31,Jefferson State Community College,123540,Silor Virginia,10/15/2018,2434.96,Current Unrestricted,Payroll
31,Jefferson State Community College,123541,Sipe James,10/15/2018,1126.17,Current Unrestricted,Payroll
31,Jefferson State Community College,123542,Wangle Jonathan,10/15/2018,1046.83,Current Unrestricted,Payroll
31,Jefferson State Community College,123543,Whitten Alyssa,10/15/2018,2139.64,Current Unrestricted,Payroll
31,Jefferson State Community College,123544,Brownlee Lareatha,10/15/2018,2035.29,Current Unrestricted,Payroll
31,Jefferson State Community College,123545,Clark Natalya,10/15/2018,1562.54,Current Unrestricted,Payroll
31,Jefferson State Community College,123546,Cobb Linda,10/15/2018,2381.47,Current Unrestricted,Payroll
31,Jefferson State Community College,123547,Cobb Rose,10/15/2018,1879.42,Current Unrestricted,Payroll
31,Jefferson State Community College,123548,Ezell Laura,10/15/2018,1335.92,Current Unrestricted,Payroll
31,Jefferson State Community College,123549,McAdory Tracy,10/15/2018,2063,Current Unrestricted,Payroll
31,Jefferson State Community College,123550,Reach Brett,10/15/2018,2536.18,Current Unrestricted,Payroll
31,Jefferson State Community College,123551,Thomas Donna,10/15/2018,2038.38,Current Unrestricted,Payroll
31,Jefferson State Community College,123552,Dukes Angia,10/15/2018,1324.46,Current Unrestricted,Payroll
31,Jefferson State Community College,123553,Dunning Freddie,10/15/2018,2291.85,Current Unrestricted,Payroll
31,Jefferson State Community College,123554,Urbahns Laura,10/15/2018,1959,Current Unrestricted,Payroll
31,Jefferson State Community College,123555,Smith Heather,10/15/2018,1919.33,Current Unrestricted,Payroll
31,Jefferson State Community College,123556,Cimalore Beverly,10/15/2018,2157.21,Current Unrestricted,Payroll
31,Jefferson State Community College,123557,Culver Cynthia,10/15/2018,2391.37,Current Unrestricted,Payroll
31,Jefferson State Community College,123558,Fisher Debra,10/15/2018,1641.67,Current Unrestricted,Payroll
31,Jefferson State Community College,123559,Holman Larry,10/15/2018,1959,Current Unrestricted,Payroll
31,Jefferson State Community College,123560,Miller Stephanie,10/15/2018,2157.21,Current Unrestricted,Payroll
31,Jefferson State Community College,123561,Pollard Deborah,10/15/2018,1959,Current Unrestricted,Payroll
31,Jefferson State Community College,123562,Pettry Sherry,10/15/2018,2038.38,Current Unrestricted,Payroll
31,Jefferson State Community College,123563,Quekemeyer Carrliss,10/15/2018,1522.83,Current Unrestricted,Payroll
31,Jefferson State Community College,123564,Crotwell David,10/15/2018,1562.54,Current Unrestricted,Payroll
31,Jefferson State Community College,123565,Mathis Brenda,10/15/2018,1443.63,Current Unrestricted,Payroll
31,Jefferson State Community College,123566,Patterson William,10/15/2018,1483.21,Current Unrestricted,Payroll
31,Jefferson State Community College,123567,Richey Marty,10/15/2018,1959,Current Unrestricted,Payroll
31,Jefferson State Community College,123568,Starnes Jane,10/15/2018,2315.75,Current Unrestricted,Payroll
31,Jefferson State Community College,123569,Wilson Colton,10/15/2018,1046.96,Current Unrestricted,Payroll
31,Jefferson State Community College,123570,Freeman Robine,10/15/2018,1721.29,Current Unrestricted,Payroll
31,Jefferson State Community College,123571,Hodge Dylan,10/15/2018,982.71,Current Unrestricted,Payroll
31,Jefferson State Community College,123572,Tela Rebecca,10/15/2018,1364.29,Current Unrestricted,Payroll
31,Jefferson State Community College,123573,Wynn Michael,10/15/2018,1205.58,Current Unrestricted,Payroll
31,Jefferson State Community College,123574,Berry Archie,10/15/2018,1642.08,Current Unrestricted,Payroll
31,Jefferson State Community College,123575,Brown Kenneth,10/15/2018,1093.87,Current Unrestricted,Payroll
31,Jefferson State Community College,123576,Darnell Clay Estate of,10/15/2018,1443.63,Current Unrestricted,Payroll
31,Jefferson State Community College,123577,Cunningham Velma,10/15/2018,1523.04,Current Unrestricted,Payroll
31,Jefferson State Community College,123578,Johnson Jeannette,10/15/2018,1443.63,Current Unrestricted,Payroll
31,Jefferson State Community College,123579,Jones Harrietta,10/15/2018,1642.08,Current Unrestricted,Payroll
31,Jefferson State Community College,123580,Martin Jerry,10/15/2018,1364.29,Current Unrestricted,Payroll
31,Jefferson State Community College,123581,Pendleton Carolyn,10/15/2018,900.46,Current Unrestricted,Payroll
31,Jefferson State Community College,123582,Purvis Larose,10/15/2018,1523.04,Current Unrestricted,Payroll
31,Jefferson State Community College,123583,Reynolds Reginald,10/15/2018,1523.04,Current Unrestricted,Payroll
31,Jefferson State Community College,123584,Sanders Bernard,10/15/2018,1840.33,Current Unrestricted,Payroll
31,Jefferson State Community College,123585,Wilson Dave,10/15/2018,2117.75,Current Unrestricted,Payroll
31,Jefferson State Community College,123586,Duchock Anita,10/15/2018,1166,Current Unrestricted,Payroll
31,Jefferson State Community College,123587,Barnett C,10/15/2018,2139.82,Current Unrestricted,Payroll
31,Jefferson State Community College,123588,Capps Randi,10/15/2018,982.71,Current Unrestricted,Payroll
31,Jefferson State Community College,123589,Harris Michael,10/15/2018,1483.21,Current Unrestricted,Payroll
31,Jefferson State Community College,123590,Hawkins Michael,10/15/2018,1919.33,Current Unrestricted,Payroll
31,Jefferson State Community College,123591,Nathan Charlie,10/15/2018,1364.29,Current Unrestricted,Payroll
31,Jefferson State Community College,123592,Solomon R,10/15/2018,1879.67,Current Unrestricted,Payroll
31,Jefferson State Community College,123593,Toney Clifford,10/15/2018,2117.75,Current Unrestricted,Payroll
31,Jefferson State Community College,123594,Veal Burt,10/15/2018,1641.92,Current Unrestricted,Payroll
31,Jefferson State Community College,123595,Sullivan Terri,10/15/2018,1562.54,Current Unrestricted,Payroll
31,Jefferson State Community College,123596,Eason Haley,10/15/2018,1007.29,Current Unrestricted,Payroll
31,Jefferson State Community College,123597,Lee Earnestine,10/15/2018,1523.04,Current Unrestricted,Payroll
31,Jefferson State Community College,123598,Payne Russell,10/15/2018,2157.21,Current Unrestricted,Payroll
31,Jefferson State Community College,123599,Smith Twanna,10/15/2018,1523.04,Current Unrestricted,Payroll
31,Jefferson State Community College,123600,Steele Kelvin,10/15/2018,1443.63,Current Unrestricted,Payroll
31,Jefferson State Community College,123601,Cooper Robbie,10/15/2018,1165.83,Current Unrestricted,Payroll
31,Jefferson State Community College,123602,Washington Destin,10/15/2018,1364.29,Current Unrestricted,Payroll
31,Jefferson State Community College,123603,McDonald Thomas,10/15/2018,1959,Current Unrestricted,Payroll
31,Jefferson State Community College,123604,Green Vincent,10/15/2018,1324.46,Current Unrestricted,Payroll
31,Jefferson State Community College,123605,Geralds Jacqueline,10/15/2018,2038.38,Adult Ed State 18/19,Payroll
31,Jefferson State Community College,123606,Turner Jeanie,10/15/2018,2117.75,Current Unrestricted,Payroll
31,Jefferson State Community College,123607,Hughes Tina,10/15/2018,2108.94,Current Unrestricted,Payroll
31,Jefferson State Community College,326979,AASFAA ,10/15/2018,35,Current Unrestricted,Staff Develop-Staff
31,Jefferson State Community College,326980,AASFAA ,10/15/2018,260,Current Unrestricted,Staff Develop-Staff
31,Jefferson State Community College,326981,ACCSPRA ,10/15/2018,100,Current Unrestricted,Memberships
31,Jefferson State Community College,326982,ACT ,10/15/2018,486,Adult Ed - State Jul-Sep 17/18,Materials and Supplies
31,Jefferson State Community College,326982,ACT ,10/15/2018,1048,Current Unrestricted,Materials and Supplies
31,Jefferson State Community College,326982,ACT ,10/15/2018,18,MSSC/RTW Auto Mfg WF Init17-18ICI58,Materials and Supplies
31,Jefferson State Community College,326983,ACT ,10/15/2018,1032,Current Unrestricted,Materials and Supplies
31,Jefferson State Community College,326984,Agent's Choice Drug and Background Screening  Inc. ,10/15/2018,390,Adult Ed - State Jul-Sep 17/18,Professional Fees
31,Jefferson State Community College,326985,Alabama Community College System ,10/15/2018,336866,Current Unrestricted,Tuition-ACCS
31,Jefferson State Community College,326986,ALADE ,10/15/2018,1080,Current Unrestricted,Staff Develop-Faculty
31,Jefferson State Community College,326987,ALADE ,10/15/2018,100,Current Unrestricted,Memberships
31,Jefferson State Community College,326988,Bailey Mark,10/15/2018,640,Current Unrestricted,In-State Travel
31,Jefferson State Community College,326989,Battle Miller Construction Corporation ,10/15/2018,98129.65,Renewal and Replacement,Maint & Repairs
31,Jefferson State Community College,326990,Coburn Danielle,10/15/2018,300,Current Unrestricted,In-State Travel
31,Jefferson State Community College,326991,EBSCO Industries  Inc. ,10/15/2018,1680,Current Unrestricted,Tech Expenses-Student Related
31,Jefferson State Community College,326992,Electrical Maintenance & Troubleshooting LLC ,10/15/2018,790.4,MSSC/RTW Auto Mfg WF Init17-18ICI58,Contractual Services
31,Jefferson State Community College,326993,Fisher Scientific Company LLC ,10/15/2018,286.32,CTE Dual Enroll 17-18DE12,Materials and Supplies
31,Jefferson State Community College,326994,Follett Higher Education Group  Inc. ,10/15/2018,396.9,Adult Ed - State Jul-Sep 17/18,Scholarship-Books
31,Jefferson State Community College,326995,Georgia Erin,10/15/2018,100,Sigma Kappa Delta,Deposits Payable
31,Jefferson State Community College,326997,Jason's Deli ,10/15/2018,279.84,Current Unrestricted,Meeting Expense
31,Jefferson State Community College,326999,Kin Amanda,10/15/2018,1148.62,Current Unrestricted,Out-of-State Travel
31,Jefferson State Community College,327000,Mays Theresa,10/15/2018,76.3,Current Unrestricted,In-State Travel
31,Jefferson State Community College,327001,Norris James,10/15/2018,634.38,Current Unrestricted,In-State Travel
31,Jefferson State Community College,327002,Northeast Alabama Community College ,10/15/2018,425,Current Unrestricted,In-State Travel
31,Jefferson State Community College,327003,Office Depot ,10/15/2018,245.61,Adult Education - Fed Jul-Sep 17/18,Materials and Supplies
31,Jefferson State Community College,327003,Office Depot ,10/15/2018,99.17,Current Unrestricted,Materials and Supplies
31,Jefferson State Community College,327004,Opportunity Systems Incorporating Independence  LLC ,10/15/2018,748.8,Current Unrestricted,Contractual Services
31,Jefferson State Community College,327005,Pocket Nurse Enterprises  Inc. ,10/15/2018,18680.72,CTE Dual Enroll 17-18DE12,Materials and Supplies
31,Jefferson State Community College,327006,Rittenhouse Book Distributors Inc ,10/15/2018,400,Current Unrestricted,Tech Expenses-Student Related
31,Jefferson State Community College,327007,RJ Young Company ,10/15/2018,59.5,Current Unrestricted,Materials and Supplies
31,Jefferson State Community College,327008,Simmons Brenda,10/15/2018,19.08,Social Innovation Fund 2018,Meeting Expense
31,Jefferson State Community College,327009,Spire Alabama Inc. ,10/15/2018,17499.46,Current Unrestricted,Gas
31,Jefferson State Community College,327010,State of Alabama Dept of Finance ,10/15/2018,146769,Current Unrestricted,Insurance
31,Jefferson State Community College,327011,State of Alabama Dept of Finance ,10/15/2018,9616,Current Unrestricted,Insurance
31,Jefferson State Community College,327012,State of Alabama Dept of Labor ,10/15/2018,110,Renewal and Replacement,Professional Fees
31,Jefferson State Community College,327013,Stephens Nareiko,10/15/2018,1100.89,Current Unrestricted,Out-of-State Travel
31,Jefferson State Community College,327014,SunBelt Golf Corporation ,10/15/2018,5370,Current Unrestricted,Contractual Services
31,Jefferson State Community College,327015,SunBelt Golf Corporation ,10/15/2018,6360,Current Unrestricted,Contractual Services
31,Jefferson State Community College,327016,Teachers' Retirement System of Alabama ,10/15/2018,794.03,Payroll Clearing Fund,TRS Matching-State
31,Jefferson State Community College,327017,Technology Resource Corp ,10/15/2018,345.7,Current Unrestricted,Materials and Supplies
31,Jefferson State Community College,559527,O'Hern David,10/15/2018,463.42,Current Unrestricted,Payroll
31,Jefferson State Community College,559528,Broome Kristy,10/15/2018,267.04,Current Unrestricted,Payroll
31,Jefferson State Community College,559529,Cofield Sally,10/15/2018,500.24,Current Unrestricted,Payroll
31,Jefferson State Community College,559530,Williams Christine,10/15/2018,225.32,Current Unrestricted,Payroll
31,Jefferson State Community College,559531,Payne Michael,10/15/2018,1216,Current Unrestricted,Payroll
31,Jefferson State Community College,559532,Castleberry James,10/15/2018,142.8,Current Unrestricted,Payroll
31,Jefferson State Community College,559533,Morgan Rickey,10/15/2018,214.2,Current Unrestricted,Payroll
31,Jefferson State Community College,559534,Wickramasekera Judy,10/15/2018,361.76,Current Unrestricted,Payroll
31,Jefferson State Community College,559535,Dickinson Charles,10/15/2018,327.12,Current Unrestricted,Payroll
31,Jefferson State Community College,559536,Bennett Tamyris,10/15/2018,361.76,Current Unrestricted,Payroll
31,Jefferson State Community College,559537,Gillham Martha,10/15/2018,446.5,Current Unrestricted,Payroll
31,Jefferson State Community College,559538,Karluk Dakota,10/15/2018,361.76,Current Unrestricted,Payroll
31,Jefferson State Community College,559539,Rutledge Martha,10/15/2018,342.72,Current Unrestricted,Payroll
31,Jefferson State Community College,559540,Sanders Patsy,10/15/2018,276.08,Current Unrestricted,Payroll
31,Jefferson State Community College,559541,Smith Charlotte,10/15/2018,57.12,Current Unrestricted,Payroll
31,Jefferson State Community College,559542,Channel Raymond,10/15/2018,517.94,Current Unrestricted,Payroll
31,Jefferson State Community College,559543,Brand Charlotte,10/15/2018,359.55,Adult Ed Inst. State 18/19,Payroll
31,Jefferson State Community College,559544,Ellard Sandra,10/15/2018,1001.68,Adult Ed State 18/19,Payroll
31,Jefferson State Community College,559545,McGowan Elsie,10/15/2018,317.1,Adult Ed State 18/19,Payroll
31,Jefferson State Community College,559546,Roberts Barbara,10/15/2018,412.23,Adult Ed State 18/19,Payroll
31,Jefferson State Community College,559547,Sweatt Helen,10/15/2018,549.64,Adult Ed State 18/19,Payroll
31,Jefferson State Community College,559548,Young Katherine,10/15/2018,380.52,Adult Ed State 18/19,Payroll
31,Jefferson State Community College,559549,Foster Richard,10/15/2018,553.28,Current Unrestricted,Payroll
31,Jefferson State Community College,559614,Swann Christopher,10/15/2018,2152.94,Current Unrestricted,Payroll
31,Jefferson State Community College,559617,Gwin Adam,10/15/2018,1959,Current Unrestricted,Payroll
31,Jefferson State Community College,559618,Keitges Chanel,10/15/2018,2985.68,Current Unrestricted,Payroll
31,Jefferson State Community College,327077,AASFAA ,10/17/2018,35,Current Unrestricted,Staff Develop-Staff
31,Jefferson State Community College,327078,AASFAA ,10/17/2018,65,Current Unrestricted,Staff Develop-Staff
31,Jefferson State Community College,327079,Alabama Community College System ,10/17/2018,300,Current Unrestricted,Memberships
31,Jefferson State Community College,327080,American Choral Directors Association ,10/17/2018,125,Current Unrestricted,Memberships
31,Jefferson State Community College,327081,Coastal Alabama  Community College ,10/17/2018,200,Current Unrestricted,In-State Travel
31,Jefferson State Community College,327082,Grainger Industrial Supply ,10/17/2018,14548.12,CTE Dual Enroll 17-18DE12,Materials and Supplies
31,Jefferson State Community College,327083,Harland Technology Services ,10/17/2018,629,Current Unrestricted,Service Contracts
31,Jefferson State Community College,327084,Jones and Bartlett Publishers ,10/17/2018,7497,CTE Dual Enroll 17-18DE12,Materials and Supplies
31,Jefferson State Community College,327085,KGS Steel  Inc ,10/17/2018,62782,Current Unrestricted,Materials and Supplies
31,Jefferson State Community College,327086,McGriff Seibels & Williams Inc ,10/17/2018,1712,Current Unrestricted,Insurance
31,Jefferson State Community College,327087,MOSTraining Inc ,10/17/2018,2110,Current Unrestricted,Contractual Services
31,Jefferson State Community College,327088,Office Depot ,10/17/2018,450.94,Current Unrestricted,Materials and Supplies
31,Jefferson State Community College,327089,Postmaster - Birmingham ,10/17/2018,270.71,Current Unrestricted,Postage
31,Jefferson State Community College,327090,Sherwin Williams ,10/17/2018,48.97,Renewal and Replacement,Maint & Repairs
31,Jefferson State Community College,327091,Shuffett Wendy,10/17/2018,111.18,Current Unrestricted,In-State Travel
31,Jefferson State Community College,327092,Water Works & Sewer Board ,10/17/2018,12606.2,Current Unrestricted,Water & Sewer
31,Jefferson State Community College,327093,Chilton County Board of Education ,10/18/2018,240,Current Unrestricted,Meeting Expense
31,Jefferson State Community College,327094,Graybar Electric Co Inc ,10/18/2018,267.67,Renewal and Replacement,Maint & Repairs
31,Jefferson State Community College,327095,Kari-Lane  LLC ,10/18/2018,15900,Current Unrestricted,Tech Expenses-Student Related
31,Jefferson State Community College,327096,Manufacturing Skill Standards Council ,10/18/2018,6300,SP MSSC Certification 16-17SP50,Materials and Supplies
31,Jefferson State Community College,327097,One Diversified  LLC ,10/18/2018,5483.32,SP MSSC Certification 16-17SP50,Tech Instruct 500-5000
31,Jefferson State Community College,327098,One Diversified  LLC ,10/18/2018,5483.32,SP MSSC Certification 16-17SP50,Tech Instruct 500-5000
31,Jefferson State Community College,327099,Pocket Nurse Enterprises  Inc. ,10/18/2018,886.3,ICI Nursing & Allied Sim 17-18ICI31,Instructional Equip 500-5000
31,Jefferson State Community College,327100,Publix Super Markets Inc ,10/18/2018,18.93,Current Unrestricted,Materials and Supplies
31,Jefferson State Community College,327101,Sherwin Williams ,10/18/2018,102.21,Renewal and Replacement,Maint & Repairs
31,Jefferson State Community College,327102,University of Alabama at Birmingham ,10/18/2018,4800,Current Unrestricted,Contractual Services
31,Jefferson State Community College,327103,Wiley Jeffrey,10/18/2018,133.53,Current Unrestricted,In-State Travel
31,Jefferson State Community College,327141,Fisher Scientific Company LLC ,10/18/2018,790.38,CTE STEAM Initiatives 16-17STEAM06,Materials and Supplies
31,Jefferson State Community College,327142,Pita Stop Inc. ,10/19/2018,1800,Regions Intl. Cultural Retreat,Materials and Supplies
31,Jefferson State Community College,327163,AAHEB ,10/23/2018,100,Current Unrestricted,Memberships
31,Jefferson State Community College,327164,ADSAA ,10/23/2018,275,Current Unrestricted,Memberships
31,Jefferson State Community College,327165,Alabama Power ,10/23/2018,35949.89,Current Unrestricted,Electricity
31,Jefferson State Community College,327166,Alabama Power ,10/23/2018,204.14,Current Unrestricted,Electricity
31,Jefferson State Community College,327167,Alabama Power ,10/23/2018,3987.38,Current Unrestricted,Electricity
31,Jefferson State Community College,327168,Alabama Power ,10/23/2018,14718.33,Current Unrestricted,Electricity
31,Jefferson State Community College,327169,Alabama Power ,10/23/2018,1217.08,Current Unrestricted,Electricity
31,Jefferson State Community College,327170,Alabama Power ,10/23/2018,2954.68,Current Unrestricted,Electricity
31,Jefferson State Community College,327171,Alabama Power ,10/23/2018,33280.38,Current Unrestricted,Electricity
31,Jefferson State Community College,327172,AT&T ,10/23/2018,42.92,Current Unrestricted,Communications
31,Jefferson State Community College,327173,Blackboard Inc ,10/23/2018,131441.4,Current Unrestricted,Tech Expenses-Student Related
31,Jefferson State Community College,327174,Blalock II Steven,10/23/2018,382.5,Current Unrestricted,Professional Fees
31,Jefferson State Community College,327175,Blevins Chris,10/23/2018,270,Current Unrestricted,Professional Fees
31,Jefferson State Community College,327176,Blue Ridge X-Ray Company  Inc. ,10/23/2018,2438,Current Unrestricted,Service Contracts
31,Jefferson State Community College,327177,Brannon Electric Motor Co Inc ,10/23/2018,425.8,Renewal and Replacement,Maint & Repairs
31,Jefferson State Community College,327178,Brown Keith,10/23/2018,113.36,Current Unrestricted,In-State Travel
31,Jefferson State Community College,327179,CDWG Inc ,10/23/2018,3390.99,Current Unrestricted,Materials and Supplies
31,Jefferson State Community College,327180,Century Fire Holdings  LLC ,10/23/2018,2160,Renewal and Replacement,Maint & Repairs
31,Jefferson State Community College,327181,Chilton County Chamber of Commerce ,10/23/2018,80,Current Unrestricted,Advertise  Promotions
31,Jefferson State Community College,327182,Christopherson Andavo Travel  LP ,10/23/2018,5219.32,Current Unrestricted,Out-of-State Travel
31,Jefferson State Community College,327183,City of Clanton ,10/23/2018,11.96,Current Unrestricted,Water & Sewer
31,Jefferson State Community College,327184,City of Clanton ,10/23/2018,626.61,Current Unrestricted,Water & Sewer
31,Jefferson State Community College,327185,City of Clanton ,10/23/2018,18.46,Current Unrestricted,Water & Sewer
31,Jefferson State Community College,327186,Clackley David,10/23/2018,210,Current Unrestricted,Professional Fees
31,Jefferson State Community College,327187,Council for Professional Recognition ,10/23/2018,150,DHR AITPDN Grant #2201 18/19,Professional Fees
31,Jefferson State Community College,327188,Cuevas Jennifer,10/23/2018,1154.87,Current Unrestricted,Out-of-State Travel
31,Jefferson State Community College,327189,East Auto Repair ,10/23/2018,336.22,Renewal and Replacement,Maint & Repairs
31,Jefferson State Community College,327190,Easterling Nanette,10/23/2018,53.41,Current Unrestricted,In-State Travel
31,Jefferson State Community College,327191,Edwards James,10/23/2018,202.5,Current Unrestricted,Professional Fees
31,Jefferson State Community College,327192,Electrical Maintenance & Troubleshooting LLC ,10/23/2018,1456,CT Instr. Supplements 16-17CTIS08,Contractual Services
31,Jefferson State Community College,327192,Electrical Maintenance & Troubleshooting LLC ,10/23/2018,832,MSSC/RTW Auto Mfg WF Init17-18ICI58,Contractual Services
31,Jefferson State Community College,327193,Florence Jeffrey,10/23/2018,351,Current Unrestricted,Professional Fees
31,Jefferson State Community College,327194,Grainger Industrial Supply ,10/23/2018,280.57,Current Unrestricted,Materials and Supplies
31,Jefferson State Community College,327195,Guinn Philip,10/23/2018,818.84,Current Unrestricted,Out-of-State Travel
31,Jefferson State Community College,327196,Harris Jason,10/23/2018,240,Current Unrestricted,Professional Fees
31,Jefferson State Community College,327197,Hodge Mechanical Services LLC ,10/23/2018,44543.1,Current Unrestricted,Maint & Repairs
31,Jefferson State Community College,327197,Hodge Mechanical Services LLC ,10/23/2018,5913.66,Renewal and Replacement,Maint & Repairs
31,Jefferson State Community College,327198,Home Depot USA Inc ,10/23/2018,1810.55,Carpentry Craft Training Grant,Materials and Supplies
31,Jefferson State Community College,327198,Home Depot USA Inc ,10/23/2018,1186.78,Renewal and Replacement,Maint & Repairs
31,Jefferson State Community College,327199,Interline Brands  Inc. ,10/23/2018,500,Renewal and Replacement,Maint & Repairs
31,Jefferson State Community College,327200,Janousek Mel,10/23/2018,414,Current Unrestricted,Professional Fees
31,Jefferson State Community College,327201,Keene Jeremy,10/23/2018,26.16,Current Unrestricted,In-State Travel
31,Jefferson State Community College,327202,Kin Amanda,10/23/2018,74.12,Current Unrestricted,In-State Travel
31,Jefferson State Community College,327203,Kitchens Lauren,10/23/2018,40,Current Unrestricted,Materials and Supplies
31,Jefferson State Community College,327203,Kitchens Lauren,10/23/2018,498.5,Sigma Kappa Delta,Deposits Payable
31,Jefferson State Community College,327204,Lathan Associates Architects PC ,10/23/2018,2044.72,Renewal and Replacement,Maint & Repairs
31,Jefferson State Community College,327205,Learning Labs  Inc. ,10/23/2018,3799.9,NSF ATE DUE-1502036 Yr. 3 16/17,Materials and Supplies
31,Jefferson State Community College,327206,MetalMart Inc. ,10/23/2018,219.01,Current Unrestricted,Materials and Supplies
31,Jefferson State Community College,327207,Mullins William,10/23/2018,108,Current Unrestricted,Professional Fees
31,Jefferson State Community College,327208,Office Depot ,10/23/2018,3913.83,Current Unrestricted,Materials and Supplies
31,Jefferson State Community College,327209,Palmerdale Fire District ,10/23/2018,58.05,Current Unrestricted,Water & Sewer
31,Jefferson State Community College,327210,PJ Cheese  Inc ,10/23/2018,260.37,NSF ATE DUE-1502036 Yr. 3 16/17,Materials and Supplies
31,Jefferson State Community College,327211,Quality Controls Inc ,10/23/2018,5409.31,Renewal and Replacement,Maint & Repairs
31,Jefferson State Community College,327212,Ralya Janice,10/23/2018,1298.92,Current Unrestricted,Out-of-State Travel
31,Jefferson State Community College,327213,Republic Services Inc ,10/23/2018,2268.59,Current Unrestricted,Contractual Services
31,Jefferson State Community College,327215,Scarbrough William,10/23/2018,480,Current Unrestricted,Professional Fees
31,Jefferson State Community College,327216,Sherman Anne,10/23/2018,40,Current Unrestricted,Memberships
31,Jefferson State Community College,327217,Sherwin Williams ,10/23/2018,167.55,Renewal and Replacement,Maint & Repairs
31,Jefferson State Community College,327218,Shuffett Wendy,10/23/2018,300,Current Unrestricted,In-State Travel
31,Jefferson State Community College,327219,Smitherman Daniel,10/23/2018,135,Current Unrestricted,Professional Fees
31,Jefferson State Community College,327220,Smitherman Joseph,10/23/2018,547.5,Current Unrestricted,Professional Fees
31,Jefferson State Community College,327221,State of Alabama ,10/23/2018,1.25,Current Unrestricted,Professional Fees
31,Jefferson State Community College,327222,United Parcel Service ,10/23/2018,52.79,Current Unrestricted,Freight
31,Jefferson State Community College,327223,Water Works & Sewer Board ,10/23/2018,1045.27,Current Unrestricted,Water & Sewer
31,Jefferson State Community College,327224,Wheeler Christopher,10/23/2018,432,Current Unrestricted,Professional Fees
31,Jefferson State Community College,327225,Whittle Christopher,10/23/2018,180,Current Unrestricted,Professional Fees
31,Jefferson State Community College,327244,Adams Iris,10/26/2018,1138.55,DHR AITPDN Grant #2201 18/19,In-State Travel
31,Jefferson State Community College,327245,Argo Power Equipment ,10/26/2018,672.9,Renewal and Replacement,Maint & Repairs
31,Jefferson State Community College,327246,AT&T ,10/26/2018,11567.95,Current Unrestricted,Communications
31,Jefferson State Community College,327247,AT&T ,10/26/2018,549.66,Current Unrestricted,Communications
31,Jefferson State Community College,327248,AutoZone ,10/26/2018,170.53,Renewal and Replacement,Materials and Supplies
31,Jefferson State Community College,327249,Berney Office Solutions ,10/26/2018,4353,Current Unrestricted,Lease-Operations
31,Jefferson State Community College,327250,Brannon Electric Motor Co Inc ,10/26/2018,536.45,Renewal and Replacement,Maint & Repairs
31,Jefferson State Community College,327251,Enterprise Rent A Car ,10/26/2018,1380.98,Current Unrestricted,In-State Travel
31,Jefferson State Community College,327252,Fisher Scientific Company LLC ,10/26/2018,869.78,Current Unrestricted,Materials and Supplies
31,Jefferson State Community College,327253,Florence Jeffrey,10/26/2018,351,Current Unrestricted,Professional Fees
31,Jefferson State Community College,327254,Graybar Electric Co Inc ,10/26/2018,38.12,Renewal and Replacement,Maint & Repairs
31,Jefferson State Community College,327255,Hodge Mechanical Services LLC ,10/26/2018,1831.8,Renewal and Replacement,Maint & Repairs
31,Jefferson State Community College,327256,Inline Electric Supply Co ,10/26/2018,64.83,Renewal and Replacement,Maint & Repairs
31,Jefferson State Community College,327257,Lattimore Paula,10/26/2018,134.61,DHR AITPDN Grant #2201 18/19,In-State Travel
31,Jefferson State Community College,327258,Layer 3 Communications Georgia LLC ,10/26/2018,4959.3,Current Unrestricted,Tech Non-Inst 500-5000
31,Jefferson State Community College,327259,Marcus Service & Solutions LLC ,10/26/2018,1210,Renewal and Replacement,Maint & Repairs
31,Jefferson State Community College,327260,Office Depot ,10/26/2018,5031.17,Current Unrestricted,Materials and Supplies
31,Jefferson State Community College,327261,Office Depot ,10/26/2018,1078.88,Current Unrestricted,Printing - Off Campus
31,Jefferson State Community College,327262,Scantron Corp ,10/26/2018,6688,Current Unrestricted,Tech Expenses-Student Related
31,Jefferson State Community College,327264,Tallassee Automotive  Inc. ,10/26/2018,21294,Current Unrestricted,Transportation $5000
31,Jefferson State Community College,327265,Turner Shelita,10/26/2018,269.39,DHR AITPDN Grant #2201 18/19,In-State Travel
31,Jefferson State Community College,327266,Water Works & Sewer Board ,10/26/2018,242.98,Current Unrestricted,Water & Sewer
31,Jefferson State Community College,327274,ACT ,10/30/2018,43,Current Unrestricted,Materials and Supplies
31,Jefferson State Community College,327275,Alabama Community College System ,10/30/2018,1557,Career Tech ETF Dual Enro 16-17DE16,State Grants Receivable
31,Jefferson State Community College,327276,Alabama Power ,10/30/2018,20942.34,Current Unrestricted,Electricity
31,Jefferson State Community College,327277,Alzoubi Kasim,10/30/2018,117.72,Current Unrestricted,In-State Travel
31,Jefferson State Community College,327278,Brownlee Lareatha,10/30/2018,122.08,Current Unrestricted,In-State Travel
31,Jefferson State Community College,327279,Carter Michael,10/30/2018,114.45,Current Unrestricted,In-State Travel
31,Jefferson State Community College,327280,CDWG Inc ,10/30/2018,0,Adult Education - Fed Jul-Sep 17/18,Materials and Supplies
31,Jefferson State Community College,327280,CDWG Inc ,10/30/2018,2262.1,Current Unrestricted,Tech Instruct 500-5000
31,Jefferson State Community College,327281,Central Alabama Community College ,10/30/2018,425,Current Unrestricted,In-State Travel
31,Jefferson State Community College,327282,CenturyLink ,10/30/2018,2890.59,Current Unrestricted,Communications
31,Jefferson State Community College,327283,Cox Melanie,10/30/2018,32.7,Current Unrestricted,In-State Travel
31,Jefferson State Community College,327284,Credo Reference Limited ,10/30/2018,4150,Current Unrestricted,Periodicals
31,Jefferson State Community College,327285,Decola Anthony,10/30/2018,1030.82,Current Unrestricted,Contractual Services
31,Jefferson State Community College,327286,Diversified Elevator Service & Equipment Company  Inc. ,10/30/2018,2165,Renewal and Replacement,Contractual Services
31,Jefferson State Community College,327287,Dunning Freddie,10/30/2018,107.69,Current Unrestricted,In-State Travel
31,Jefferson State Community College,327288,Ennis Jzyk,10/30/2018,1790.25,Current Unrestricted,Out-of-State Travel
31,Jefferson State Community College,327289,Essential Education ,10/30/2018,1875,AE GED Fee Voucher Waiver Funds,GED Testing Expense
31,Jefferson State Community College,327290,Eubanks Colin,10/30/2018,30.73,Current Unrestricted,In-State Travel
31,Jefferson State Community College,327291,Ezell Laura,10/30/2018,97.66,Current Unrestricted,In-State Travel
31,Jefferson State Community College,327292,Falls Facility Services  Inc. ,10/30/2018,1694,Current Unrestricted,Service Contracts
31,Jefferson State Community College,327293,Fisher Scientific Company LLC ,10/30/2018,8928.7,Current Unrestricted,Materials and Supplies
31,Jefferson State Community College,327294,Fraser Thompson Stacye,10/30/2018,35.17,Current Unrestricted,Materials and Supplies
31,Jefferson State Community College,327295,Grainger Industrial Supply ,10/30/2018,9.56,Current Unrestricted,Materials and Supplies
31,Jefferson State Community College,327296,Graybar Electric Co Inc ,10/30/2018,996.66,Renewal and Replacement,Maint & Repairs
31,Jefferson State Community College,327297,Hyde Dianna,10/30/2018,196.25,Sigma Kappa Delta,Deposits Payable
31,Jefferson State Community College,327298,Interline Brands  Inc. ,10/30/2018,136.18,Renewal and Replacement,Maint & Repairs
31,Jefferson State Community College,327299,International Concepts LLC ,10/30/2018,17300,Current Unrestricted,Service Contracts
31,Jefferson State Community College,327300,JRCERT ,10/30/2018,1500,Current Unrestricted,Accreditation Exp
31,Jefferson State Community College,327301,Laerdal Medical Corporation ,10/30/2018,68.5,Current Unrestricted,Materials and Supplies
31,Jefferson State Community College,327302,Layer 3 Communications Georgia LLC ,10/30/2018,9437.03,Current Unrestricted,Tech Expenses-Student Related
31,Jefferson State Community College,327303,Marcus Service & Solutions LLC ,10/30/2018,12659.4,Renewal and Replacement,Maint & Repairs
31,Jefferson State Community College,327304,Mays Theresa,10/30/2018,103.55,Current Unrestricted,In-State Travel
31,Jefferson State Community College,327305,McAdory Tracy,10/30/2018,98.1,Current Unrestricted,In-State Travel
31,Jefferson State Community College,327306,nexAir  LLC ,10/30/2018,1637.11,Current Unrestricted,Materials and Supplies
31,Jefferson State Community College,327307,Office Depot ,10/30/2018,3230.95,Current Unrestricted,Advertise  Promotions
31,Jefferson State Community College,327308,Opportunity Systems Incorporating Independence  LLC ,10/30/2018,1593.6,Current Unrestricted,Contractual Services
31,Jefferson State Community College,327309,Owens Landscape Group  LLC ,10/30/2018,1000,Current Unrestricted,Maint & Repairs
31,Jefferson State Community College,327310,Pocket Nurse Enterprises  Inc. ,10/30/2018,12555.06,Current Unrestricted,Materials and Supplies
31,Jefferson State Community College,327311,Ralya Janice,10/30/2018,2655.56,Current Unrestricted,Out-of-State Travel
31,Jefferson State Community College,327312,Ralya Janice,10/30/2018,1474.76,Current Unrestricted,Out-of-State Travel
31,Jefferson State Community College,327313,Shelby County Board of Education ,10/30/2018,500,Current Unrestricted,Advertise  Promotions
31,Jefferson State Community College,327314,Sherwin Williams ,10/30/2018,149.85,Renewal and Replacement,Maint & Repairs
31,Jefferson State Community College,327315,Smith Venus,10/30/2018,849.66,Current Unrestricted,Out-of-State Travel
31,Jefferson State Community College,327316,Southern Pipe & Supply ,10/30/2018,474.71,Renewal and Replacement,Maint & Repairs
31,Jefferson State Community College,327317,State of Alabama ,10/30/2018,4000,Current Unrestricted,Memberships
31,Jefferson State Community College,327318,SWWC Services Inc ,10/30/2018,866.6,Renewal and Replacement,Maint & Repairs
31,Jefferson State Community College,327319,SWWC Services Inc ,10/30/2018,1630.8,Current Unrestricted,Water & Sewer
31,Jefferson State Community College,327320,Townes Kevin,10/30/2018,113.69,Current Unrestricted,In-State Travel
31,Jefferson State Community College,327321,Wal-Mart ,10/30/2018,86.18,NSF ATE DUE-1502036 Yr. 3 16/17,Materials and Supplies
31,Jefferson State Community College,327322,Water Works & Sewer Board ,10/30/2018,50.39,Current Unrestricted,Water & Sewer
31,Jefferson State Community College,123608,Wilson Peri-Anne,10/31/2018,1879.67,Current Unrestricted,Payroll
31,Jefferson State Community College,123609,Hawkins Chelsie,10/31/2018,1046.83,DHR AITPDN Grant #2201 18/19,Payroll
31,Jefferson State Community College,123610,Jebeles Dimitra,10/31/2018,1284.92,Current Unrestricted,Payroll
31,Jefferson State Community College,123611,Stockley Ginger,10/31/2018,1959,Current Unrestricted,Payroll
31,Jefferson State Community College,123612,Self Bonnie,10/31/2018,2315.96,Current Unrestricted,Payroll
31,Jefferson State Community College,123613,Dunning Alexis,10/31/2018,2236.54,Current Unrestricted,Payroll
31,Jefferson State Community College,123614,Carr Kathi,10/31/2018,1641.67,Current Unrestricted,Payroll
31,Jefferson State Community College,123615,Coker Pamela,10/31/2018,1086.46,Current Unrestricted,Payroll
31,Jefferson State Community College,123616,Keenum Lisa,10/31/2018,2315.96,Current Unrestricted,Payroll
31,Jefferson State Community College,123617,McLendon Rita,10/31/2018,1959,Current Unrestricted,Payroll
31,Jefferson State Community College,123618,Archer Teresa,10/31/2018,2117.75,Current Unrestricted,Payroll
31,Jefferson State Community College,123619,Hughes Erma,10/31/2018,2434.96,Current Unrestricted,Payroll
31,Jefferson State Community College,123620,Kimble Lisa,10/31/2018,2077.79,Current Unrestricted,Payroll
31,Jefferson State Community College,123621,DeLoach Merissa,10/31/2018,1403.83,Current Unrestricted,Payroll
31,Jefferson State Community College,123622,Jackson Debra,10/31/2018,1959,Current Unrestricted,Payroll
31,Jefferson State Community College,123623,Stewart Lisa,10/31/2018,1959,Current Unrestricted,Payroll
31,Jefferson State Community College,123624,Harris Seena,10/31/2018,1959,Current Unrestricted,Payroll
31,Jefferson State Community College,123625,Wallace Preston,10/31/2018,2496.54,Current Unrestricted,Payroll
31,Jefferson State Community College,123626,Ray Beth,10/31/2018,1039.67,Current Unrestricted,Payroll
31,Jefferson State Community College,123627,Cooper Ginger,10/31/2018,1760.75,Current Unrestricted,Payroll
31,Jefferson State Community College,123628,Pugh Sandra,10/31/2018,2315.96,Current Unrestricted,Payroll
31,Jefferson State Community College,123629,Cox Melanie,10/31/2018,1959,Current Unrestricted,Payroll
31,Jefferson State Community College,123630,Braswell Gail,10/31/2018,1324.46,Current Unrestricted,Payroll
31,Jefferson State Community College,123631,Pickens Elizabeth,10/31/2018,2038.38,Current Unrestricted,Payroll
31,Jefferson State Community College,123632,Chamblin Juanita,10/31/2018,2530.56,Current Unrestricted,Payroll
31,Jefferson State Community College,123633,Key Karen,10/31/2018,2315.96,Current Unrestricted,Payroll
31,Jefferson State Community College,123634,Sutton Edreama,10/31/2018,2903.91,Current Unrestricted,Payroll
31,Jefferson State Community College,123635,Boackle Emil,10/31/2018,1641.92,Current Unrestricted,Payroll
31,Jefferson State Community College,123636,Burney Roscelia,10/31/2018,1959,Current Unrestricted,Payroll
31,Jefferson State Community College,123637,Call Jacob,10/31/2018,3433.48,Current Unrestricted,Payroll
31,Jefferson State Community College,123638,Carpenter Valencia,10/31/2018,1562.54,Current Unrestricted,Payroll
31,Jefferson State Community College,123639,Collins Angela,10/31/2018,1959,Current Unrestricted,Payroll
31,Jefferson State Community College,123640,Duncan Leconyea,10/31/2018,1641.92,Current Unrestricted,Payroll
31,Jefferson State Community College,123641,Fennell Tapeka,10/31/2018,1839.75,Current Unrestricted,Payroll
31,Jefferson State Community College,123642,Fraser Thompson Stacye,10/31/2018,2315.96,Current Unrestricted,Payroll
31,Jefferson State Community College,123643,Howard Amber,10/31/2018,1046.83,Current Unrestricted,Payroll
31,Jefferson State Community College,123644,Jones Juanita,10/31/2018,1641.92,Current Unrestricted,Payroll
31,Jefferson State Community College,123645,Mendez Roosevelt,10/31/2018,1768.5,Current Unrestricted,Payroll
31,Jefferson State Community College,123646,Pippens Amberetta,10/31/2018,1522.83,Current Unrestricted,Payroll
31,Jefferson State Community College,123647,Silor Virginia,10/31/2018,2434.96,Current Unrestricted,Payroll
31,Jefferson State Community College,123648,Sipe James,10/31/2018,1126.17,Current Unrestricted,Payroll
31,Jefferson State Community College,123649,Wangle Jonathan,10/31/2018,1046.83,Current Unrestricted,Payroll
31,Jefferson State Community College,123650,Whitten Alyssa,10/31/2018,2172.16,Current Unrestricted,Payroll
31,Jefferson State Community College,123651,Brownlee Lareatha,10/31/2018,2187.86,Current Unrestricted,Payroll
31,Jefferson State Community College,123652,Clark Natalya,10/31/2018,1562.54,Current Unrestricted,Payroll
31,Jefferson State Community College,123653,Cobb Linda,10/31/2018,1840.08,Current Unrestricted,Payroll
31,Jefferson State Community College,123654,Cobb Rose,10/31/2018,1879.42,Current Unrestricted,Payroll
31,Jefferson State Community College,123655,Ezell Laura,10/31/2018,1324.46,Current Unrestricted,Payroll
31,Jefferson State Community College,123656,McAdory Tracy,10/31/2018,1903.77,Current Unrestricted,Payroll
31,Jefferson State Community College,123657,Reach Brett,10/31/2018,2315.75,Current Unrestricted,Payroll
31,Jefferson State Community College,123658,Thomas Donna,10/31/2018,2038.38,Current Unrestricted,Payroll
31,Jefferson State Community College,123659,Dukes Angia,10/31/2018,1324.46,Current Unrestricted,Payroll
31,Jefferson State Community College,123660,Dunning Freddie,10/31/2018,2117.75,Current Unrestricted,Payroll
31,Jefferson State Community College,123661,Urbahns Laura,10/31/2018,1959,Current Unrestricted,Payroll
31,Jefferson State Community College,123662,Smith Heather,10/31/2018,1919.33,Current Unrestricted,Payroll
31,Jefferson State Community College,123663,Cimalore Beverly,10/31/2018,2157.21,Current Unrestricted,Payroll
31,Jefferson State Community College,123664,Culver Cynthia,10/31/2018,2430.08,Current Unrestricted,Payroll
31,Jefferson State Community College,123665,Fisher Debra,10/31/2018,1641.67,Current Unrestricted,Payroll
31,Jefferson State Community College,123666,Holman Larry,10/31/2018,1959,Current Unrestricted,Payroll
31,Jefferson State Community College,123667,Miller Stephanie,10/31/2018,2157.21,Current Unrestricted,Payroll
31,Jefferson State Community College,123668,Pollard Deborah,10/31/2018,1959,Current Unrestricted,Payroll
31,Jefferson State Community College,123669,Pettry Sherry,10/31/2018,2038.38,Current Unrestricted,Payroll
31,Jefferson State Community College,123670,Quekemeyer Carrliss,10/31/2018,1522.83,Current Unrestricted,Payroll
31,Jefferson State Community College,123671,Crotwell David,10/31/2018,1562.54,Current Unrestricted,Payroll
31,Jefferson State Community College,123672,Mathis Brenda,10/31/2018,1443.63,Current Unrestricted,Payroll
31,Jefferson State Community College,123673,Patterson William,10/31/2018,1483.21,Current Unrestricted,Payroll
31,Jefferson State Community College,123674,Richey Marty,10/31/2018,1959,Current Unrestricted,Payroll
31,Jefferson State Community College,123675,Starnes Jane,10/31/2018,2315.75,Current Unrestricted,Payroll
31,Jefferson State Community College,123676,Wilson Colton,10/31/2018,1046.96,Current Unrestricted,Payroll
31,Jefferson State Community College,123677,Freeman Robine,10/31/2018,1721.29,Current Unrestricted,Payroll
31,Jefferson State Community College,123678,Hodge Dylan,10/31/2018,982.71,Current Unrestricted,Payroll
31,Jefferson State Community College,123679,Tela Rebecca,10/31/2018,1364.29,Current Unrestricted,Payroll
31,Jefferson State Community College,123680,Wynn Michael,10/31/2018,1205.58,Current Unrestricted,Payroll
31,Jefferson State Community College,123681,Berry Archie,10/31/2018,1642.08,Current Unrestricted,Payroll
31,Jefferson State Community College,123682,Brown Kenneth,10/31/2018,1093.87,Current Unrestricted,Payroll
31,Jefferson State Community College,123683,Darnell Clay Estate of,10/31/2018,1443.63,Current Unrestricted,Payroll
31,Jefferson State Community College,123684,Cunningham Velma,10/31/2018,1523.04,Current Unrestricted,Payroll
31,Jefferson State Community College,123685,Johnson Jeannette,10/31/2018,1443.63,Current Unrestricted,Payroll
31,Jefferson State Community College,123686,Jones Harrietta,10/31/2018,1642.08,Current Unrestricted,Payroll
31,Jefferson State Community College,123687,Martin Jerry,10/31/2018,1364.29,Current Unrestricted,Payroll
31,Jefferson State Community College,123688,Pendleton Carolyn,10/31/2018,900.46,Current Unrestricted,Payroll
31,Jefferson State Community College,123689,Purvis Larose,10/31/2018,1523.04,Current Unrestricted,Payroll
31,Jefferson State Community College,123690,Reynolds Reginald,10/31/2018,1523.04,Current Unrestricted,Payroll
31,Jefferson State Community College,123691,Sanders Bernard,10/31/2018,1840.33,Current Unrestricted,Payroll
31,Jefferson State Community College,123692,Wilson Dave,10/31/2018,2117.75,Current Unrestricted,Payroll
31,Jefferson State Community College,123693,Duchock Anita,10/31/2018,1166,Current Unrestricted,Payroll
31,Jefferson State Community College,123694,Barnett C,10/31/2018,1959,Current Unrestricted,Payroll
31,Jefferson State Community College,123695,Capps Randi,10/31/2018,982.71,Current Unrestricted,Payroll
31,Jefferson State Community College,123696,Harris Michael,10/31/2018,1483.21,Current Unrestricted,Payroll
31,Jefferson State Community College,123697,Hawkins Michael,10/31/2018,1919.33,Current Unrestricted,Payroll
31,Jefferson State Community College,123698,Nathan Charlie,10/31/2018,1364.29,Current Unrestricted,Payroll
31,Jefferson State Community College,123699,Solomon R,10/31/2018,1879.67,Current Unrestricted,Payroll
31,Jefferson State Community College,123700,Toney Clifford,10/31/2018,2117.75,Current Unrestricted,Payroll
31,Jefferson State Community College,123701,Veal Burt,10/31/2018,1641.92,Current Unrestricted,Payroll
31,Jefferson State Community College,123702,Sullivan Terri,10/31/2018,1562.54,Current Unrestricted,Payroll
31,Jefferson State Community College,123703,Eason Haley,10/31/2018,1007.29,Current Unrestricted,Payroll
31,Jefferson State Community College,123704,Lee Earnestine,10/31/2018,1523.04,Current Unrestricted,Payroll
31,Jefferson State Community College,123705,Payne Russell,10/31/2018,2157.21,Current Unrestricted,Payroll
31,Jefferson State Community College,123706,Smith Twanna,10/31/2018,1523.04,Current Unrestricted,Payroll
31,Jefferson State Community College,123707,Steele Kelvin,10/31/2018,1443.63,Current Unrestricted,Payroll
31,Jefferson State Community College,123708,Cooper Robbie,10/31/2018,1165.83,Current Unrestricted,Payroll
31,Jefferson State Community College,123709,Washington Destin,10/31/2018,1364.29,Current Unrestricted,Payroll
31,Jefferson State Community College,123710,McDonald Thomas,10/31/2018,1959,Current Unrestricted,Payroll
31,Jefferson State Community College,123711,Green Vincent,10/31/2018,1324.46,Current Unrestricted,Payroll
31,Jefferson State Community College,123712,Geralds Jacqueline,10/31/2018,2038.38,Adult Ed State 18/19,Payroll
31,Jefferson State Community College,123713,Turner Jeanie,10/31/2018,2355.99,Current Unrestricted,Payroll
31,Jefferson State Community College,123714,Hughes Tina,10/31/2018,2179.49,Current Unrestricted,Payroll
31,Jefferson State Community College,123715,Busby Yvette,10/31/2018,988,Current Unrestricted,Payroll
31,Jefferson State Community College,123716,Jefferson Angelica,10/31/2018,1162.5,Current Unrestricted,Payroll
31,Jefferson State Community College,123717,Carnes Jeddie,10/31/2018,802.56,DHR AITPDN Grant #2201 18/19,Payroll
31,Jefferson State Community College,123718,Charping Ronda,10/31/2018,757.12,Current Unrestricted,Payroll
31,Jefferson State Community College,123719,Armstrong Adell,10/31/2018,626.98,Current Unrestricted,Payroll
31,Jefferson State Community College,123720,Harris Sandra,10/31/2018,873.6,Current Unrestricted,Payroll
31,Jefferson State Community College,123721,Anderson Jennifer,10/31/2018,400.56,Current Unrestricted,Payroll
31,Jefferson State Community College,123722,Anwah Ifeoma,10/31/2018,534.08,Current Unrestricted,Payroll
31,Jefferson State Community College,123723,Baker Tabitha,10/31/2018,534.08,Current Unrestricted,Payroll
31,Jefferson State Community College,123724,Bolin Amia,10/31/2018,867.88,Current Unrestricted,Payroll
31,Jefferson State Community College,123725,Bozeman Amber,10/31/2018,968.02,Current Unrestricted,Payroll
31,Jefferson State Community College,123726,Brannum Beth,10/31/2018,1385.27,Current Unrestricted,Payroll
31,Jefferson State Community College,123727,Buie Cindie,10/31/2018,751.05,Current Unrestricted,Payroll
31,Jefferson State Community College,123728,Bynum Christopher,10/31/2018,417.25,Current Unrestricted,Payroll
31,Jefferson State Community College,123729,Campbell Mae,10/31/2018,1268.44,Current Unrestricted,Payroll
31,Jefferson State Community College,123730,Chen Ja Lin,10/31/2018,734.36,Current Unrestricted,Payroll
31,Jefferson State Community College,123731,Walker Allison,10/31/2018,1268.44,Current Unrestricted,Payroll
31,Jefferson State Community College,123732,Coleman Carolyn,10/31/2018,801.12,Current Unrestricted,Payroll
31,Jefferson State Community College,123733,Connelly Krista,10/31/2018,700.98,Current Unrestricted,Payroll
31,Jefferson State Community College,123734,Cronin Mary,10/31/2018,968.02,Current Unrestricted,Payroll
31,Jefferson State Community College,123735,Cunningham Dana,10/31/2018,1268.44,Current Unrestricted,Payroll
31,Jefferson State Community College,123736,Devaughn April,10/31/2018,667.6,Current Unrestricted,Payroll
31,Jefferson State Community College,123737,Duke Juanita,10/31/2018,433.94,Current Unrestricted,Payroll
31,Jefferson State Community College,123738,Ellis April,10/31/2018,575.81,Current Unrestricted,Payroll
31,Jefferson State Community College,123739,Farris Lisa,10/31/2018,66.76,Current Unrestricted,Payroll
31,Jefferson State Community College,123740,Fisher Heather,10/31/2018,216.97,Current Unrestricted,Payroll
31,Jefferson State Community College,123741,Gore Claudia,10/31/2018,1268.44,Current Unrestricted,Payroll
31,Jefferson State Community College,123742,Hale Matthew,10/31/2018,1001.4,Current Unrestricted,Payroll
31,Jefferson State Community College,123743,Hall Daniel,10/31/2018,867.88,Current Unrestricted,Payroll
31,Jefferson State Community College,123744,Hallmark Brenda,10/31/2018,1535.48,Current Unrestricted,Payroll
31,Jefferson State Community College,123745,Harper Charman,10/31/2018,1268.44,Current Unrestricted,Payroll
31,Jefferson State Community College,123746,Harris Consetta,10/31/2018,817.81,Current Unrestricted,Payroll
31,Jefferson State Community College,123747,Henry Jessica,10/31/2018,600.84,Current Unrestricted,Payroll
31,Jefferson State Community College,123748,Howard Lauren,10/31/2018,934.64,Current Unrestricted,Payroll
31,Jefferson State Community College,123749,Lalak Samantha,10/31/2018,333.8,Current Unrestricted,Payroll
31,Jefferson State Community College,123750,Liddle Anna,10/31/2018,433.94,Current Unrestricted,Payroll
31,Jefferson State Community College,123751,Lovorn Matthew,10/31/2018,517.39,Current Unrestricted,Payroll
31,Jefferson State Community College,123752,Maddox Lindsey,10/31/2018,567.46,Current Unrestricted,Payroll
31,Jefferson State Community College,123753,Manning Mandi,10/31/2018,550.77,Current Unrestricted,Payroll
31,Jefferson State Community College,123754,McEntire Ann,10/31/2018,350.49,Current Unrestricted,Payroll
31,Jefferson State Community College,123755,Milam Toshia,10/31/2018,333.8,Current Unrestricted,Payroll
31,Jefferson State Community College,123756,Miller Shaleen,10/31/2018,667.6,Current Unrestricted,Payroll
31,Jefferson State Community College,123757,Montealegre Wendy,10/31/2018,851.19,Current Unrestricted,Payroll
31,Jefferson State Community College,123758,Mullins Kaitlin,10/31/2018,667.6,Current Unrestricted,Payroll
31,Jefferson State Community College,123759,Odom Donna,10/31/2018,834.5,Current Unrestricted,Payroll
31,Jefferson State Community College,123760,Peters Belle,10/31/2018,267.04,Current Unrestricted,Payroll
31,Jefferson State Community College,123761,Ramsey Casey,10/31/2018,1268.44,Current Unrestricted,Payroll
31,Jefferson State Community College,123762,Ransaw Deandra,10/31/2018,734.36,Current Unrestricted,Payroll
31,Jefferson State Community College,123763,Rasbury Matthew,10/31/2018,408.9,Current Unrestricted,Payroll
31,Jefferson State Community College,123764,Riley Jeanny,10/31/2018,200.28,Current Unrestricted,Payroll
31,Jefferson State Community College,123765,Rodgers-Mabson Brenda,10/31/2018,100.14,Current Unrestricted,Payroll
31,Jefferson State Community College,123766,Ross Enrika,10/31/2018,1201.68,Current Unrestricted,Payroll
31,Jefferson State Community College,123767,Saemaldaher Melanie,10/31/2018,667.6,Current Unrestricted,Payroll
31,Jefferson State Community College,123768,Sasser Carol,10/31/2018,1368.58,Current Unrestricted,Payroll
31,Jefferson State Community College,123769,Saucer Rachel,10/31/2018,417.25,Current Unrestricted,Payroll
31,Jefferson State Community College,123770,Self Allison,10/31/2018,1268.44,Current Unrestricted,Payroll
31,Jefferson State Community College,123771,Simpson Heather,10/31/2018,534.08,Current Unrestricted,Payroll
31,Jefferson State Community College,123772,Skanes Makeya,10/31/2018,534.08,Current Unrestricted,Payroll
31,Jefferson State Community College,123773,Slappey Sarah,10/31/2018,1201.68,Current Unrestricted,Payroll
31,Jefferson State Community College,123774,Sledge Sherman,10/31/2018,667.6,Current Unrestricted,Payroll
31,Jefferson State Community College,123775,Slevin Darla,10/31/2018,1268.44,Current Unrestricted,Payroll
31,Jefferson State Community College,123776,Smith Christopher,10/31/2018,534.08,Current Unrestricted,Payroll
31,Jefferson State Community College,123777,Smith Jessimene,10/31/2018,267.04,Current Unrestricted,Payroll
31,Jefferson State Community College,123778,Snipes Britney,10/31/2018,667.6,Current Unrestricted,Payroll
31,Jefferson State Community College,123779,Stephens Laura,10/31/2018,467.32,Current Unrestricted,Payroll
31,Jefferson State Community College,123780,Stocks Susan,10/31/2018,1235.06,Current Unrestricted,Payroll
31,Jefferson State Community College,123781,Thomas Sarah,10/31/2018,1268.44,Current Unrestricted,Payroll
31,Jefferson State Community College,123782,Tilt Alex,10/31/2018,1018.09,Current Unrestricted,Payroll
31,Jefferson State Community College,123783,Touchstone Erica,10/31/2018,734.36,Current Unrestricted,Payroll
31,Jefferson State Community College,123784,Turner Taylor,10/31/2018,517.39,Current Unrestricted,Payroll
31,Jefferson State Community College,123785,Wade Lenora,10/31/2018,801.12,Current Unrestricted,Payroll
31,Jefferson State Community College,123786,Weeks Laura,10/31/2018,267.04,Current Unrestricted,Payroll
31,Jefferson State Community College,123787,Wells Gabrielle,10/31/2018,667.6,Current Unrestricted,Payroll
31,Jefferson State Community College,123788,White Kelley,10/31/2018,667.6,Current Unrestricted,Payroll
31,Jefferson State Community College,123789,Williamson Mary,10/31/2018,275.39,Current Unrestricted,Payroll
31,Jefferson State Community College,123790,Wynn Laura,10/31/2018,1602.24,Current Unrestricted,Payroll
31,Jefferson State Community College,123791,Balog Kimberly,10/31/2018,432.64,Current Unrestricted,Payroll
31,Jefferson State Community College,123792,Bell Na'Tasha,10/31/2018,611.52,Current Unrestricted,Payroll
31,Jefferson State Community College,123793,Gentry Natalie,10/31/2018,486.72,Current Unrestricted,Payroll
31,Jefferson State Community College,123794,Hogan Kenneth,10/31/2018,174.72,Current Unrestricted,Payroll
31,Jefferson State Community College,123795,Yates Lanette,10/31/2018,243.36,Current Unrestricted,Payroll
31,Jefferson State Community College,123796,Fach Colin,10/31/2018,1034.36,Current Unrestricted,Payroll
31,Jefferson State Community College,123797,Goode John,10/31/2018,326.64,Current Unrestricted,Payroll
31,Jefferson State Community College,123798,Hambright David,10/31/2018,489.96,Current Unrestricted,Payroll
31,Jefferson State Community College,123799,Key Christopher,10/31/2018,381.08,Current Unrestricted,Payroll
31,Jefferson State Community College,123800,Lowe Russell,10/31/2018,993.16,Current Unrestricted,Payroll
31,Jefferson State Community College,123801,McDonnell Kyle,10/31/2018,1525.21,Current Unrestricted,Payroll
31,Jefferson State Community College,123802,Panepento Matthew,10/31/2018,1034.36,Current Unrestricted,Payroll
31,Jefferson State Community College,123803,Smiley Jenny,10/31/2018,979.92,Current Unrestricted,Payroll
31,Jefferson State Community College,123804,Ward William,10/31/2018,1034.36,Current Unrestricted,Payroll
31,Jefferson State Community College,123805,Addington Jennifer,10/31/2018,832,Current Unrestricted,Payroll
31,Jefferson State Community College,123806,Andrews Latoya,10/31/2018,311.38,Current Unrestricted,Payroll
31,Jefferson State Community College,123807,Bennett Sandra,10/31/2018,665.6,Current Unrestricted,Payroll
31,Jefferson State Community College,123808,Burrell Sybil,10/31/2018,624,Current Unrestricted,Payroll
31,Jefferson State Community College,123809,Carmichael George,10/31/2018,499.2,Current Unrestricted,Payroll
31,Jefferson State Community College,123810,Chappel Delena,10/31/2018,728,Current Unrestricted,Payroll
31,Jefferson State Community College,123811,Crump Kimberly,10/31/2018,603.2,Current Unrestricted,Payroll
31,Jefferson State Community College,123812,Flanagan Soneaqua,10/31/2018,1747.2,Current Unrestricted,Payroll
31,Jefferson State Community College,123813,Green Deedra,10/31/2018,832,Current Unrestricted,Payroll
31,Jefferson State Community College,123814,Hagood Julia,10/31/2018,517,Current Unrestricted,Payroll
31,Jefferson State Community College,123815,Hersey Amy,10/31/2018,790.4,Current Unrestricted,Payroll
31,Jefferson State Community College,123816,Hodges Juliana,10/31/2018,665.6,Current Unrestricted,Payroll
31,Jefferson State Community College,123817,Hollingsworth Donna,10/31/2018,228.8,Current Unrestricted,Payroll
31,Jefferson State Community College,123818,Kimbrough LeoNardra,10/31/2018,480,Current Unrestricted,Payroll
31,Jefferson State Community College,123819,Kinsey Melissa,10/31/2018,312,Current Unrestricted,Payroll
31,Jefferson State Community College,123820,McLain Christine,10/31/2018,1310.4,City of Birmingham BOLD Grant,Payroll
31,Jefferson State Community College,123821,McLelland Cheryl,10/31/2018,83.2,Current Unrestricted,Payroll
31,Jefferson State Community College,123822,McNealey Kelly,10/31/2018,300,Current Unrestricted,Payroll
31,Jefferson State Community College,123823,Moore Caitlin,10/31/2018,665.6,Current Unrestricted,Payroll
31,Jefferson State Community College,123824,Parker Lakisha,10/31/2018,540.8,Current Unrestricted,Payroll
31,Jefferson State Community College,123825,Robinson Ebone,10/31/2018,416,Current Unrestricted,Payroll
31,Jefferson State Community College,123826,Thomas Linda,10/31/2018,707.2,Current Unrestricted,Payroll
31,Jefferson State Community College,123827,Wagstaff Howard,10/31/2018,332.8,Current Unrestricted,Payroll
31,Jefferson State Community College,123828,White Rebecca,10/31/2018,665.6,Current Unrestricted,Payroll
31,Jefferson State Community College,123829,Williams-Gillard Taneka,10/31/2018,104,Current Unrestricted,Payroll
31,Jefferson State Community College,123830,Wright Karla,10/31/2018,374.4,Current Unrestricted,Payroll
31,Jefferson State Community College,123831,Roe Frankie,10/31/2018,517.94,Current Unrestricted,Payroll
31,Jefferson State Community College,123832,Clifton Tracy,10/31/2018,681.12,Current Unrestricted,Payroll
31,Jefferson State Community College,123833,Stephens Sheila,10/31/2018,1000.48,Current Unrestricted,Payroll
31,Jefferson State Community College,123834,Pair Edward,10/31/2018,767.74,Current Unrestricted,Payroll
31,Jefferson State Community College,123835,Smith Kandice,10/31/2018,545.2,Current Unrestricted,Payroll
31,Jefferson State Community College,123836,Smith Erin,10/31/2018,1288,Current Unrestricted,Payroll
31,Jefferson State Community College,123837,Dunn Lisa,10/31/2018,267.04,Current Unrestricted,Payroll
31,Jefferson State Community College,123838,Haywood James,10/31/2018,816.6,Current Unrestricted,Payroll
31,Jefferson State Community College,123839,High Heather,10/31/2018,340.25,Current Unrestricted,Payroll
31,Jefferson State Community College,123840,Landry Audrey,10/31/2018,789.38,Current Unrestricted,Payroll
31,Jefferson State Community College,123841,Cartwright Andrew,10/31/2018,586.09,Current Unrestricted,Payroll
31,Jefferson State Community College,123842,Baker Valerie,10/31/2018,473,Current Unrestricted,Payroll
31,Jefferson State Community College,123843,Warren Germaine,10/31/2018,766.5,Current Unrestricted,Payroll
31,Jefferson State Community College,123844,Stewart Janice,10/31/2018,605.44,Current Unrestricted,Payroll
31,Jefferson State Community College,123845,Moore Kimberly,10/31/2018,714.23,Current Unrestricted,Payroll
31,Jefferson State Community College,123846,Acoff Kenniyah,10/31/2018,428.4,Current Unrestricted,Payroll
31,Jefferson State Community College,123847,Anderson Davida,10/31/2018,428.4,Current Unrestricted,Payroll
31,Jefferson State Community College,123848,Bailey Courtney,10/31/2018,271.32,Current Unrestricted,Payroll
31,Jefferson State Community College,123849,Blankenship Jamie,10/31/2018,361.76,Current Unrestricted,Payroll
31,Jefferson State Community College,123850,Brown Carol,10/31/2018,337.96,Current Unrestricted,Payroll
31,Jefferson State Community College,123851,Daniels Nautyca,10/31/2018,361.76,Current Unrestricted,Payroll
31,Jefferson State Community College,123852,Dercole Beth,10/31/2018,409.36,Current Unrestricted,Payroll
31,Jefferson State Community College,123853,Downey Judy,10/31/2018,361.76,Current Unrestricted,Payroll
31,Jefferson State Community College,123854,Duke Trinatie,10/31/2018,390.32,Current Unrestricted,Payroll
31,Jefferson State Community College,123855,Dunning William,10/31/2018,409.36,Current Unrestricted,Payroll
31,Jefferson State Community College,123856,Elliott Julie,10/31/2018,517.94,Current Unrestricted,Payroll
31,Jefferson State Community College,123857,Evans Mary,10/31/2018,409.36,Current Unrestricted,Payroll
31,Jefferson State Community College,123858,Firzlaff Kathryn,10/31/2018,414.12,Current Unrestricted,Payroll
31,Jefferson State Community College,123859,Hicks Candace,10/31/2018,446.5,Current Unrestricted,Payroll
31,Jefferson State Community College,123860,Jones Awilda,10/31/2018,437.92,Current Unrestricted,Payroll
31,Jefferson State Community College,123861,Liddle Elizabeth,10/31/2018,517.94,Current Unrestricted,Payroll
31,Jefferson State Community College,123862,Putnam Patricia,10/31/2018,1187.5,Current Unrestricted,Payroll
31,Jefferson State Community College,123863,Turner Michael,10/31/2018,404.6,Current Unrestricted,Payroll
31,Jefferson State Community College,123864,Tyler Lisa,10/31/2018,399.84,Current Unrestricted,Payroll
31,Jefferson State Community College,123865,Brown Kimberly,10/31/2018,361.76,Current Unrestricted,Payroll
31,Jefferson State Community College,123866,Crim Margaret,10/31/2018,936,Current Unrestricted,Payroll
31,Jefferson State Community College,123867,Kirk Willodean,10/31/2018,352.24,Current Unrestricted,Payroll
31,Jefferson State Community College,123868,Lewis Stephanie,10/31/2018,361.76,Current Unrestricted,Payroll
31,Jefferson State Community College,123869,Prevo Deborah,10/31/2018,626.98,Current Unrestricted,Payroll
31,Jefferson State Community College,123870,Wilson Candace,10/31/2018,371.28,Current Unrestricted,Payroll
31,Jefferson State Community College,123871,Adams Floyce,10/31/2018,613.35,Current Unrestricted,Payroll
31,Jefferson State Community College,123872,Bates Sarah,10/31/2018,61.88,Current Unrestricted,Payroll
31,Jefferson State Community College,123873,Craig Makayla,10/31/2018,390.32,Current Unrestricted,Payroll
31,Jefferson State Community College,123874,Serna Cyndy,10/31/2018,361.76,Current Unrestricted,Payroll
31,Jefferson State Community College,123875,Kirkland Olivia,10/31/2018,190.4,Current Unrestricted,Payroll
31,Jefferson State Community College,123876,Minor Angela,10/31/2018,361.76,Current Unrestricted,Payroll
31,Jefferson State Community College,123877,Simpson Andrea,10/31/2018,517.94,Current Unrestricted,Payroll
31,Jefferson State Community College,123878,Twymon Erika,10/31/2018,380.8,Current Unrestricted,Payroll
31,Jefferson State Community College,123879,White Sandra,10/31/2018,409.36,Current Unrestricted,Payroll
31,Jefferson State Community College,123880,Adams Tracy,10/31/2018,624,Current Unrestricted,Payroll
31,Jefferson State Community College,123881,Carlee Jerrica,10/31/2018,517.94,Current Unrestricted,Payroll
31,Jefferson State Community College,123882,Duren Courtney,10/31/2018,280.84,Current Unrestricted,Payroll
31,Jefferson State Community College,123883,Edwards Tracy,10/31/2018,95.2,Current Unrestricted,Payroll
31,Jefferson State Community College,123884,Rheaume Stephanie,10/31/2018,409.36,Current Unrestricted,Payroll
31,Jefferson State Community College,123885,Graves Austin,10/31/2018,409.36,Current Unrestricted,Payroll
31,Jefferson State Community College,123886,Harmon Judy,10/31/2018,380.8,Current Unrestricted,Payroll
31,Jefferson State Community College,123887,Lacy Cynthia,10/31/2018,361.76,Current Unrestricted,Payroll
31,Jefferson State Community College,123888,Davis Patricia,10/31/2018,409.36,Current Unrestricted,Payroll
31,Jefferson State Community College,123889,Brown Mavis,10/31/2018,361.76,Current Unrestricted,Payroll
31,Jefferson State Community College,123890,Brown Patterson Audrey,10/31/2018,380.8,Current Unrestricted,Payroll
31,Jefferson State Community College,123891,Burge Kathy,10/31/2018,390.32,Current Unrestricted,Payroll
31,Jefferson State Community College,123892,Benefield Larry,10/31/2018,477.05,Current Unrestricted,Payroll
31,Jefferson State Community College,123893,Boggan Brenda,10/31/2018,152.32,Current Unrestricted,Payroll
31,Jefferson State Community College,123894,Brown Martin,10/31/2018,122.58,Current Unrestricted,Payroll
31,Jefferson State Community College,123895,Burton Kenneth,10/31/2018,449.79,Current Unrestricted,Payroll
31,Jefferson State Community College,123896,Carson William,10/31/2018,490.68,Current Unrestricted,Payroll
31,Jefferson State Community College,123897,Cornner Thaddeus,10/31/2018,504.31,Current Unrestricted,Payroll
31,Jefferson State Community College,123898,Crowe Jeffrey,10/31/2018,272.6,Current Unrestricted,Payroll
31,Jefferson State Community College,123899,Gilchrist Benny,10/31/2018,647.43,Current Unrestricted,Payroll
31,Jefferson State Community College,123900,Harrell John,10/31/2018,195.16,Current Unrestricted,Payroll
31,Jefferson State Community College,123901,Hicks Alan,10/31/2018,586.09,Current Unrestricted,Payroll
31,Jefferson State Community College,123902,Keitges Steven,10/31/2018,436.16,Current Unrestricted,Payroll
31,Jefferson State Community College,123903,Lawley Rodney,10/31/2018,436.16,Current Unrestricted,Payroll
31,Jefferson State Community College,123904,McCoy Matthew,10/31/2018,517.94,Current Unrestricted,Payroll
31,Jefferson State Community College,123905,Milam Benjamin,10/31/2018,261.8,Current Unrestricted,Payroll
31,Jefferson State Community College,123906,Nelson James,10/31/2018,304.64,Current Unrestricted,Payroll
31,Jefferson State Community College,123907,Phillips Robert,10/31/2018,647.43,Current Unrestricted,Payroll
31,Jefferson State Community College,123908,Sartain Jeffrey,10/31/2018,388.46,Current Unrestricted,Payroll
31,Jefferson State Community College,123909,Tidmore Cecil,10/31/2018,545.2,Current Unrestricted,Payroll
31,Jefferson State Community College,123910,Turner Yolanda,10/31/2018,304.64,Current Unrestricted,Payroll
31,Jefferson State Community College,123911,Wilson David,10/31/2018,436.16,Current Unrestricted,Payroll
31,Jefferson State Community College,123912,Stoeckert Wendi,10/31/2018,446.5,Current Unrestricted,Payroll
31,Jefferson State Community College,123913,Steele Pamela,10/31/2018,446.5,Current Unrestricted,Payroll
31,Jefferson State Community College,123914,Harris Terry,10/31/2018,409.36,Current Unrestricted,Payroll
31,Jefferson State Community College,123915,Amerson-Dobbs Jessica,10/31/2018,399.84,Current Unrestricted,Payroll
31,Jefferson State Community College,123916,Dancy Darryl,10/31/2018,409.36,Current Unrestricted,Payroll
31,Jefferson State Community College,123917,Grayson Shirley,10/31/2018,380.8,Current Unrestricted,Payroll
31,Jefferson State Community College,123918,Moore Shanine,10/31/2018,669.94,Current Unrestricted,Payroll
31,Jefferson State Community College,123919,Payne Adrian,10/31/2018,399.84,Current Unrestricted,Payroll
31,Jefferson State Community College,123920,Eddings Adrienne,10/31/2018,550.62,Current Unrestricted,Payroll
31,Jefferson State Community College,123921,Badio Jessical,10/31/2018,803.32,Adult Ed Fed 18/19,Payroll
31,Jefferson State Community College,123922,Baker Mario,10/31/2018,774,Adult Ed State 18/19,Payroll
31,Jefferson State Community College,123923,Blair Michael,10/31/2018,613.06,Adult Ed State 18/19,Payroll
31,Jefferson State Community College,123924,Brice Sallie,10/31/2018,609.19,Adult Ed State 18/19,Payroll
31,Jefferson State Community College,123925,Callins Lillian,10/31/2018,465.08,Adult Ed Fed 18/19,Payroll
31,Jefferson State Community College,123926,Coleman Henry,10/31/2018,951.3,Adult Ed Fed 18/19,Payroll
31,Jefferson State Community College,123927,Cook Kimberly,10/31/2018,856.17,Adult Ed State 18/19,Payroll
31,Jefferson State Community College,123928,Cox Diane,10/31/2018,930.16,Adult Ed State 18/19,Payroll
31,Jefferson State Community College,123929,Davis Jeffrey,10/31/2018,1031.63,Adult Ed State 18/19,Payroll
31,Jefferson State Community College,123930,Denard Sandra,10/31/2018,803.32,Adult Ed State 18/19,Payroll
31,Jefferson State Community College,123931,Eichhorn Rhonda,10/31/2018,528.5,Adult Ed State 18/19,Payroll
31,Jefferson State Community College,123932,Latham Shane,10/31/2018,803.32,Adult Ed Fed 18/19,Payroll
31,Jefferson State Community College,123933,Lewis Ingrid,10/31/2018,713.48,Adult Ed Fed 18/19,Payroll
31,Jefferson State Community College,123934,Miner Rebecca,10/31/2018,792.75,Adult Ed State 18/19,Payroll
31,Jefferson State Community College,123935,Montgomery Helen,10/31/2018,644.77,Adult Ed State 18/19,Payroll
31,Jefferson State Community College,123936,Moore Cynthia,10/31/2018,380.52,Adult Ed State 18/19,Payroll
31,Jefferson State Community College,123937,Morgan Mary,10/31/2018,499.2,Adult Ed Inst. State 18/19,Payroll
31,Jefferson State Community College,123938,Noyes Sara,10/31/2018,930.16,Adult Ed State 18/19,Payroll
31,Jefferson State Community College,123939,Oberneder Connie,10/31/2018,828,Adult Ed State 18/19,Payroll
31,Jefferson State Community College,123940,Pearson Regina,10/31/2018,670.8,Adult Ed State 18/19,Payroll
31,Jefferson State Community College,123941,Porter Nancy,10/31/2018,718.76,Adult Ed State 18/19,Payroll
31,Jefferson State Community College,123942,Rea Patricia,10/31/2018,782.18,Adult Ed Inst. State 18/19,Payroll
31,Jefferson State Community College,123943,Rudd Julia,10/31/2018,761.04,Adult Ed State 18/19,Payroll
31,Jefferson State Community College,123944,Scott Angela,10/31/2018,486.22,Adult Ed Fed 18/19,Payroll
31,Jefferson State Community College,123945,Sheffield Virginia,10/31/2018,62.4,Adult Ed State 18/19,Payroll
31,Jefferson State Community College,123946,Sheikh Linda,10/31/2018,539.07,Adult Ed State 18/19,Payroll
31,Jefferson State Community College,123947,Skalac Robyn,10/31/2018,380.52,Adult Ed State 18/19,Payroll
31,Jefferson State Community College,123948,Smith James,10/31/2018,69,MSSC/RTW Auto Mfg WF Init17-18ICI58,Payroll
31,Jefferson State Community College,123949,Smith Paula,10/31/2018,475.65,Adult Ed State 18/19,Payroll
31,Jefferson State Community College,123950,Snider Charles,10/31/2018,970.79,Adult Ed State 18/19,Payroll
31,Jefferson State Community College,123951,Spraberry Mollie,10/31/2018,632.73,Adult Ed State 18/19,Payroll
31,Jefferson State Community College,123952,Springfield John,10/31/2018,491.4,Adult Ed State 18/19,Payroll
31,Jefferson State Community College,123953,Sublett Sherry,10/31/2018,909.02,Adult Ed State 18/19,Payroll
31,Jefferson State Community College,123954,Tracy Sandi,10/31/2018,919.59,Adult Ed State 18/19,Payroll
31,Jefferson State Community College,123955,Vinson Phyllis,10/31/2018,813.89,Adult Ed State 18/19,Payroll
31,Jefferson State Community College,123956,Ware Donna,10/31/2018,465.12,Adult Ed State 18/19,Payroll
31,Jefferson State Community College,123957,Ware William,10/31/2018,249.6,Adult Ed State 18/19,Payroll
31,Jefferson State Community College,123958,Wiginton Beverly,10/31/2018,697.62,Adult Ed State 18/19,Payroll
31,Jefferson State Community College,123959,Wood Gayle,10/31/2018,465.08,Adult Ed State 18/19,Payroll
31,Jefferson State Community College,123960,Cannon Kimberly,10/31/2018,437.92,Current Unrestricted,Payroll
31,Jefferson State Community College,123961,Breaux Carolyn,10/31/2018,669.94,Current Unrestricted,Payroll
31,Jefferson State Community College,123962,Frank Theresa,10/31/2018,567.84,Current Unrestricted,Payroll
31,Jefferson State Community College,123963,Lee Felicia,10/31/2018,509.6,Current Unrestricted,Payroll
31,Jefferson State Community College,123964,Smith Victoria,10/31/2018,560.88,Current Unrestricted,Payroll
31,Jefferson State Community College,123965,Gumbs Andrea,10/31/2018,399.84,Current Unrestricted,Payroll
31,Jefferson State Community College,123966,Niswander Carly,10/31/2018,304.64,Current Unrestricted,Payroll
31,Jefferson State Community College,123967,Dent Robert,10/31/2018,361.76,Current Unrestricted,Payroll
31,Jefferson State Community College,123968,Wood Kelly,10/31/2018,437.92,Current Unrestricted,Payroll
31,Jefferson State Community College,123969,Yazdi Aliakbar,10/31/2018,9386.59,Current Unrestricted,Payroll
31,Jefferson State Community College,123970,Bell Norma,10/31/2018,10120.42,Current Unrestricted,Payroll
31,Jefferson State Community College,123971,Jackson Todd,10/31/2018,6186.56,Current Unrestricted,Payroll
31,Jefferson State Community College,123972,Tubbs Cecilia,10/31/2018,6880.56,Current Unrestricted,Payroll
31,Jefferson State Community College,123973,Turner-Bloch Jodi,10/31/2018,7238.22,Current Unrestricted,Payroll
31,Jefferson State Community College,123974,Campbell Michelle,10/31/2018,6446.78,Current Unrestricted,Payroll
31,Jefferson State Community College,123975,Crowe Cory,10/31/2018,390,Current Unrestricted,Payroll
31,Jefferson State Community College,123976,Ennis Jzyk,10/31/2018,8818.67,Current Unrestricted,Payroll
31,Jefferson State Community College,123977,Healy Kristianna,10/31/2018,4242.42,Current Unrestricted,Payroll
31,Jefferson State Community College,123978,Jones Murray,10/31/2018,6090.44,Current Unrestricted,Payroll
31,Jefferson State Community College,123979,Seagle Heather,10/31/2018,6221.08,Current Unrestricted,Payroll
31,Jefferson State Community College,123980,Smith Venus,10/31/2018,6840.44,Current Unrestricted,Payroll
31,Jefferson State Community College,123981,Sykes-Bennett Latosha,10/31/2018,4591.87,Current Unrestricted,Payroll
31,Jefferson State Community College,123982,Wales Kathi,10/31/2018,5194.92,Current Unrestricted,Payroll
31,Jefferson State Community College,123983,Best Fred,10/31/2018,390,Current Unrestricted,Payroll
31,Jefferson State Community College,123984,Safavi Seyed,10/31/2018,5844.78,Current Unrestricted,Payroll
31,Jefferson State Community College,123985,Adams Iris,10/31/2018,3082.46,DHR AITPDN Grant #2201 18/19,Payroll
31,Jefferson State Community College,123986,Gallimore Charlette,10/31/2018,2791.67,DHR AITPDN Grant #2201 18/19,Payroll
31,Jefferson State Community College,123987,Jennings Kendra,10/31/2018,2599.63,DHR AITPDN Grant #2201 18/19,Payroll
31,Jefferson State Community College,123988,Lattimore Paula,10/31/2018,3057.58,DHR AITPDN Grant #2201 18/19,Payroll
31,Jefferson State Community College,123989,Simpson Alissa,10/31/2018,390,DHR -Kellogg Foundation Grant 15/16,Payroll
31,Jefferson State Community College,123990,Turner Shelita,10/31/2018,2874.21,DHR AITPDN Grant #2201 18/19,Payroll
31,Jefferson State Community College,123991,Williams Wanda,10/31/2018,4632.08,DHR AITPDN Grant #2201 18/19,Payroll
31,Jefferson State Community College,123992,Scofield Douglas,10/31/2018,390,Current Unrestricted,Payroll
31,Jefferson State Community College,123993,Davidson Susan,10/31/2018,1040,Current Unrestricted,Payroll
31,Jefferson State Community College,123994,Higginbotham Jon,10/31/2018,834.6,Current Unrestricted,Payroll
31,Jefferson State Community College,123995,Carter Michael,10/31/2018,6914.33,Current Unrestricted,Payroll
31,Jefferson State Community College,123996,Foster Michelle,10/31/2018,390,Current Unrestricted,Payroll
31,Jefferson State Community College,123997,Howanitz Jason,10/31/2018,520,Current Unrestricted,Payroll
31,Jefferson State Community College,123998,Wilcher Donald,10/31/2018,7013.3,Current Unrestricted,Payroll
31,Jefferson State Community College,123999,Wiley Jeffrey,10/31/2018,5340.56,Current Unrestricted,Payroll
31,Jefferson State Community College,124000,Beckley Antionette,10/31/2018,4826.11,Vocational Education 18/19,Payroll
31,Jefferson State Community College,124001,Trott David,10/31/2018,5656.56,Current Unrestricted,Payroll
31,Jefferson State Community College,124002,Coburn Danielle,10/31/2018,9499.92,Current Unrestricted,Payroll
31,Jefferson State Community College,124003,Craven Kimberly,10/31/2018,6090.44,Current Unrestricted,Payroll
31,Jefferson State Community College,124004,Cuevas Jennifer,10/31/2018,5769.36,Current Unrestricted,Payroll
31,Jefferson State Community College,124005,French Kimberly,10/31/2018,7238.22,Current Unrestricted,Payroll
31,Jefferson State Community College,124006,Hicks Stacy,10/31/2018,7238.22,Current Unrestricted,Payroll
31,Jefferson State Community College,124007,Keene Jeremy,10/31/2018,5615.88,Current Unrestricted,Payroll
31,Jefferson State Community College,124008,Kirkwood Leigh,10/31/2018,5774.33,Current Unrestricted,Payroll
31,Jefferson State Community College,124009,Norman Audrey,10/31/2018,6406.56,Current Unrestricted,Payroll
31,Jefferson State Community College,124010,O'Neal Brenda,10/31/2018,9386.59,Current Unrestricted,Payroll
31,Jefferson State Community College,124011,Satterfield Jennifer,10/31/2018,7480.22,Current Unrestricted,Payroll
31,Jefferson State Community College,124012,Turner Venius,10/31/2018,8186.56,Current Unrestricted,Payroll
31,Jefferson State Community College,124013,Walker Melisa,10/31/2018,9060.67,Current Unrestricted,Payroll
31,Jefferson State Community College,124014,Willis Rebecca,10/31/2018,4984.11,Current Unrestricted,Payroll
31,Jefferson State Community College,124015,Wilson Marjorie,10/31/2018,7238.22,Current Unrestricted,Payroll
31,Jefferson State Community College,124016,Arnold Erin,10/31/2018,8362.22,Current Unrestricted,Payroll
31,Jefferson State Community College,124017,Black Kelley,10/31/2018,8232.44,Current Unrestricted,Payroll
31,Jefferson State Community College,124018,Long Raisa,10/31/2018,1040,Current Unrestricted,Payroll
31,Jefferson State Community College,124019,Petty Courtney,10/31/2018,1040,Current Unrestricted,Payroll
31,Jefferson State Community College,124020,Pruitt Karl,10/31/2018,520,Current Unrestricted,Payroll
31,Jefferson State Community College,124021,Ross Martha,10/31/2018,5367.42,Current Unrestricted,Payroll
31,Jefferson State Community College,124022,Venglarik Charles,10/31/2018,8186.56,Current Unrestricted,Payroll
31,Jefferson State Community College,124023,Carwell Eric,10/31/2018,5340.56,Current Unrestricted,Payroll
31,Jefferson State Community College,124024,Hill Candance,10/31/2018,7443.11,Current Unrestricted,Payroll
31,Jefferson State Community College,124025,Sweatt Wendy,10/31/2018,7712.44,Current Unrestricted,Payroll
31,Jefferson State Community College,124026,Hill Mandel,10/31/2018,5182.44,Current Unrestricted,Payroll
31,Jefferson State Community College,124027,Potter Kay,10/31/2018,9219.92,Current Unrestricted,Payroll
31,Jefferson State Community College,124028,Tomlin Tonya,10/31/2018,4791.88,Current Unrestricted,Payroll
31,Jefferson State Community College,124029,Echols Danise,10/31/2018,4567.83,Current Unrestricted,Payroll
31,Jefferson State Community College,124030,Hallmark Camille,10/31/2018,6406.56,Current Unrestricted,Payroll
31,Jefferson State Community College,124031,Blanton William,10/31/2018,6914.33,Current Unrestricted,Payroll
31,Jefferson State Community College,124032,Bryson Jesse,10/31/2018,5289.83,Current Unrestricted,Payroll
31,Jefferson State Community College,124033,Estis John,10/31/2018,780,Current Unrestricted,Payroll
31,Jefferson State Community College,124034,Smith Wanda,10/31/2018,6090.44,Current Unrestricted,Payroll
31,Jefferson State Community College,124035,Todd Tiffany,10/31/2018,5446.25,Current Unrestricted,Payroll
31,Jefferson State Community College,124036,White Clyde,10/31/2018,390,Current Unrestricted,Payroll
31,Jefferson State Community College,124037,Crawford Wade,10/31/2018,4957.83,Current Unrestricted,Payroll
31,Jefferson State Community College,124038,Love John,10/31/2018,1170,Current Unrestricted,Payroll
31,Jefferson State Community College,124039,Mitchell Peasant Denedra,10/31/2018,4957.83,Current Unrestricted,Payroll
31,Jefferson State Community College,124040,Raza Syed,10/31/2018,7628.22,Current Unrestricted,Payroll
31,Jefferson State Community College,124041,Adams Vicki,10/31/2018,7670.56,Current Unrestricted,Payroll
31,Jefferson State Community College,124042,Bates Susan,10/31/2018,1170,Current Unrestricted,Payroll
31,Jefferson State Community College,124043,Carisch Timothy,10/31/2018,910,Current Unrestricted,Payroll
31,Jefferson State Community College,124044,Fall Ethel,10/31/2018,7834.56,Current Unrestricted,Payroll
31,Jefferson State Community College,124045,Kinstler Thomas,10/31/2018,1040,Current Unrestricted,Payroll
31,Jefferson State Community College,124046,Pate Peggy,10/31/2018,1170,Current Unrestricted,Payroll
31,Jefferson State Community College,124047,Phillips Scott,10/31/2018,780,Current Unrestricted,Payroll
31,Jefferson State Community College,124048,Ray Clarence,10/31/2018,1040,Current Unrestricted,Payroll
31,Jefferson State Community College,124049,Stricklin Sharon,10/31/2018,1170,Adult Education - Federal 15/16,Payroll
31,Jefferson State Community College,124050,Wallace Robert,10/31/2018,9180.67,Current Unrestricted,Payroll
31,Jefferson State Community College,124051,White Samuel,10/31/2018,6544.75,Current Unrestricted,Payroll
31,Jefferson State Community College,124052,Boehm Matthew,10/31/2018,6050.22,Current Unrestricted,Payroll
31,Jefferson State Community College,124053,Boyer Katherine,10/31/2018,6642.22,Current Unrestricted,Payroll
31,Jefferson State Community College,124054,Conner Debra,10/31/2018,780,Current Unrestricted,Payroll
31,Jefferson State Community College,124055,Ginas Elizabeth,10/31/2018,1170,Current Unrestricted,Payroll
31,Jefferson State Community College,124056,Henderson Kristin,10/31/2018,7556.56,Current Unrestricted,Payroll
31,Jefferson State Community College,124057,Hamilton Marisa,10/31/2018,5283.25,Current Unrestricted,Payroll
31,Jefferson State Community College,124058,Kendrick Haley,10/31/2018,3868.08,Current Unrestricted,Payroll
31,Jefferson State Community College,124059,Krayer Jerry,10/31/2018,390,Current Unrestricted,Payroll
31,Jefferson State Community College,124060,Langland Scot,10/31/2018,390,Current Unrestricted,Payroll
31,Jefferson State Community College,124061,Ndoume Arletha,10/31/2018,390,Current Unrestricted,Payroll
31,Jefferson State Community College,124062,Pass Lynn,10/31/2018,780,Current Unrestricted,Payroll
31,Jefferson State Community College,124063,Phillips Allen,10/31/2018,390,Current Unrestricted,Payroll
31,Jefferson State Community College,124064,White Elizabeth,10/31/2018,1040,Current Unrestricted,Payroll
31,Jefferson State Community College,124065,Woods Christinia,10/31/2018,5160.42,Current Unrestricted,Payroll
31,Jefferson State Community College,124066,Morgan Melissa,10/31/2018,1170,Current Unrestricted,Payroll
31,Jefferson State Community College,124067,Avery Camilla,10/31/2018,6940.71,Current Unrestricted,Payroll
31,Jefferson State Community College,124068,Bishop Christopher,10/31/2018,780,Current Unrestricted,Payroll
31,Jefferson State Community College,124069,Ford Angela,10/31/2018,4957.83,Current Unrestricted,Payroll
31,Jefferson State Community College,124070,Helms David,10/31/2018,780,Current Unrestricted,Payroll
31,Jefferson State Community College,124071,Jones Samuel,10/31/2018,8576.56,Current Unrestricted,Payroll
31,Jefferson State Community College,124072,Leo Mark,10/31/2018,534,Current Unrestricted,Payroll
31,Jefferson State Community College,124073,Lewis Lucy,10/31/2018,7443.11,Current Unrestricted,Payroll
31,Jefferson State Community College,124074,Montgomery Margaret,10/31/2018,390,Current Unrestricted,Payroll
31,Jefferson State Community College,124075,Parsons Rex,10/31/2018,1170,Current Unrestricted,Payroll
31,Jefferson State Community College,124076,Puckett Christina,10/31/2018,1170,Current Unrestricted,Payroll
31,Jefferson State Community College,124077,Thomas Michael,10/31/2018,5458.22,Current Unrestricted,Payroll
31,Jefferson State Community College,124078,West Pamela,10/31/2018,6840.44,Current Unrestricted,Payroll
31,Jefferson State Community College,124079,Davis Alan,10/31/2018,8599.33,Current Unrestricted,Payroll
31,Jefferson State Community College,124080,Luna Wilmer,10/31/2018,7238.22,Current Unrestricted,Payroll
31,Jefferson State Community College,124081,Lyons Charlotte,10/31/2018,6926.56,Current Unrestricted,Payroll
31,Jefferson State Community College,124082,Payne Michael,10/31/2018,4709.98,Current Unrestricted,Payroll
31,Jefferson State Community College,124083,Folds Dusty,10/31/2018,4941.51,Current Unrestricted,Payroll
31,Jefferson State Community College,124084,Lawley Heather,10/31/2018,5739.23,Current Unrestricted,Payroll
31,Jefferson State Community College,124085,Jones Lesia,10/31/2018,5955.8,Current Unrestricted,Payroll
31,Jefferson State Community College,124086,Kin Amanda,10/31/2018,8569.25,Current Unrestricted,Payroll
31,Jefferson State Community College,124087,Stephens Nareiko,10/31/2018,5288.58,Current Unrestricted,Payroll
31,Jefferson State Community College,124088,Harris Patricia,10/31/2018,6661.27,Current Unrestricted,Payroll
31,Jefferson State Community College,124089,Rinsky Glenn,10/31/2018,8186.56,Current Unrestricted,Payroll
31,Jefferson State Community College,124090,Taylor Danny,10/31/2018,5340.56,Current Unrestricted,Payroll
31,Jefferson State Community College,124091,Bierley Jason,10/31/2018,6074.92,Current Unrestricted,Payroll
31,Jefferson State Community College,124092,Moore Kenneth,10/31/2018,5884.75,Current Unrestricted,Payroll
31,Jefferson State Community College,124093,Mitchell Joseph,10/31/2018,8300.67,Current Unrestricted,Payroll
31,Jefferson State Community College,124094,Cabaniss Amanda,10/31/2018,6090.44,Current Unrestricted,Payroll
31,Jefferson State Community College,124095,Ferguson Ladeitris,10/31/2018,6922.22,Current Unrestricted,Payroll
31,Jefferson State Community College,124096,Grimes Natasha,10/31/2018,5769.36,Current Unrestricted,Payroll
31,Jefferson State Community College,124097,Havard Patricia,10/31/2018,8818.67,Current Unrestricted,Payroll
31,Jefferson State Community College,124098,Haywood Patricia,10/31/2018,7712.44,Current Unrestricted,Payroll
31,Jefferson State Community College,124099,Lee Donna,10/31/2018,7712.44,Current Unrestricted,Payroll
31,Jefferson State Community College,124100,Naramore Anita,10/31/2018,8112.44,Current Unrestricted,Payroll
31,Jefferson State Community College,124101,Nasworthy Sara,10/31/2018,7238.22,Current Unrestricted,Payroll
31,Jefferson State Community College,124102,Richardson Gena,10/31/2018,7712.44,Current Unrestricted,Payroll
31,Jefferson State Community College,124103,Smith Jajuana,10/31/2018,6090.44,Current Unrestricted,Payroll
31,Jefferson State Community College,124104,Baker Thomas,10/31/2018,5774.33,Current Unrestricted,Payroll
31,Jefferson State Community College,124105,Bej Meena,10/31/2018,8186.56,Current Unrestricted,Payroll
31,Jefferson State Community College,124106,Borden Ruth,10/31/2018,520,Current Unrestricted,Payroll
31,Jefferson State Community College,124107,Dodwad-Khan Zareen,10/31/2018,6493.89,Current Unrestricted,Payroll
31,Jefferson State Community College,124108,Harman Leigh,10/31/2018,520,Current Unrestricted,Payroll
31,Jefferson State Community College,124109,Maharrey Julie,10/31/2018,7758.22,Current Unrestricted,Payroll
31,Jefferson State Community College,124110,Miller Stephanie,10/31/2018,7760.44,Current Unrestricted,Payroll
31,Jefferson State Community College,124111,Moore David,10/31/2018,1040,Current Unrestricted,Payroll
31,Jefferson State Community College,124112,Pettway Markia,10/31/2018,1040,Current Unrestricted,Payroll
31,Jefferson State Community College,124113,Raymond Charles,10/31/2018,1040,Current Unrestricted,Payroll
31,Jefferson State Community College,124114,Small Sharee,10/31/2018,520,Current Unrestricted,Payroll
31,Jefferson State Community College,124115,Stinson Alvin,10/31/2018,1040,Current Unrestricted,Payroll
31,Jefferson State Community College,124116,Stith Mark,10/31/2018,520,Current Unrestricted,Payroll
31,Jefferson State Community College,124117,Wheeler Crystal,10/31/2018,520,Current Unrestricted,Payroll
31,Jefferson State Community College,124118,Bolton Christie,10/31/2018,6090.44,Current Unrestricted,Payroll
31,Jefferson State Community College,124119,Ferguson Lydia,10/31/2018,6090.44,Current Unrestricted,Payroll
31,Jefferson State Community College,124120,Elliott Cindy,10/31/2018,5616.33,Current Unrestricted,Payroll
31,Jefferson State Community College,124121,LeBlanc Vanessa,10/31/2018,7480.22,Current Unrestricted,Payroll
31,Jefferson State Community College,124122,Naugher Leslie,10/31/2018,5918.41,Current Unrestricted,Payroll
31,Jefferson State Community College,124123,Cohen Kyle,10/31/2018,4392.22,Current Unrestricted,Payroll
31,Jefferson State Community College,124124,Norris James,10/31/2018,6221.86,Current Unrestricted,Payroll
31,Jefferson State Community College,124125,Brown Catherine,10/31/2018,6406.56,Current Unrestricted,Payroll
31,Jefferson State Community College,124126,Harris Liesl,10/31/2018,8300.67,Current Unrestricted,Payroll
31,Jefferson State Community College,124127,Calhoun James,10/31/2018,4483.67,Current Unrestricted,Payroll
31,Jefferson State Community College,124128,Cartwright Darrell,10/31/2018,780,Current Unrestricted,Payroll
31,Jefferson State Community College,124129,Cummings Frances,10/31/2018,6524.33,Current Unrestricted,Payroll
31,Jefferson State Community College,124130,Dailey Felecia,10/31/2018,415.12,Current Unrestricted,Payroll
31,Jefferson State Community College,124131,Edge Mary,10/31/2018,1170,Current Unrestricted,Payroll
31,Jefferson State Community College,124132,Fisher Justin,10/31/2018,6796.56,Current Unrestricted,Payroll
31,Jefferson State Community College,124133,Schatz Clark,10/31/2018,9208.67,Current Unrestricted,Payroll
31,Jefferson State Community College,124134,Speaks Christopher,10/31/2018,390,Current Unrestricted,Payroll
31,Jefferson State Community College,124135,Ballenger Steven,10/31/2018,780,Current Unrestricted,Payroll
31,Jefferson State Community College,124136,Battles Thomas,10/31/2018,6164.33,Current Unrestricted,Payroll
31,Jefferson State Community College,124137,Blevins Anthony,10/31/2018,5606.11,Current Unrestricted,Payroll
31,Jefferson State Community College,124138,Dobyns Linda,10/31/2018,5289.83,Current Unrestricted,Payroll
31,Jefferson State Community College,124139,Harris Hal,10/31/2018,780,Current Unrestricted,Payroll
31,Jefferson State Community College,124140,Langley Linda,10/31/2018,1170,Current Unrestricted,Payroll
31,Jefferson State Community College,124141,Logan Sandra,10/31/2018,8070.56,Current Unrestricted,Payroll
31,Jefferson State Community College,124142,Maddox Patricia,10/31/2018,390,Current Unrestricted,Payroll
31,Jefferson State Community College,124143,McGhee Benjamin,10/31/2018,390,Current Unrestricted,Payroll
31,Jefferson State Community College,124144,Moore Helen,10/31/2018,390,Current Unrestricted,Payroll
31,Jefferson State Community College,124145,Sims Jessica,10/31/2018,390,Current Unrestricted,Payroll
31,Jefferson State Community College,124146,Darby Jeffrey,10/31/2018,6598.33,Current Unrestricted,Payroll
31,Jefferson State Community College,124147,Drain Susan,10/31/2018,910,Current Unrestricted,Payroll
31,Jefferson State Community College,124148,Gray Mark,10/31/2018,1170,Current Unrestricted,Payroll
31,Jefferson State Community College,124149,Green Leslee,10/31/2018,390,Current Unrestricted,Payroll
31,Jefferson State Community College,124150,Green-Douglas Terri,10/31/2018,1170,Current Unrestricted,Payroll
31,Jefferson State Community College,124151,Hammett Jonathan,10/31/2018,1040,Current Unrestricted,Payroll
31,Jefferson State Community College,124152,Hargett Yu-Ing,10/31/2018,7270.56,Current Unrestricted,Payroll
31,Jefferson State Community College,124153,Hu Huaiyuan,10/31/2018,520,Current Unrestricted,Payroll
31,Jefferson State Community College,124154,Kline Corey,10/31/2018,5978.22,Current Unrestricted,Payroll
31,Jefferson State Community College,124155,Nagy Lisa,10/31/2018,7238.22,Current Unrestricted,Payroll
31,Jefferson State Community College,124156,Parpura Vedrana,10/31/2018,520,Current Unrestricted,Payroll
31,Jefferson State Community College,124157,Theodorou Konstantinos,10/31/2018,6796.56,Current Unrestricted,Payroll
31,Jefferson State Community College,124158,Thrasher Margaret,10/31/2018,5550.42,Current Unrestricted,Payroll
31,Jefferson State Community College,124159,Williams Chad,10/31/2018,1170,Current Unrestricted,Payroll
31,Jefferson State Community College,124160,Wills Nina,10/31/2018,1170,Current Unrestricted,Payroll
31,Jefferson State Community College,124161,Yazdi Roya,10/31/2018,1170,Current Unrestricted,Payroll
31,Jefferson State Community College,124162,Aldrich Summer,10/31/2018,5774.33,Current Unrestricted,Payroll
31,Jefferson State Community College,124163,Atwell Debra,10/31/2018,910,Current Unrestricted,Payroll
31,Jefferson State Community College,124164,Beard Keith,10/31/2018,520,Current Unrestricted,Payroll
31,Jefferson State Community College,124165,Brooks Michael,10/31/2018,1170,Current Unrestricted,Payroll
31,Jefferson State Community College,124166,Carr Bethany,10/31/2018,390,Current Unrestricted,Payroll
31,Jefferson State Community College,124167,Caskey Connie,10/31/2018,6079.83,Current Unrestricted,Payroll
31,Jefferson State Community College,124168,Cole Alanna Ruth,10/31/2018,1170,Current Unrestricted,Payroll
31,Jefferson State Community College,124169,Cook Susan,10/31/2018,1170,Current Unrestricted,Payroll
31,Jefferson State Community College,124170,Cornelius Kindall,10/31/2018,1170,Current Unrestricted,Payroll
31,Jefferson State Community College,124171,Cotten Linda,10/31/2018,910,Current Unrestricted,Payroll
31,Jefferson State Community College,124172,Crumpton Eva,10/31/2018,1170,Current Unrestricted,Payroll
31,Jefferson State Community College,124173,Cuevas Eugene,10/31/2018,5774.33,Current Unrestricted,Payroll
31,Jefferson State Community College,124174,Dudchock Natalie,10/31/2018,5550.42,Current Unrestricted,Payroll
31,Jefferson State Community College,124176,Eastman Robert,10/31/2018,780,Current Unrestricted,Payroll
31,Jefferson State Community College,124177,Hyde Dianna,10/31/2018,6090.44,Current Unrestricted,Payroll
31,Jefferson State Community College,124178,Kaiser Mary,10/31/2018,8818.67,Current Unrestricted,Payroll
31,Jefferson State Community College,124179,Lewis Erin,10/31/2018,4668,Current Unrestricted,Payroll
31,Jefferson State Community College,124180,Lucas Gail,10/31/2018,780,Current Unrestricted,Payroll
31,Jefferson State Community College,124181,Lyons-Burns Syreeta,10/31/2018,6922.22,Current Unrestricted,Payroll
31,Jefferson State Community College,124182,Oliver Sharde,10/31/2018,780,Current Unrestricted,Payroll
31,Jefferson State Community College,124183,Pelliccio Priscilla,10/31/2018,1170,Current Unrestricted,Payroll
31,Jefferson State Community College,124184,Perry Elizabeth,10/31/2018,390,Current Unrestricted,Payroll
31,Jefferson State Community College,124185,Phares Jane,10/31/2018,1170,Current Unrestricted,Payroll
31,Jefferson State Community College,124186,Popwell Cassie,10/31/2018,780,Current Unrestricted,Payroll
31,Jefferson State Community College,124187,Ralya Janice,10/31/2018,9050.67,Current Unrestricted,Payroll
31,Jefferson State Community College,124188,Rockett Brian,10/31/2018,6164.33,Current Unrestricted,Payroll
31,Jefferson State Community College,124189,Rudd Tammy,10/31/2018,1170,Current Unrestricted,Payroll
31,Jefferson State Community College,124190,Scott Gigi,10/31/2018,780,Current Unrestricted,Payroll
31,Jefferson State Community College,124191,Steed Thomas,10/31/2018,1170,Current Unrestricted,Payroll
31,Jefferson State Community College,124192,Vernon Lauren,10/31/2018,1170,Current Unrestricted,Payroll
31,Jefferson State Community College,124193,Williams Betty,10/31/2018,1300,Current Unrestricted,Payroll
31,Jefferson State Community College,124194,Williams Wanda,10/31/2018,520,Current Unrestricted,Payroll
31,Jefferson State Community College,124195,Woodard Heather,10/31/2018,390,Current Unrestricted,Payroll
31,Jefferson State Community College,124196,Worthington Shirley,10/31/2018,1170,Current Unrestricted,Payroll
31,Jefferson State Community College,124197,Wyatt Heather,10/31/2018,1170,Current Unrestricted,Payroll
31,Jefferson State Community College,124198,Youngblood Mark,10/31/2018,4567.83,Current Unrestricted,Payroll
31,Jefferson State Community College,124199,Angers Donald,10/31/2018,1170,Current Unrestricted,Payroll
31,Jefferson State Community College,124200,Bonner Phaer,10/31/2018,5848.22,Current Unrestricted,Payroll
31,Jefferson State Community College,124201,Carter Alice,10/31/2018,780,Current Unrestricted,Payroll
31,Jefferson State Community College,124202,Corley Kevin,10/31/2018,390,Current Unrestricted,Payroll
31,Jefferson State Community College,124203,Crain Carol,10/31/2018,390,Current Unrestricted,Payroll
31,Jefferson State Community College,124204,Davis Samuel,10/31/2018,1170,Current Unrestricted,Payroll
31,Jefferson State Community College,124205,Irvin Joseph,10/31/2018,7230.44,Current Unrestricted,Payroll
31,Jefferson State Community College,124206,Jones Pamela,10/31/2018,1170,Current Unrestricted,Payroll
31,Jefferson State Community College,124207,Lanier Mildred,10/31/2018,5679.83,Current Unrestricted,Payroll
31,Jefferson State Community College,124208,Mayton Patrick,10/31/2018,5458.22,Current Unrestricted,Payroll
31,Jefferson State Community College,124209,McArthur Kristen,10/31/2018,1170,Current Unrestricted,Payroll
31,Jefferson State Community College,124210,McClellan Christina,10/31/2018,390,Current Unrestricted,Payroll
31,Jefferson State Community College,124211,Patrick Frank,10/31/2018,780,Current Unrestricted,Payroll
31,Jefferson State Community College,124212,Pegues Michele,10/31/2018,390,Current Unrestricted,Payroll
31,Jefferson State Community College,124213,Postell Ashlyn,10/31/2018,534.15,Current Unrestricted,Payroll
31,Jefferson State Community College,124214,Pouncey Jeffrey,10/31/2018,161.37,Current Unrestricted,Payroll
31,Jefferson State Community College,124215,Ross Joe,10/31/2018,534.15,Current Unrestricted,Payroll
31,Jefferson State Community College,124216,Shuffett Wendy,10/31/2018,6124.11,Current Unrestricted,Payroll
31,Jefferson State Community College,124217,Stoudenmire Janet,10/31/2018,1170,Current Unrestricted,Payroll
31,Jefferson State Community College,124218,Thomas Amanda,10/31/2018,390,Current Unrestricted,Payroll
31,Jefferson State Community College,124219,Trucks Linda,10/31/2018,832,Current Unrestricted,Payroll
31,Jefferson State Community College,124220,Underwood Brandon,10/31/2018,780,Current Unrestricted,Payroll
31,Jefferson State Community College,124221,Wright Catherine,10/31/2018,1170,Current Unrestricted,Payroll
31,Jefferson State Community College,124222,Yount Ron,10/31/2018,1170,Current Unrestricted,Payroll
31,Jefferson State Community College,124223,Alexander Zachary,10/31/2018,6140.54,Current Unrestricted,Payroll
31,Jefferson State Community College,124224,Culbertson Shay,10/31/2018,6090.44,Current Unrestricted,Payroll
31,Jefferson State Community College,124225,Townes Kevin,10/31/2018,7196.56,Current Unrestricted,Payroll
31,Jefferson State Community College,124226,Goss Barbara,10/31/2018,7341.17,Current Unrestricted,Payroll
31,Jefferson State Community College,124227,Stewart Sharon,10/31/2018,5774.33,Current Unrestricted,Payroll
31,Jefferson State Community College,124228,Bonds Amanda,10/31/2018,5428.67,Current Unrestricted,Payroll
31,Jefferson State Community College,124229,Daffron Cristy,10/31/2018,7638.22,Current Unrestricted,Payroll
31,Jefferson State Community College,124230,Hill Cynthia,10/31/2018,6090.44,Current Unrestricted,Payroll
31,Jefferson State Community College,124231,Hammer Brenda,10/31/2018,6570.22,Current Unrestricted,Payroll
31,Jefferson State Community College,124232,Hunsinger Ronald,10/31/2018,1040,Current Unrestricted,Payroll
31,Jefferson State Community College,124233,Kin Nicholas,10/31/2018,7835.16,Current Unrestricted,Payroll
31,Jefferson State Community College,124234,Koratich Michael,10/31/2018,1040,Current Unrestricted,Payroll
31,Jefferson State Community College,124235,Lomax Lillie,10/31/2018,1040,Current Unrestricted,Payroll
31,Jefferson State Community College,124236,Manners Bettie,10/31/2018,1040,Current Unrestricted,Payroll
31,Jefferson State Community College,124237,Goss Nathan,10/31/2018,390,Current Unrestricted,Payroll
31,Jefferson State Community College,124238,Hughes Fred,10/31/2018,641.6,Current Unrestricted,Payroll
31,Jefferson State Community College,124239,Knox Telicia,10/31/2018,780,Current Unrestricted,Payroll
31,Jefferson State Community College,124240,Copeland Lemar,10/31/2018,780,Current Unrestricted,Payroll
31,Jefferson State Community College,124241,Holley Jamie,10/31/2018,5690.11,Current Unrestricted,Payroll
31,Jefferson State Community College,124242,Mizzell Angela,10/31/2018,910,Current Unrestricted,Payroll
31,Jefferson State Community College,124243,Mortey Kingsley,10/31/2018,780,Current Unrestricted,Payroll
31,Jefferson State Community College,124244,Williams Tammie,10/31/2018,390,Current Unrestricted,Payroll
31,Jefferson State Community College,124245,Forsythe Trisha,10/31/2018,780,Current Unrestricted,Payroll
31,Jefferson State Community College,124246,Harrison Vernon,10/31/2018,7154.11,Current Unrestricted,Payroll
31,Jefferson State Community College,124247,Haywood-Cotton Amanda,10/31/2018,780,Current Unrestricted,Payroll
31,Jefferson State Community College,124248,Melvin Jacob,10/31/2018,5848.22,Current Unrestricted,Payroll
31,Jefferson State Community College,124249,Yates Patricia,10/31/2018,554.67,Current Unrestricted,Payroll
31,Jefferson State Community College,124250,Gasper Sarah,10/31/2018,6480.44,Current Unrestricted,Payroll
31,Jefferson State Community College,124251,McRae David,10/31/2018,6242,Current Unrestricted,Payroll
31,Jefferson State Community College,124252,Smith Amy,10/31/2018,780,Current Unrestricted,Payroll
31,Jefferson State Community College,124253,King Clare,10/31/2018,5458.22,Current Unrestricted,Payroll
31,Jefferson State Community College,124254,Forbes Christopher,10/31/2018,7638.22,Current Unrestricted,Payroll
31,Jefferson State Community College,124255,Jones Julie,10/31/2018,7238.22,Current Unrestricted,Payroll
31,Jefferson State Community College,124256,Rowe Tina,10/31/2018,7080.22,Current Unrestricted,Payroll
31,Jefferson State Community College,124257,Cockerham-Maynor Alexis,10/31/2018,1040,Current Unrestricted,Payroll
31,Jefferson State Community College,124258,Potter Rana,10/31/2018,1040,Current Unrestricted,Payroll
31,Jefferson State Community College,124259,Easterling Amy,10/31/2018,390,Current Unrestricted,Payroll
31,Jefferson State Community College,124260,Easterling Nanette,10/31/2018,6880.56,Current Unrestricted,Payroll
31,Jefferson State Community College,124261,Fuller James,10/31/2018,390,Current Unrestricted,Payroll
31,Jefferson State Community College,124262,Hand Donald,10/31/2018,390,Current Unrestricted,Payroll
31,Jefferson State Community College,124263,Wurtz Carla,10/31/2018,390,Current Unrestricted,Payroll
31,Jefferson State Community College,124264,Billings James,10/31/2018,780,Current Unrestricted,Payroll
31,Jefferson State Community College,124265,Boulware Kim,10/31/2018,520,Current Unrestricted,Payroll
31,Jefferson State Community College,124266,Burn Nicole,10/31/2018,1170,Current Unrestricted,Payroll
31,Jefferson State Community College,124267,King Jamie,10/31/2018,5374.11,Current Unrestricted,Payroll
31,Jefferson State Community College,124268,Kitchens Lauren,10/31/2018,7358.33,Current Unrestricted,Payroll
31,Jefferson State Community College,124269,McKinney David,10/31/2018,6484.11,Current Unrestricted,Payroll
31,Jefferson State Community College,124270,Moore Walter,10/31/2018,1170,Current Unrestricted,Payroll
31,Jefferson State Community College,124271,Moreman Sarah,10/31/2018,1170,Current Unrestricted,Payroll
31,Jefferson State Community College,124272,Ward Christina,10/31/2018,1170,Current Unrestricted,Payroll
31,Jefferson State Community College,124273,Bullock Joel,10/31/2018,390,Current Unrestricted,Payroll
31,Jefferson State Community College,124274,Griffen Tywain,10/31/2018,726.21,Current Unrestricted,Payroll
31,Jefferson State Community College,124275,Hirschy Jeffery,10/31/2018,1223.79,Current Unrestricted,Payroll
31,Jefferson State Community College,124276,Johnson Ana-Sky,10/31/2018,390,Current Unrestricted,Payroll
31,Jefferson State Community College,124277,Triplett Stanley,10/31/2018,5892.11,Current Unrestricted,Payroll
31,Jefferson State Community College,124278,Brown Keith,10/31/2018,16666.67,Current Unrestricted,Payroll
31,Jefferson State Community College,124279,Blair David,10/31/2018,4709.98,Current Unrestricted,Payroll
31,Jefferson State Community College,124280,Bowers Andrew,10/31/2018,4182,Current Unrestricted,Payroll
31,Jefferson State Community College,124281,Burton James,10/31/2018,6320.7,Current Unrestricted,Payroll
31,Jefferson State Community College,124282,Eubanks Colin,10/31/2018,8134,Current Unrestricted,Payroll
31,Jefferson State Community College,124283,McCallister Gregory,10/31/2018,6381.01,Current Unrestricted,Payroll
31,Jefferson State Community College,124284,McCombs Valerie,10/31/2018,6381.01,Current Unrestricted,Payroll
31,Jefferson State Community College,124285,McIntosh Linda,10/31/2018,6578.25,Current Unrestricted,Payroll
31,Jefferson State Community College,124286,Mitchell Michael,10/31/2018,4217.92,Current Unrestricted,Payroll
31,Jefferson State Community College,124287,Moore Stephen,10/31/2018,9068.5,Current Unrestricted,Payroll
31,Jefferson State Community College,124288,Pardazi Behnazsadat,10/31/2018,5227.5,Current Unrestricted,Payroll
31,Jefferson State Community College,124289,Tindill-Rohr Elaine,10/31/2018,6171.17,Current Unrestricted,Payroll
31,Jefferson State Community College,124290,Holmes Elizabeth,10/31/2018,4804.92,Current Unrestricted,Payroll
31,Jefferson State Community College,124291,Kennedy Tonja,10/31/2018,4852.17,Current Unrestricted,Payroll
31,Jefferson State Community College,124292,Wilson Kenneth,10/31/2018,8134,Current Unrestricted,Payroll
31,Jefferson State Community College,124293,Armstrong Toneka,10/31/2018,5502.24,Current Unrestricted,Payroll
31,Jefferson State Community College,124294,Buxton James,10/31/2018,5710.66,Current Unrestricted,Payroll
31,Jefferson State Community College,124295,Core Brandy,10/31/2018,3554.7,Current Unrestricted,Payroll
31,Jefferson State Community College,124296,Hobbs Phillip,10/31/2018,11295.2,Current Unrestricted,Payroll
31,Jefferson State Community College,124297,Johnson Kathleen,10/31/2018,4379.33,Current Unrestricted,Payroll
31,Jefferson State Community College,124298,Owens Lillian,10/31/2018,8765.99,Current Unrestricted,Payroll
31,Jefferson State Community College,124299,Sanford Ollena,10/31/2018,5596.45,Current Unrestricted,Payroll
31,Jefferson State Community College,124300,Thompson Rodney,10/31/2018,5976.97,Current Unrestricted,Payroll
31,Jefferson State Community College,124301,Alzoubi Kasim,10/31/2018,6931.67,Current Unrestricted,Payroll
31,Jefferson State Community College,124302,Sherman Anne,10/31/2018,5467.7,Current Unrestricted,Payroll
31,Jefferson State Community College,124303,Evans Lynn,10/31/2018,4952.04,Current Unrestricted,Payroll
31,Jefferson State Community College,124304,Bobo Cynthia,10/31/2018,6465.51,Current Unrestricted,Payroll
31,Jefferson State Community College,124305,Rigg Kimberly,10/31/2018,4265.64,Current Unrestricted,Payroll
31,Jefferson State Community College,124306,Spence Tracy,10/31/2018,2904.17,Current Unrestricted,Payroll
31,Jefferson State Community College,124307,Mays Theresa,10/31/2018,6875.75,Current Unrestricted,Payroll
31,Jefferson State Community College,124308,Fulmer Ann,10/31/2018,1437.36,Current Unrestricted,Payroll
31,Jefferson State Community College,124309,Guinn Philip,10/31/2018,6375.15,Current Unrestricted,Payroll
31,Jefferson State Community College,124310,Emmerich Julie,10/31/2018,5492.44,Current Unrestricted,Payroll
31,Jefferson State Community College,124311,Cole Ched,10/31/2018,5316.19,Current Unrestricted,Payroll
31,Jefferson State Community College,124312,Cook Paul,10/31/2018,7165.58,Current Unrestricted,Payroll
31,Jefferson State Community College,124313,Morris David,10/31/2018,9560,Current Unrestricted,Payroll
31,Jefferson State Community College,124314,White Pamela,10/31/2018,5853.86,Current Unrestricted,Payroll
31,Jefferson State Community College,124315,Relihan Bruce,10/31/2018,5854.01,Current Unrestricted,Payroll
31,Jefferson State Community College,124316,Harris Perry,10/31/2018,6220.73,Current Unrestricted,Payroll
31,Jefferson State Community College,124317,Renshaw Teresa,10/31/2018,5988.73,Current Unrestricted,Payroll
31,Jefferson State Community College,124318,Graves Sterling,10/31/2018,3843.75,Current Unrestricted,Payroll
31,Jefferson State Community College,124319,Bailey Mark,10/31/2018,6822.1,Current Unrestricted,Payroll
31,Jefferson State Community College,124320,Sykes Robert,10/31/2018,5184.89,Current Unrestricted,Payroll
31,Jefferson State Community College,124321,Creamer Kelli,10/31/2018,6244.94,Current Unrestricted,Payroll
31,Jefferson State Community College,124322,Hill Damita,10/31/2018,6908.75,Current Unrestricted,Payroll
31,Jefferson State Community College,124323,Robinson Darryl,10/31/2018,9219.92,Current Unrestricted,Payroll
31,Jefferson State Community College,124324,Bobo David,10/31/2018,7165.58,Current Unrestricted,Payroll
31,Jefferson State Community College,124325,Partain Mark,10/31/2018,6381.01,Current Unrestricted,Payroll
31,Jefferson State Community College,124326,Brown India,10/31/2018,3501.43,Current Unrestricted,Payroll
31,Jefferson State Community College,124327,Chambers Lynn,10/31/2018,2989.58,MSSC/RTW Auto Mfg WF Init 17-18SP44,Payroll
31,Jefferson State Community College,124328,Payne Tamara,10/31/2018,6241.59,Current Unrestricted,Payroll
31,Jefferson State Community College,124329,Wright Tierra,10/31/2018,3234.78,Current Unrestricted,Payroll
31,Jefferson State Community College,124330,Gator Tiqua,10/31/2018,9788.81,Adult Ed - State Jul-Sep 17/18,Payroll
31,Jefferson State Community College,124331,Gross Montez,10/31/2018,5613.75,Adult Ed Fed 18/19,Payroll
31,Jefferson State Community College,124332,Jett Mary,10/31/2018,2398.56,Adult Ed Fed 18/19,Payroll
31,Jefferson State Community College,124333,Rowland Adrienne,10/31/2018,5776.39,Adult Ed Fed 18/19,Payroll
31,Jefferson State Community College,124334,Stanley Nathaniel,10/31/2018,2220.89,Adult Ed Fed 18/19,Payroll
31,Jefferson State Community College,124335,Watson Judith,10/31/2018,910,Adult Education - Federal 17/18,Payroll
31,Jefferson State Community College,124336,Wood Barbara,10/31/2018,5742.07,Adult Ed Fed 18/19,Payroll
31,Jefferson State Community College,124337,Welch Adrienne,10/31/2018,390,Current Unrestricted,Payroll
31,Jefferson State Community College,124338,Ginn Shannon,10/31/2018,5980,Current Unrestricted,Payroll
31,Jefferson State Community College,124339,Lane Tiffany,10/31/2018,4903.96,Current Unrestricted,Payroll
31,Jefferson State Community College,559619,Swann Christopher,10/31/2018,1810.4,Current Unrestricted,Payroll
31,Jefferson State Community College,559622,Gwin Adam,10/31/2018,1959,Current Unrestricted,Payroll
31,Jefferson State Community College,559623,O'Hern David,10/31/2018,586.09,Current Unrestricted,Payroll
31,Jefferson State Community College,559624,Cofield Sally,10/31/2018,108.16,Current Unrestricted,Payroll
31,Jefferson State Community College,559625,Crear Nina,10/31/2018,500.7,Current Unrestricted,Payroll
31,Jefferson State Community College,559626,Payne Michael,10/31/2018,1216,Current Unrestricted,Payroll
31,Jefferson State Community College,559627,Mueller Jacob,10/31/2018,626.06,Current Unrestricted,Payroll
31,Jefferson State Community College,559628,Castleberry James,10/31/2018,409.36,Current Unrestricted,Payroll
31,Jefferson State Community College,559629,Morgan Rickey,10/31/2018,342.72,Current Unrestricted,Payroll
31,Jefferson State Community College,559630,Wickramasekera Judy,10/31/2018,352.24,Current Unrestricted,Payroll
31,Jefferson State Community College,559631,Dickinson Charles,10/31/2018,408.9,Current Unrestricted,Payroll
31,Jefferson State Community College,559632,Bennett Tamyris,10/31/2018,302.26,Current Unrestricted,Payroll
31,Jefferson State Community College,559633,Gillham Martha,10/31/2018,493.5,Current Unrestricted,Payroll
31,Jefferson State Community College,559634,Karluk Dakota,10/31/2018,399.84,Current Unrestricted,Payroll
31,Jefferson State Community College,559635,Rutledge Martha,10/31/2018,326.06,Current Unrestricted,Payroll
31,Jefferson State Community College,559636,Sanders Patsy,10/31/2018,337.96,Current Unrestricted,Payroll
31,Jefferson State Community College,559637,Channel Raymond,10/31/2018,517.94,Current Unrestricted,Payroll
31,Jefferson State Community College,559638,Brand Charlotte,10/31/2018,449.44,Adult Ed Inst. State 18/19,Payroll
31,Jefferson State Community College,559639,Ellard Sandra,10/31/2018,1107.12,Adult Ed State 18/19,Payroll
31,Jefferson State Community College,559640,McGowan Elsie,10/31/2018,401.66,Adult Ed State 18/19,Payroll
31,Jefferson State Community College,559641,Roberts Barbara,10/31/2018,179.69,Adult Ed State 18/19,Payroll
31,Jefferson State Community College,559642,Sweatt Helen,10/31/2018,634.2,Adult Ed State 18/19,Payroll
31,Jefferson State Community College,559643,Young Katherine,10/31/2018,375.24,Adult Ed State 18/19,Payroll
31,Jefferson State Community College,559644,Foster Richard,10/31/2018,626.08,Current Unrestricted,Payroll
31,Jefferson State Community College,559645,Jones Tonya,10/31/2018,780,Current Unrestricted,Payroll
31,Jefferson State Community College,559646,Bowen Heath,10/31/2018,417.3,Current Unrestricted,Payroll
31,Jefferson State Community College,559647,Dunn Darrin,10/31/2018,834.6,Current Unrestricted,Payroll
31,Jefferson State Community College,559648,Loggins Matthew,10/31/2018,832,Current Unrestricted,Payroll
31,Jefferson State Community College,559649,Clark Stacy,10/31/2018,5340.56,Current Unrestricted,Payroll
31,Jefferson State Community College,559650,Smitherman April,10/31/2018,1040,Current Unrestricted,Payroll
31,Jefferson State Community College,559651,Goss Christine,10/31/2018,390,Current Unrestricted,Payroll
31,Jefferson State Community College,559652,Hultgren Leisha,10/31/2018,1170,Current Unrestricted,Payroll
31,Jefferson State Community College,559653,Brasher Justin,10/31/2018,390,Current Unrestricted,Payroll
31,Jefferson State Community College,559654,Looney Yvonne,10/31/2018,780,Current Unrestricted,Payroll
31,Jefferson State Community College,559655,Hall Melissa,10/31/2018,780,Current Unrestricted,Payroll
31,Jefferson State Community College,559656,Delk Mark,10/31/2018,390,Current Unrestricted,Payroll
31,Jefferson State Community College,559657,Cresswell Richard,10/31/2018,6840.44,Current Unrestricted,Payroll
31,Jefferson State Community College,559658,Boots Larry,10/31/2018,1040,Current Unrestricted,Payroll
31,Jefferson State Community College,559659,Culpepper Michael,10/31/2018,520,Current Unrestricted,Payroll
31,Jefferson State Community College,559660,Therrien Corie,10/31/2018,1040,Current Unrestricted,Payroll
31,Jefferson State Community College,559661,Logan Robert,10/31/2018,780,Current Unrestricted,Payroll
31,Jefferson State Community College,559662,Robinson Mary Alice,10/31/2018,390,Current Unrestricted,Payroll
31,Jefferson State Community College,559663,Harris Gail,10/31/2018,390,Current Unrestricted,Payroll
31,Jefferson State Community College,559664,Wood John,10/31/2018,780,Current Unrestricted,Payroll
31,Jefferson State Community College,559665,Roberson Rebecca,10/31/2018,1040,Current Unrestricted,Payroll
31,Jefferson State Community College,559666,Lawson Thomas,10/31/2018,520,Current Unrestricted,Payroll
31,Jefferson State Community College,559667,Safavy Ahmad,10/31/2018,520,Current Unrestricted,Payroll
31,Jefferson State Community College,559668,Rezek Thomas,10/31/2018,780,Current Unrestricted,Payroll
31,Jefferson State Community College,559669,Black Edward,10/31/2018,780,Current Unrestricted,Payroll
31,Jefferson State Community College,559670,Owens Alicia,10/31/2018,534.15,Current Unrestricted,Payroll
31,Jefferson State Community College,559671,Waldron Edward,10/31/2018,1170,Current Unrestricted,Payroll
31,Jefferson State Community College,559672,Barnes Debra,10/31/2018,1040,Current Unrestricted,Payroll
31,Jefferson State Community College,559673,Richard Mary,10/31/2018,1170,Current Unrestricted,Payroll
31,Jefferson State Community College,327323,ACCSHRMA ,11/5/2018,250,Current Unrestricted,Staff Develop-Staff
31,Jefferson State Community College,327324,Alabama Banner Users Group ,11/5/2018,820,Current Unrestricted,Staff Develop-Staff
31,Jefferson State Community College,327325,Alabama Banner Users Group ,11/5/2018,425,Current Unrestricted,Staff Develop-Staff
31,Jefferson State Community College,327326,Alabama Banner Users Group ,11/5/2018,845,Current Unrestricted,Staff Develop-Staff
31,Jefferson State Community College,327327,Alabama Banner Users Group ,11/5/2018,375,Current Unrestricted,Staff Develop-Staff
31,Jefferson State Community College,327328,Alabama Banner Users Group ,11/5/2018,1230,Current Unrestricted,In-State Travel
31,Jefferson State Community College,327329,Alabama Banner Users Group ,11/5/2018,425,Current Unrestricted,In-State Travel
31,Jefferson State Community College,327330,Albert Usters Imports Inc ,11/5/2018,118.75,Current Unrestricted,Materials and Supplies
31,Jefferson State Community College,327331,American Academy Holdings  LLC ,11/5/2018,3900,Lucille Stewart Beeson Trust,Memberships
31,Jefferson State Community College,327332,AmeriPride Services Inc. ,11/5/2018,337.84,Current Unrestricted,Laundry & Cleaning
31,Jefferson State Community College,327333,ASCAP ,11/5/2018,2115.04,Current Unrestricted,Professional Fees
31,Jefferson State Community College,327334,Auburn University ,11/5/2018,75,Current Unrestricted,Staff Develop-Staff
31,Jefferson State Community College,327335,Award Concepts  Inc. ,11/5/2018,1710,Sigma Chi Eta,Deposits Payable
31,Jefferson State Community College,327336,Bailey Mark,11/5/2018,110,Current Unrestricted,Materials and Supplies
31,Jefferson State Community College,327337,Blanton William,11/5/2018,761.41,Current Unrestricted,Out-of-State Travel
31,Jefferson State Community College,327338,Blevins Chris,11/5/2018,225,Current Unrestricted,Professional Fees
31,Jefferson State Community College,327339,Boyer Katherine,11/5/2018,284.06,Sigma Kappa Delta,Deposits Payable
31,Jefferson State Community College,327340,Brownlee Lareatha,11/5/2018,121.32,Current Unrestricted,In-State Travel
31,Jefferson State Community College,327341,Capital X-Ray Inc. ,11/5/2018,1200,Current Unrestricted,Maint & Repairs
31,Jefferson State Community College,327342,Caskey Connie,11/5/2018,61.94,Current Unrestricted,In-State Travel
31,Jefferson State Community College,327343,Central Paper ,11/5/2018,222.83,Current Unrestricted,Materials and Supplies
31,Jefferson State Community College,327344,Chalkville Ace Hardware ,11/5/2018,891.44,Current Unrestricted,Materials and Supplies
31,Jefferson State Community College,327345,Chambers Lynn,11/5/2018,131.89,MSSC/RTW Auto Mfg WF Init 17-18SP44,In-State Travel
31,Jefferson State Community College,327346,Davis Alan,11/5/2018,49.6,Current Unrestricted,In-State Travel
31,Jefferson State Community College,327347,Dehart Michael,11/5/2018,229.5,Current Unrestricted,Professional Fees
31,Jefferson State Community College,327348,EBSCO Industries  Inc. ,11/5/2018,4298.52,Current Unrestricted,Periodicals
31,Jefferson State Community College,327349,Emerald Coast Vision Aids Inc ,11/5/2018,6060,Current Unrestricted,Tech Instruct $5000-$25000
31,Jefferson State Community College,327350,Evans Lynn,11/5/2018,106.82,Current Unrestricted,In-State Travel
31,Jefferson State Community College,327351,Evans Meats Inc ,11/5/2018,249.25,Current Unrestricted,Materials and Supplies
31,Jefferson State Community College,327352,Everfi  Inc. ,11/5/2018,9975,Current Unrestricted,Tech Expenses-Student Related
31,Jefferson State Community College,327353,Fisher Scientific Company LLC ,11/5/2018,194.55,Current Unrestricted,Printing - Off Campus
31,Jefferson State Community College,327354,Florence Jeffrey,11/5/2018,459,Current Unrestricted,Professional Fees
31,Jefferson State Community College,327355,Freedom U.S. Acquisition Corp. ,11/5/2018,300,Current Unrestricted,Tech Expenses-Student Related
31,Jefferson State Community College,327356,Glenn Medical Consulting  LLC ,11/5/2018,2500,Current Unrestricted,Contractual Services
31,Jefferson State Community College,327357,Golfstat  Inc. ,11/5/2018,430,Current Unrestricted,Professional Fees
31,Jefferson State Community College,327358,Gulf States Distributors ,11/5/2018,90.95,Current Unrestricted,Materials and Supplies
31,Jefferson State Community College,327359,Harris Liesl,11/5/2018,32.7,Current Unrestricted,In-State Travel
31,Jefferson State Community College,327360,Henderson Kristin,11/5/2018,25.4,Current Unrestricted,In-State Travel
31,Jefferson State Community College,327361,Hyde Dianna,11/5/2018,62.13,Current Unrestricted,In-State Travel
31,Jefferson State Community College,327362,Medical Specialties Inc ,11/5/2018,6925,Vocational Education 17/18,Instruct Equip >$5000
31,Jefferson State Community College,327363,NAFSA ,11/5/2018,379,Current Unrestricted,Staff Develop-Staff
31,Jefferson State Community College,327364,O'Neal Brenda,11/5/2018,167.79,Current Unrestricted,In-State Travel
31,Jefferson State Community College,327365,Office Depot ,11/5/2018,2979.43,Current Unrestricted,Materials and Supplies
31,Jefferson State Community College,327365,Office Depot ,11/5/2018,296.87,DHR AITPDN Grant #2201 18/19,Materials and Supplies
31,Jefferson State Community College,327366,Opportunity Systems Incorporating Independence  LLC ,11/5/2018,873.6,Current Unrestricted,Contractual Services
31,Jefferson State Community College,327367,Payne Tamara,11/5/2018,8.17,Current Unrestricted,In-State Travel
31,Jefferson State Community College,327367,Payne Tamara,11/5/2018,24.53,Social Innovation Fund 2018,In-State Travel
31,Jefferson State Community College,327368,PEEHIP ,11/5/2018,4.55,Payroll Clearing Fund,Withheld Peehip
31,Jefferson State Community College,327369,Plexamedia  Inc. ,11/5/2018,588,DHR AITPDN Grant #2201 18/19,Advertise  Promotions
31,Jefferson State Community College,327370,Publix Super Markets Inc ,11/5/2018,10.47,Current Unrestricted,Materials and Supplies
31,Jefferson State Community College,327371,Servicewear Apparel Inc. ,11/5/2018,481.36,Current Unrestricted,Materials and Supplies
31,Jefferson State Community College,327372,Simmons Brenda,11/5/2018,19.08,Social Innovation Fund 2018,Meeting Expense
31,Jefferson State Community College,327373,Smith Venus,11/5/2018,162.71,Current Unrestricted,Out-of-State Travel
31,Jefferson State Community College,327374,Soma Technology Inc. ,11/5/2018,30900,Vocational Education 17/18,Instruct Equip >$5000
31,Jefferson State Community College,327375,State of Alabama ,11/5/2018,1.25,Current Unrestricted,Professional Fees
31,Jefferson State Community College,327376,Tomlin Tonya,11/5/2018,168.95,Current Unrestricted,In-State Travel
31,Jefferson State Community College,327377,Union State Insurance ,11/5/2018,1520,Current Unrestricted,Insurance
31,Jefferson State Community College,327378,United Trophy ,11/5/2018,369.2,Current Unrestricted,Awards & Prizes
31,Jefferson State Community College,327379,US Foods  Inc. ,11/5/2018,1270.98,Current Unrestricted,Materials and Supplies
31,Jefferson State Community College,327380,Water Works & Sewer Board ,11/5/2018,4595.18,Current Unrestricted,Water & Sewer
31,Jefferson State Community College,327381,Wheeler Christopher,11/5/2018,450,Current Unrestricted,Professional Fees
31,Jefferson State Community College,327382,Wright Tierra,11/5/2018,98.1,Current Unrestricted,In-State Travel
31,Jefferson State Community College,327382,Wright Tierra,11/5/2018,294.3,Social Innovation Fund 2018,In-State Travel
31,Jefferson State Community College,327383,Wright Express ,11/5/2018,736.21,Current Unrestricted,Gas & Oil
31,Jefferson State Community College,327392,AEA ,11/7/2018,180.06,Payroll Clearing Fund,Withheld AEA Benefit
31,Jefferson State Community College,327393,AEA ,11/7/2018,283.69,Payroll Clearing Fund,Withheld Unum AEA
31,Jefferson State Community College,327394,AFLAC Insurance ,11/7/2018,1560.34,Payroll Clearing Fund,Withheld Aflac
31,Jefferson State Community College,327395,Alabama Community College System ,11/7/2018,1500,Current Unrestricted,Memberships
31,Jefferson State Community College,327396,Alabama Power ,11/7/2018,3152.73,Current Unrestricted,Electricity
31,Jefferson State Community College,327397,AmeriPride Services Inc. ,11/7/2018,83.96,Current Unrestricted,Laundry & Cleaning
31,Jefferson State Community College,327398,AT&T ,11/7/2018,308.88,Current Unrestricted,Communications
31,Jefferson State Community College,327399,Bank of America ,11/7/2018,4956.13,Current Unrestricted,In-State Travel
31,Jefferson State Community College,327400,Blalock II Steven,11/7/2018,127.5,Current Unrestricted,Professional Fees
31,Jefferson State Community College,327401,Bradford Caraway Chapter 13 Standard Trustee Dept SF3 ,11/7/2018,471,Payroll Clearing Fund,Withheld Bankruptcy
31,Jefferson State Community College,327402,Bradford Caraway Chapter 13 Standard Trustee Dept SF3 ,11/7/2018,280,Payroll Clearing Fund,Withheld Bankruptcy
31,Jefferson State Community College,327403,Bradford Caraway Chapter 13 Standard Trustee Dept SF3 ,11/7/2018,580,Payroll Clearing Fund,Withheld Bankruptcy
31,Jefferson State Community College,327404,Bradford Caraway Chapter 13 Standard Trustee Dept SF3 ,11/7/2018,644,Payroll Clearing Fund,Withheld Bankruptcy
31,Jefferson State Community College,327405,Central Paper ,11/7/2018,755.78,Current Unrestricted,Materials and Supplies
31,Jefferson State Community College,327406,City Of Birmingham ,11/7/2018,13507.12,Payroll Clearing Fund,Withheld Taxes - Birmingham
31,Jefferson State Community College,327407,City of Pell City ,11/7/2018,65.1,Current Unrestricted,Water & Sewer
31,Jefferson State Community College,327408,City of Pell City ,11/7/2018,222.22,Current Unrestricted,Water & Sewer
31,Jefferson State Community College,327409,Clackley David,11/7/2018,633.75,Current Unrestricted,Professional Fees
31,Jefferson State Community College,327410,Denny Elevator Inspections  Inc. ,11/7/2018,1530,Renewal and Replacement,Maint & Repairs
31,Jefferson State Community College,327411,EDUCAUSE  Inc. ,11/7/2018,894,Current Unrestricted,Memberships
31,Jefferson State Community College,327412,Equitable Life ,11/7/2018,100,Payroll Clearing Fund,Withheld Equitable
31,Jefferson State Community College,327413,Evans Meats Inc ,11/7/2018,1058.53,Current Unrestricted,Materials and Supplies
31,Jefferson State Community College,327414,Fisher Scientific Company LLC ,11/7/2018,1420.47,CTE Dual Enroll 17-18DE12,Instructional Equip 500-5000
31,Jefferson State Community College,327415,Follett Higher Education Group  Inc. ,11/7/2018,111072.92,Bookstore,Accounts Payable-Accrual
31,Jefferson State Community College,327416,Harris Jason,11/7/2018,247.5,Current Unrestricted,Professional Fees
31,Jefferson State Community College,327417,Hodge Mechanical Services LLC ,11/7/2018,2199.87,Renewal and Replacement,Maint & Repairs
31,Jefferson State Community College,327418,Janousek Mel,11/7/2018,594,Current Unrestricted,Professional Fees
31,Jefferson State Community College,327419,Liberty National Life ,11/7/2018,887.34,Payroll Clearing Fund,Liberty National 
31,Jefferson State Community College,327420,PEEHIP ,11/7/2018,347936.59,Payroll Clearing Fund,Withheld PEEHIP Dep Care
31,Jefferson State Community College,327421,PEIRAF-Deferred Compensation ,11/7/2018,16370,Payroll Clearing Fund,Withheld Peiraf 457
31,Jefferson State Community College,327422,Publix Super Markets Inc ,11/7/2018,127.58,Current Unrestricted,Materials and Supplies
31,Jefferson State Community College,327423,Regional Produce Distributors LLC ,11/7/2018,1164.8,Current Unrestricted,Materials and Supplies
31,Jefferson State Community College,327424,Reliastar Life Insurance Co ,11/7/2018,42.75,Payroll Clearing Fund,Reliastar Life Ins
31,Jefferson State Community College,327425,Scantron Corp ,11/7/2018,301.72,Current Unrestricted,Materials and Supplies
31,Jefferson State Community College,327426,Scarbrough William,11/7/2018,262.5,Current Unrestricted,Professional Fees
31,Jefferson State Community College,327427,Sherwin Williams ,11/7/2018,60.08,Renewal and Replacement,Maint & Repairs
31,Jefferson State Community College,327428,Sherwin Williams ,11/7/2018,133.38,Renewal and Replacement,Maint & Repairs
31,Jefferson State Community College,327429,Smitherman Daniel,11/7/2018,135,Current Unrestricted,Professional Fees
31,Jefferson State Community College,327430,Smitherman Joseph,11/7/2018,742.5,Current Unrestricted,Professional Fees
31,Jefferson State Community College,327431,State of Alabama ,11/7/2018,2210,Payroll Clearing Fund,Withheld Child Support - Jeffco
31,Jefferson State Community College,327432,State of Alabama ,11/7/2018,1242,Payroll Clearing Fund,Withheld Child Support - Jeffco
31,Jefferson State Community College,327433,State of Alabama ,11/7/2018,1513.64,Payroll Clearing Fund,Withheld Garnishment
31,Jefferson State Community College,327434,Sysco of Central Alabama ,11/7/2018,726.91,Current Unrestricted,Materials and Supplies
31,Jefferson State Community College,327435,Teachers' Retirement System of Alabama ,11/7/2018,370290.09,Payroll Clearing Fund,TRS Matching-State
31,Jefferson State Community College,327436,United Way ,11/7/2018,336.12,Payroll Clearing Fund,Withheld United Way
31,Jefferson State Community College,327437,US Department of Education ,11/7/2018,603.37,Payroll Clearing Fund,Withheld Garnishment
31,Jefferson State Community College,327438,US Foods  Inc. ,11/7/2018,1770.68,Current Unrestricted,Materials and Supplies
31,Jefferson State Community College,327439,Whittle Christopher,11/7/2018,348.75,Current Unrestricted,Professional Fees
31,Jefferson State Community College,327440,Alabama Banner Users Group ,11/8/2018,470,Current Unrestricted,In-State Travel
31,Jefferson State Community College,327441,AmeriPride Services Inc. ,11/8/2018,85.96,Current Unrestricted,Laundry & Cleaning
31,Jefferson State Community College,327442,Central Paper ,11/8/2018,604.3,Current Unrestricted,Materials and Supplies
31,Jefferson State Community College,327443,Havard Patricia,11/8/2018,199.99,Current Unrestricted,Staff Develop-Faculty
31,Jefferson State Community College,327444,High Tide Technologies ,11/8/2018,480,Renewal and Replacement,Professional Fees
31,Jefferson State Community College,327445,Hodge Mechanical Services LLC ,11/8/2018,8900.37,Renewal and Replacement,Maint & Repairs
31,Jefferson State Community College,327446,Marcus Service & Solutions LLC ,11/8/2018,45000,Renewal and Replacement,Maint & Repairs
31,Jefferson State Community College,327447,Republic Services Inc ,11/8/2018,1779.13,Current Unrestricted,Contractual Services
31,Jefferson State Community College,327448,Tomlin Tonya,11/8/2018,35.43,Current Unrestricted,In-State Travel
31,Jefferson State Community College,327449,Whitten Alyssa,11/8/2018,66.11,Current Unrestricted,In-State Travel
31,Jefferson State Community College,327465,Chick- fil-a Inc ,11/13/2018,535.62,Current Unrestricted,Advertise  Promotions
31,Jefferson State Community College,327466,McGowan James,11/13/2018,142.5,Current Unrestricted,Professional Fees
31,Jefferson State Community College,124340,Wilson Peri-Anne,11/15/2018,1879.67,Current Unrestricted,Payroll
31,Jefferson State Community College,124341,Hawkins Chelsie,11/15/2018,1046.83,DHR AITPDN Grant #2201 18/19,Payroll
31,Jefferson State Community College,124342,Jebeles Dimitra,11/15/2018,1284.92,Current Unrestricted,Payroll
31,Jefferson State Community College,124343,Stockley Ginger,11/15/2018,1959,Current Unrestricted,Payroll
31,Jefferson State Community College,124344,Self Bonnie,11/15/2018,2315.96,Current Unrestricted,Payroll
31,Jefferson State Community College,124345,Dunning Alexis,11/15/2018,2236.54,Current Unrestricted,Payroll
31,Jefferson State Community College,124346,Carr Kathi,11/15/2018,1641.67,Current Unrestricted,Payroll
31,Jefferson State Community College,124347,Coker Pamela,11/15/2018,1086.46,Current Unrestricted,Payroll
31,Jefferson State Community College,124348,Keenum Lisa,11/15/2018,2315.96,Current Unrestricted,Payroll
31,Jefferson State Community College,124349,McLendon Rita,11/15/2018,1959,Current Unrestricted,Payroll
31,Jefferson State Community College,124350,Archer Teresa,11/15/2018,2117.75,Current Unrestricted,Payroll
31,Jefferson State Community College,124351,Hughes Erma,11/15/2018,2434.96,Current Unrestricted,Payroll
31,Jefferson State Community College,124352,Kimble Lisa,11/15/2018,2077.79,Current Unrestricted,Payroll
31,Jefferson State Community College,124353,DeLoach Merissa,11/15/2018,1403.83,Current Unrestricted,Payroll
31,Jefferson State Community College,124354,Jackson Debra,11/15/2018,1959,Current Unrestricted,Payroll
31,Jefferson State Community College,124355,Stewart Lisa,11/15/2018,1959,Current Unrestricted,Payroll
31,Jefferson State Community College,124356,Harris Seena,11/15/2018,1959,Current Unrestricted,Payroll
31,Jefferson State Community College,124357,Wallace Preston,11/15/2018,2496.54,Current Unrestricted,Payroll
31,Jefferson State Community College,124358,Ray Beth,11/15/2018,1039.67,Current Unrestricted,Payroll
31,Jefferson State Community College,124359,Cooper Ginger,11/15/2018,2019.28,Current Unrestricted,Payroll
31,Jefferson State Community College,124360,Pugh Sandra,11/15/2018,2315.96,Current Unrestricted,Payroll
31,Jefferson State Community College,124361,Cox Melanie,11/15/2018,1959,Current Unrestricted,Payroll
31,Jefferson State Community College,124362,Braswell Gail,11/15/2018,1324.46,Current Unrestricted,Payroll
31,Jefferson State Community College,124363,Pickens Elizabeth,11/15/2018,2038.38,Current Unrestricted,Payroll
31,Jefferson State Community College,124364,Chamblin Juanita,11/15/2018,2530.56,Current Unrestricted,Payroll
31,Jefferson State Community College,124365,Key Karen,11/15/2018,2315.96,Current Unrestricted,Payroll
31,Jefferson State Community College,124366,Sutton Edreama,11/15/2018,2903.91,Current Unrestricted,Payroll
31,Jefferson State Community College,124367,Boackle Emil,11/15/2018,1641.92,Current Unrestricted,Payroll
31,Jefferson State Community College,124368,Burney Roscelia,11/15/2018,1959,Current Unrestricted,Payroll
31,Jefferson State Community College,124369,Call Jacob,11/15/2018,2467.3,Current Unrestricted,Payroll
31,Jefferson State Community College,124370,Carpenter Valencia,11/15/2018,1562.54,Current Unrestricted,Payroll
31,Jefferson State Community College,124371,Collins Angela,11/15/2018,1959,Current Unrestricted,Payroll
31,Jefferson State Community College,124372,Duncan Leconyea,11/15/2018,1641.92,Current Unrestricted,Payroll
31,Jefferson State Community College,124373,Fennell Tapeka,11/15/2018,1903.43,Current Unrestricted,Payroll
31,Jefferson State Community College,124374,Fraser Thompson Stacye,11/15/2018,2636.62,Current Unrestricted,Payroll
31,Jefferson State Community College,124375,Howard Amber,11/15/2018,1046.83,Current Unrestricted,Payroll
31,Jefferson State Community College,124376,Jones Juanita,11/15/2018,1641.92,Current Unrestricted,Payroll
31,Jefferson State Community College,124377,Mendez Roosevelt,11/15/2018,1899.44,Current Unrestricted,Payroll
31,Jefferson State Community College,124378,Pippens Amberetta,11/15/2018,1522.83,Current Unrestricted,Payroll
31,Jefferson State Community College,124379,Silor Virginia,11/15/2018,2434.96,Current Unrestricted,Payroll
31,Jefferson State Community College,124380,Sipe James,11/15/2018,1126.17,Current Unrestricted,Payroll
31,Jefferson State Community College,124381,Wangle Jonathan,11/15/2018,1046.83,Current Unrestricted,Payroll
31,Jefferson State Community College,124382,Whitten Alyssa,11/15/2018,1879.42,Current Unrestricted,Payroll
31,Jefferson State Community College,124383,Brownlee Lareatha,11/15/2018,2060.71,Current Unrestricted,Payroll
31,Jefferson State Community College,124384,Clark Natalya,11/15/2018,1562.54,Current Unrestricted,Payroll
31,Jefferson State Community College,124385,Cobb Linda,11/15/2018,1840.08,Current Unrestricted,Payroll
31,Jefferson State Community College,124386,Cobb Rose,11/15/2018,1879.42,Current Unrestricted,Payroll
31,Jefferson State Community College,124387,Ezell Laura,11/15/2018,1324.46,Current Unrestricted,Payroll
31,Jefferson State Community College,124388,McAdory Tracy,11/15/2018,1840.08,Current Unrestricted,Payroll
31,Jefferson State Community College,124389,Reach Brett,11/15/2018,2315.75,Current Unrestricted,Payroll
31,Jefferson State Community College,124390,Thomas Donna,11/15/2018,2038.38,Current Unrestricted,Payroll
31,Jefferson State Community College,124391,Dukes Angia,11/15/2018,1324.46,Current Unrestricted,Payroll
31,Jefferson State Community College,124392,Dunning Freddie,11/15/2018,2117.75,Current Unrestricted,Payroll
31,Jefferson State Community College,124393,Urbahns Laura,11/15/2018,1959,Current Unrestricted,Payroll
31,Jefferson State Community College,124394,Smith Heather,11/15/2018,1919.33,Current Unrestricted,Payroll
31,Jefferson State Community College,124395,Cimalore Beverly,11/15/2018,2157.21,Current Unrestricted,Payroll
31,Jefferson State Community College,124396,Culver Cynthia,11/15/2018,2430.08,Current Unrestricted,Payroll
31,Jefferson State Community College,124397,Fisher Debra,11/15/2018,1641.67,Current Unrestricted,Payroll
31,Jefferson State Community College,124398,Holman Larry,11/15/2018,1959,Current Unrestricted,Payroll
31,Jefferson State Community College,124399,Miller Stephanie,11/15/2018,2157.21,Current Unrestricted,Payroll
31,Jefferson State Community College,124400,Pollard Deborah,11/15/2018,1959,Current Unrestricted,Payroll
31,Jefferson State Community College,124401,Pettry Sherry,11/15/2018,2038.38,Current Unrestricted,Payroll
31,Jefferson State Community College,124402,Quekemeyer Carrliss,11/15/2018,1522.83,Current Unrestricted,Payroll
31,Jefferson State Community College,124403,Crotwell David,11/15/2018,1562.54,Current Unrestricted,Payroll
31,Jefferson State Community College,124404,Mathis Brenda,11/15/2018,1443.63,Current Unrestricted,Payroll
31,Jefferson State Community College,124405,Patterson William,11/15/2018,1483.21,Current Unrestricted,Payroll
31,Jefferson State Community College,124406,Richey Marty,11/15/2018,1959,Current Unrestricted,Payroll
31,Jefferson State Community College,124407,Starnes Jane,11/15/2018,2315.75,Current Unrestricted,Payroll
31,Jefferson State Community College,124408,Wilson Colton,11/15/2018,1046.96,Current Unrestricted,Payroll
31,Jefferson State Community College,124409,Freeman Robine,11/15/2018,1721.29,Current Unrestricted,Payroll
31,Jefferson State Community College,124410,Hodge Dylan,11/15/2018,1137.78,Current Unrestricted,Payroll
31,Jefferson State Community College,124411,Tela Rebecca,11/15/2018,1364.29,Current Unrestricted,Payroll
31,Jefferson State Community College,124412,Wynn Michael,11/15/2018,1205.58,Current Unrestricted,Payroll
31,Jefferson State Community College,124413,Berry Archie,11/15/2018,1642.08,Current Unrestricted,Payroll
31,Jefferson State Community College,124414,Brown Kenneth,11/15/2018,1093.87,Current Unrestricted,Payroll
31,Jefferson State Community College,124415,Darnell Clay Estate of,11/15/2018,1443.63,Current Unrestricted,Payroll
31,Jefferson State Community College,124416,Cunningham Velma,11/15/2018,1523.04,Current Unrestricted,Payroll
31,Jefferson State Community College,124417,Johnson Jeannette,11/15/2018,1443.63,Current Unrestricted,Payroll
31,Jefferson State Community College,124418,Jones Harrietta,11/15/2018,1642.08,Current Unrestricted,Payroll
31,Jefferson State Community College,124419,Martin Jerry,11/15/2018,1364.29,Current Unrestricted,Payroll
31,Jefferson State Community College,124420,Pendleton Carolyn,11/15/2018,900.46,Current Unrestricted,Payroll
31,Jefferson State Community College,124421,Purvis Larose,11/15/2018,1523.04,Current Unrestricted,Payroll
31,Jefferson State Community College,124422,Reynolds Reginald,11/15/2018,1523.04,Current Unrestricted,Payroll
31,Jefferson State Community College,124423,Sanders Bernard,11/15/2018,1840.33,Current Unrestricted,Payroll
31,Jefferson State Community College,124424,Wilson Dave,11/15/2018,2117.75,Current Unrestricted,Payroll
31,Jefferson State Community College,124425,Duchock Anita,11/15/2018,1166,Current Unrestricted,Payroll
31,Jefferson State Community College,124426,Barnett C,11/15/2018,1959,Current Unrestricted,Payroll
31,Jefferson State Community College,124427,Capps Randi,11/15/2018,1050.74,Current Unrestricted,Payroll
31,Jefferson State Community College,124428,Harris Michael,11/15/2018,1483.21,Current Unrestricted,Payroll
31,Jefferson State Community College,124429,Hawkins Michael,11/15/2018,1919.33,Current Unrestricted,Payroll
31,Jefferson State Community College,124430,Nathan Charlie,11/15/2018,1364.29,Current Unrestricted,Payroll
31,Jefferson State Community College,124431,Solomon R,11/15/2018,1879.67,Current Unrestricted,Payroll
31,Jefferson State Community College,124432,Toney Clifford,11/15/2018,2117.75,Current Unrestricted,Payroll
31,Jefferson State Community College,124433,Veal Burt,11/15/2018,1641.92,Current Unrestricted,Payroll
31,Jefferson State Community College,124434,Sullivan Terri,11/15/2018,1562.54,Current Unrestricted,Payroll
31,Jefferson State Community College,124435,Eason Haley,11/15/2018,1007.29,Current Unrestricted,Payroll
31,Jefferson State Community College,124436,Lee Earnestine,11/15/2018,1523.04,Current Unrestricted,Payroll
31,Jefferson State Community College,124437,Payne Russell,11/15/2018,2157.21,Current Unrestricted,Payroll
31,Jefferson State Community College,124438,Smith Twanna,11/15/2018,1523.04,Current Unrestricted,Payroll
31,Jefferson State Community College,124439,Steele Kelvin,11/15/2018,1443.63,Current Unrestricted,Payroll
